{"text_format":"1","workbook":"xlsx","n_sheets":5,"sheets":["الصفحة الرئيسية","بيانات البيع","3D","تحليل محافظات","تحليل عملاء"],"not_rendered":{"charts":1,"images":9,"macros":1,"external_links":0,"defined_names":11,"comments":0,"pivot_tables":0},"unopened":[],"bounds":{"document_bytes":16777216,"sheet_cells":100000,"rows_first":2000,"rows_last":500,"rows_between":2000,"halvings":0,"cell_chars":16384,"cell_head_chars":4096},"cells_cut":0,"cells_raw":0,"read":"whole","date_system":"1900"}

{"sheet":"الصفحة الرئيسية","index":0,"n_rows":26,"n_cols":19,"rows_kept":26,"cut":false,"hidden":false,"merged":[[14,18,15,21],[14,12,15,15],[25,18,26,21],[25,12,26,15]]}
[]
[]
[]
[]
[]
[]
[]
[]
[]
[]
[]
[]
[]
[]
[null,null,null,null,null,null,null,null,null,null,null,null,"بيــــانات البيــــــــــع",null,null,null,null,null,"Open 3D map tour"]
[]
[]
[]
[]
[]
[]
[]
[]
[]
[]
[null,null,null,null,null,null,null,null,null,null,null,null,"تحليل المحافظات",null,null,null,null,null,"تحليل العملاء"]

{"sheet":"بيانات البيع","index":1,"n_rows":465,"n_cols":5,"rows_kept":465,"cut":false,"hidden":true,"merged":[]}
["إسم العميل","المنطقة","المحافظة","الدولة","السعر"]
["عميل 1","سوهاج","سوهاج","مصر",525.20000000000005]
["عميل 2","القصر العينى","القاهرة","مصر",65]
["عميل 3","القصر العينى","القاهرة","مصر",1100]
["عميل 4","القصر العينى","القاهرة","مصر",150]
["عميل 5","ميت غمر","الدقهلية","مصر",900]
["عميل 6","المحلة الكبرى","الغربية","مصر",1025]
["عميل 7","أسيوط","أسيوط","مصر",5840]
["عميل 8","القاهرة","القاهرة","مصر",360]
["عميل 9","المطرية","الجيزة","مصر",150]
["عميل 10","مستشفى الشرق","الجيزة","مصر",225]
["عميل 11","القصر العينى","القاهرة","مصر",760]
["عميل 12","القصر العينى","القاهرة","مصر",1780]
["عميل 13","القصر العينى","القاهرة","مصر",580]
["عميل 14","مساكن الشروق","القاهرة","مصر",520]
["عميل 15","الجيزة","الجيزة","مصر",450]
["عميل 16","القصر العينى","القاهرة","مصر",1300]
["عميل 17","المنيا","المنيا","مصر",3300]
["عميل 18","القصر العينى","القاهرة","مصر",990]
["عميل 19","القصر العينى","القاهرة","مصر",320]
["عميل 20","القصر العينى","القاهرة","مصر",600]
["عميل 21","القصر العينى","القاهرة","مصر",240]
["عميل 22","القاهرة","القاهرة","مصر",390]
["عميل 23","القصر العينى","القاهرة","مصر",150]
["عميل 24","الهرم","الجيزة","مصر",1900]
["عميل 25","القصر العينى","القاهرة","مصر",500]
["عميل 26","وسط البلد","القاهرة","مصر",0]
["عميل 27","وسط البلد","القاهرة","مصر",456]
["عميل 28","كفر الشيخ","كفر الشيخ","مصر",300]
["عميل 29","الجيزة","الجيزة","مصر",295]
["عميل 30","القصر العينى","القاهرة","مصر",90]
["عميل 31","أبو غالب","الجيزة","مصر",225]
["عميل 32","القصر العينى","القاهرة","مصر",1250]
["عميل 33","القصر العينى","القاهرة","مصر",1000]
["عميل 34","الشيخ زايد","القاهرة","مصر",1100]
["عميل 35","حلوان","الجيزة","مصر",2375]
["عميل 36","حلوان","الجيزة","مصر",770]
["عميل 37","القصر العينى","القاهرة","مصر",250]
["عميل 38","المعادى","القاهرة","مصر",500]
["عميل 39","القصر العينى","القاهرة","مصر",4000]
["عميل 40","القصر العينى","القاهرة","مصر",70]
["عميل 41","القصر العينى","القاهرة","مصر",1125]
["عميل 42","القصر العينى","القاهرة","مصر",3000]
["عميل 43","المقطم","القاهرة","مصر",70]
["عميل 44","بنى سويف","بنى سويف","مصر",555]
["عميل 45","المعادى","القاهرة","مصر",3360]
["عميل 46","القصر العينى","القاهرة","مصر",980]
["عميل 47","القصر العينى","القاهرة","مصر",600]
["عميل 48","سوهاج","سوهاج","مصر",340]
["عميل 49","القصر العينى","القاهرة","مصر",22]
["عميل 50","القصر العينى","القاهرة","مصر",325]
["عميل 51","القصر العينى","القاهرة","مصر",60]
["عميل 52","القصر العينى","القاهرة","مصر",1500]
["عميل 53","شبرا مصر","القاهرة","مصر",70]
["عميل 54","اسوان","اسوان","مصر",155]
["عميل 55","مدينة نصر","القاهرة","مصر",500]
["عميل 56","القاهرة","القاهرة","مصر",325]
["عميل 57","القصر العينى","القاهرة","مصر",1950]
["عميل 58","القصر العينى","القاهرة","مصر",400]
["عميل 59","البحيرة","البحيرة","مصر",1200]
["عميل 60","بنى سويف","بنى سويف","مصر",4475]
["عميل 61","بنى سويف","بنى سويف","مصر",2450]
["عميل 62","شبرا مصر","القاهرة","مصر",1295]
["عميل 63","القصر العينى","القاهرة","مصر",375]
["عميل 64","طها","سوهاج","مصر",1880]
["عميل 65","طها","سوهاج","مصر",450]
["عميل 66","بنى سويف","بنى سويف","مصر",4400]
["عميل 67","ارض اللواء","الجيزة","مصر",3300]
["عميل 68","مدينة نصر","القاهرة","مصر",225]
["عميل 69","القاهرة","القاهرة","مصر",250]
["عميل 70","الفسطاط الجديدة","القاهرة","مصر",700]
["عميل 71","مدينة نصر","القاهرة","مصر",550]
["عميل 72","القصر العينى","القاهرة","مصر",375]
["عميل 73","القصر العينى","القاهرة","مصر",570]
["عميل 74","القصر العينى","القاهرة","مصر",342]
["عميل 75","الإسكندرية","الإسكندرية","مصر",3500]
["عميل 76","المنيا","المنيا","مصر",1050]
["عميل 77","حلوان","الجيزة","مصر",1150]
["عميل 78","أشمون","المنوفية","مصر",250]
["عميل 79","دار السلام","القاهرة","مصر",125]
["عميل 80","القصر العينى","القاهرة","مصر",5]
["عميل 81","القصر العينى","القاهرة","مصر",1750]
["عميل 82","كرداسة","الجيزة","مصر",300]
["عميل 83","القصر العينى","القاهرة","مصر",6450]
["عميل 84","سوهاج","سوهاج","مصر",288]
["عميل 85","القصر العينى","القاهرة","مصر",875]
["عميل 86","القصر العينى","القاهرة","مصر",340]
["عميل 87","الشيخ زايد","القاهرة","مصر",1500]
["عميل 88","الأقصر","الأقصر","مصر",450]
["عميل 89","فيصل","الجيزة","مصر",225]
["عميل 90","القصر العينى","القاهرة","مصر",40]
["عميل 91","القصر العينى","القاهرة","مصر",725]
["عميل 92","المنوفية","المنوفية","مصر",580]
["عميل 93","حدائق القبة","القاهرة","مصر",1950]
["عميل 94","القصر العينى","القاهرة","مصر",75]
["عميل 95","القصر العينى","القاهرة","مصر",600]
["عميل 96","عين شمس","القاهرة","مصر",350]
["عميل 97","القصر العينى","القاهرة","مصر",875]
["عميل 98","القصر العينى","القاهرة","مصر",1400]
["عميل 99","الجمهورية","المنوفية","مصر",75]
["عميل 100","المعادى","القاهرة","مصر",3400]
["عميل 101","المحلة الكبرى","الغربية","مصر",600]
["عميل 102","المحلة الكبرى","الغربية","مصر",1250]
["عميل 103","التجمع الخامس","القاهرة","مصر",325]
["عميل 104","الإسكندرية","الإسكندرية","مصر",909]
["عميل 105","القصر العينى","القاهرة","مصر",675]
["عميل 106","المقطم","القاهرة","مصر",300]
["عميل 107","القصر العينى","القاهرة","مصر",280]
["عميل 108","امبابة","الجيزة","مصر",525]
["عميل 109","القصر العينى","القاهرة","مصر",1050]
["عميل 110","زهراء المعادى","القاهرة","مصر",300]
["عميل 111","القصر العينى","القاهرة","مصر",340]
["عميل 112","المقطم","القاهرة","مصر",36250]
["عميل 113","التجمع الأول","القاهرة","مصر",800]
["عميل 114","القصر العينى","القاهرة","مصر",300]
["عميل 115","الدقى","الجيزة","مصر",150]
["عميل 116","القصر العينى","القاهرة","مصر",70]
["عميل 117","السيدة زينب","القاهرة","مصر",1469]
["عميل 118","المهندسين","الجيزة","مصر",375]
["عميل 119","حدائق القبة","القاهرة","مصر",300]
["عميل 120","المعادى","القاهرة","مصر",420]
["عميل 121","القصر العينى","القاهرة","مصر",1650]
["عميل 122","القصر العينى","القاهرة","مصر",1300]
["عميل 123","القصر العينى","القاهرة","مصر",300]
["عميل 124","القصر العينى","القاهرة","مصر",10000]
["عميل 125","المقطم","القاهرة","مصر",90]
["عميل 126","القصر العينى","القاهرة","مصر",375]
["عميل 127","مصر الجديدة","القاهرة","مصر",105]
["عميل 128","القصر العينى","القاهرة","مصر",780]
["عميل 129","أسيوط","أسيوط","مصر",120]
["عميل 130","القصر العينى","القاهرة","مصر",20]
["عميل 131","مدينة نصر","القاهرة","مصر",300]
["عميل 132","شبرا مصر","القاهرة","مصر",520]
["عميل 133","طنطا","الغربية","مصر",1400]
["عميل 134","القصر العينى","القاهرة","مصر",6850]
["عميل 135","القصر العينى","القاهرة","مصر",375]
["عميل 136","مدينة نصر","القاهرة","مصر",100]
["عميل 137","الهرم","الجيزة","مصر",680]
["عميل 138","القصر العينى","القاهرة","مصر",175]
["عميل 139","القصر العينى","القاهرة","مصر",200]
["عميل 140","القصر العينى","القاهرة","مصر",200]
["عميل 141","الشيخ زايد","القاهرة","مصر",300]
["عميل 142","حدئق الاهرام","القاهرة","مصر",300]
["عميل 143","مستشفى الشرق","الجيزة","مصر",120]
["عميل 144","حدائق القبة","القاهرة","مصر",170]
["عميل 145","القصر العينى","القاهرة","مصر",60]
["عميل 146","ميت غمر","الدقهلية","مصر",900]
["عميل 147","القصر العينى","القاهرة","مصر",80]
["عميل 148","القصر العينى","القاهرة","مصر",270]
["عميل 149","القاهرة","القاهرة","مصر",195]
["عميل 150","نجع حمادى","قنا","مصر",800]
["عميل 151","المعادى","القاهرة","مصر",225]
["عميل 152","ديشنا","قنا","مصر",300]
["عميل 153","بنى سويف","بنى سويف","مصر",90]
["عميل 154","مدينة نصر","القاهرة","مصر",260]
["عميل 155","القصر العينى","القاهرة","مصر",350]
["عميل 156","بنى سويف","بنى سويف","مصر",25]
["عميل 157","رمسيس","القاهرة","مصر",3250]
["عميل 158","التجمع الأول","القاهرة","مصر",75]
["عميل 159","ديشنا","قنا","مصر",1800]
["عميل 160","القصر العينى","القاهرة","مصر",680]
["عميل 161","القصر العينى","القاهرة","مصر",250]
["عميل 162","القصر العينى","القاهرة","مصر",250]
["عميل 163","القاهرة","القاهرة","مصر",70]
["عميل 164","الأقصر","الأقصر","مصر",2100]
["عميل 165","أبو حماد","الشرقية","مصر",1680]
["عميل 166","القصر العينى","القاهرة","مصر",2475]
["عميل 167","الزقازيق","الشرقية","مصر",390]
["عميل 168","المنيرة","القاهرة","مصر",17710]
["عميل 169","القصر العينى","القاهرة","مصر",1650]
["عميل 170","فيصل","الجيزة","مصر",90]
["عميل 171","المهندسين","الجيزة","مصر",3475]
["عميل 172","باب اللوق","القاهرة","مصر",680]
["عميل 173","القصر العينى","القاهرة","مصر",775]
["عميل 174","القصر العينى","القاهرة","مصر",855]
["عميل 175","الخلفاوى","القاهرة","مصر",1050]
["عميل 176","أسيوط","أسيوط","مصر",80]
["عميل 177","القصر العينى","القاهرة","مصر",200]
["عميل 178","الشيخ زايد","القاهرة","مصر",1100]
["عميل 179","مدينة نصر","القاهرة","مصر",660]
["عميل 180","القصر العينى","القاهرة","مصر",1400]
["عميل 181","حدائق القبة","القاهرة","مصر",545]
["عميل 182","دمنهور","البحيرة","مصر",725]
["عميل 183","القصر العينى","القاهرة","مصر",2000]
["عميل 184","القصر العينى","القاهرة","مصر",540]
["عميل 185","امبابة","الجيزة","مصر",375]
["عميل 186","المهندسين","الجيزة","مصر",600]
["عميل 187","العياط","الجيزة","مصر",180]
["عميل 188","القصر العينى","القاهرة","مصر",985]
["عميل 189","أشمون","المنوفية","مصر",40]
["عميل 190","المقطم","القاهرة","مصر",285]
["عميل 191","المهندسين","الجيزة","مصر",2100]
["عميل 192","الهرم","الجيزة","مصر",280]
["عميل 193","القصر العينى","القاهرة","مصر",280]
["عميل 194","القصر العينى","القاهرة","مصر",1095]
["عميل 195","المقطم","القاهرة","مصر",695]
["عميل 196","مدينة نصر","القاهرة","مصر",35]
["عميل 197","القصر العينى","القاهرة","مصر",875]
["عميل 198","القصر العينى","القاهرة","مصر",145]
["عميل 199","القصر العينى","القاهرة","مصر",660]
["عميل 200","المنوفية","المنوفية","مصر",560]
["عميل 201","القصر العينى","القاهرة","مصر",1160]
["عميل 202","القصر العينى","القاهرة","مصر",3750]
["عميل 203","مدينة نصر","القاهرة","مصر",550]
["عميل 204","القصر العينى","القاهرة","مصر",350]
["عميل 205","القصر العينى","القاهرة","مصر",1200]
["عميل 206","سوهاج","سوهاج","مصر",250]
["عميل 207","سوهاج","سوهاج","مصر",285]
["عميل 208","القصر العينى","القاهرة","مصر",420]
["عميل 209","القصر العينى","القاهرة","مصر",150]
["عميل 210","القصر العينى","القاهرة","مصر",150]
["عميل 211","القصر العينى","القاهرة","مصر",9810]
["عميل 212","الجيزة","الجيزة","مصر",10]
["عميل 213","القصر العينى","القاهرة","مصر",2550]
["عميل 214","شبين القناطر","القليوبية","مصر",2625]
["عميل 215","القصر العينى","القاهرة","مصر",700]
["عميل 216","القاهرة","القاهرة","مصر",240]
["عميل 217","الفيوم","الفيوم","مصر",300]
["عميل 218","أسيوط","أسيوط","مصر",40]
["عميل 219","الزقازيق","الشرقية","مصر",300]
["عميل 220","القصر العينى","القاهرة","مصر",80]
["عميل 221","العباسية","القاهرة","مصر",1250]
["عميل 222","الأقصر","الأقصر","مصر",300]
["عميل 223","القصر العينى","القاهرة","مصر",175]
["عميل 224","القصر العينى","القاهرة","مصر",350]
["عميل 225","المرج","القاهرة","مصر",70]
["عميل 226","طنطا","الغربية","مصر",800]
["عميل 227","القاهرة","القاهرة","مصر",15]
["عميل 228","فيصل","القاهرة","مصر",295]
["عميل 229","الخصوص","القليوبية","مصر",120]
["عميل 230","القصر العينى","القاهرة","مصر",390]
["عميل 231","القصر العينى","القاهرة","مصر",7695]
["عميل 232","القصر العينى","القاهرة","مصر",700]
["عميل 233","امبابة","الجيزة","مصر",65]
["عميل 234","القصر العينى","القاهرة","مصر",350]
["عميل 235","القصر العينى","القاهرة","مصر",375]
["عميل 236","القصر العينى","القاهرة","مصر",250]
["عميل 237","القصر العينى","القاهرة","مصر",530]
["عميل 238","القصر العينى","القاهرة","مصر",12000]
["عميل 239","القصر العينى","القاهرة","مصر",1400]
["عميل 240","الفيوم","الفيوم","مصر",1700]
["عميل 241","قليوب","القليوبية","مصر",375]
["عميل 242","الفيوم","الفيوم","مصر",340]
["عميل 243","القصر العينى","القاهرة","مصر",555]
["عميل 244","المنصورة","الدقهلية","مصر",546]
["عميل 245","ارض اللواء","الجيزة","مصر",85]
["عميل 246","القصر العينى","القاهرة","مصر",150]
["عميل 247","الحوامدية","الجيزة","مصر",290]
["عميل 248","القصر العينى","القاهرة","مصر",500]
["عميل 249","القصر العينى","القاهرة","مصر",300]
["عميل 250","الدرب الأحمر","القاهرة","مصر",250]
["عميل 251","القصر العينى","القاهرة","مصر",550]
["عميل 252","مدينة نصر","القاهرة","مصر",180]
["عميل 253","القصر العينى","القاهرة","مصر",95]
["عميل 254","المقطم","القاهرة","مصر",1000]
["عميل 255","المعادى","القاهرة","مصر",370]
["عميل 256","السويس","السويس","مصر",3825]
["عميل 257","الشرابية","القاهرة","مصر",250]
["عميل 258","العجوزة","الجيزة","مصر",250]
["عميل 259","وسط البلد","القاهرة","مصر",375]
["عميل 260","المقطم","القاهرة","مصر",300]
["عميل 261","المعادى","القاهرة","مصر",300]
["عميل 262","مايو","القاهرة","مصر",90]
["عميل 263","القصر العينى","القاهرة","مصر",195]
["عميل 264","العاشر من رمضان","القليوبية","مصر",540]
["عميل 265","القصر العينى","القاهرة","مصر",280]
["عميل 266","المقطم ","القاهرة","مصر",1070]
["عميل 267","القصر العينى","القاهرة","مصر",520]
["عميل 268","الجيزة","الجيزة","مصر",185]
["عميل 269","مدينتي","القاهرة","مصر",1100]
["عميل 270","مصر الجديدة","القاهرة","مصر",700]
["عميل 271","امبابة","الجيزة","مصر",200]
["عميل 272","القصر العينى","القاهرة","مصر",185]
["عميل 273","القصر العينى","القاهرة","مصر",875]
["عميل 274","أبو حماد","الشرقية","مصر",750]
["عميل 275","القصر العينى","القاهرة","مصر",830]
["عميل 276","الجيزة","الجيزة","مصر",650]
["عميل 277","طريق الكباش","الأقصر","مصر",3840]
["عميل 278","السيدة زينب","القاهرة","مصر",190]
["عميل 279","الزقازيق","الشرقية","مصر",510]
["عميل 280","كوبرى القبة","القاهرة","مصر",3210]
["عميل 281","المقطم","القاهرة","مصر",600]
["عميل 282","التجمع الخامس","القاهرة","مصر",9900]
["عميل 283","سوهاج","سوهاج","مصر",1950]
["عميل 284","القصر العينى","القاهرة","مصر",85]
["عميل 285","شبرا مصر","القاهرة","مصر",325]
["عميل 286","القاهرة","القاهرة","مصر",40]
["عميل 287","فيصل","الجيزة","مصر",250]
["عميل 288","الهرم","الجيزة","مصر",80]
["عميل 289","مول العرب","القاهرة","مصر",150]
["عميل 290","ارض الجولف","القاهرة","مصر",12000]
["عميل 291","القصر العينى","القاهرة","مصر",520]
["عميل 292","القصر العينى","القاهرة","مصر",875]
["عميل 293","الهرم","الجيزة","مصر",140]
["عميل 294","القصر العينى","القاهرة","مصر",120]
["عميل 295","مصر الجديدة","القاهرة","مصر",625]
["عميل 296","القصر العينى","القاهرة","مصر",1080]
["عميل 297","حدائق القبة","القاهرة","مصر",500]
["عميل 298","المنصورة","الدقهلية","مصر",4700]
["عميل 299","المنصورة","الدقهلية","مصر",3500]
["عميل 300","الهرم","الجيزة","مصر",342]
["عميل 301","القصر العينى","القاهرة","مصر",250]
["عميل 302","المرج الجديدة","القاهرة","مصر",2800]
["عميل 303","الهرم","الجيزة","مصر",342]
["عميل 304","القصر العينى","القاهرة","مصر",165]
["عميل 305","السادس من أكتوبر","القاهرة","مصر",2495]
["عميل 306","حدائق المعادى","القاهرة","مصر",130]
["عميل 307","جامعة القاهرة","القاهرة","مصر",225]
["عميل 308","القصر العينى","القاهرة","مصر",100]
["عميل 309","القاهرة","القاهرة","مصر",15]
["عميل 310","السيدة زينب","القاهرة","مصر",90]
["عميل 311","القصر العينى","القاهرة","مصر",295]
["عميل 312","مدينة نصر","القاهرة","مصر",650]
["عميل 313","مصر الجديدة","القاهرة","مصر",1450]
["عميل 314","الجيزة","الجيزة","مصر",325]
["عميل 315","الزقازيق","الشرقية","مصر",565]
["عميل 316","الزقازيق","الشرقية","مصر",4225]
["عميل 317","المهندسين","الجيزة","مصر",370]
["عميل 318","البحيرة","البحيرة","مصر",354]
["عميل 319","القصر العينى","القاهرة","مصر",870]
["عميل 320","سوهاج","سوهاج","مصر",300]
["عميل 321","حدائق القبة","القاهرة","مصر",535]
["عميل 322","حدائق القبة","القاهرة","مصر",300]
["عميل 323","القصر العينى","القاهرة","مصر",4800]
["عميل 324","القصر العينى","القاهرة","مصر",3300]
["عميل 325","الإسكندرية","الإسكندرية","مصر",7405]
["عميل 326","الدراسة","القاهرة","مصر",1500]
["عميل 327","القناطر الخيرية","القليوبية","مصر",2500]
["عميل 328","المنصورة","الدقهلية","مصر",4700]
["عميل 329","المعادى","القاهرة","مصر",195]
["عميل 330","القناطر الخيرية","القليوبية","مصر",75]
["عميل 331","القصر العينى","القاهرة","مصر",475]
["عميل 332","القصر العينى","القاهرة","مصر",150]
["عميل 333","الهرم","الجيزة","مصر",185]
["عميل 334","المقطم","القاهرة","مصر",285]
["عميل 335","الدراسة","القاهرة","مصر",2100]
["عميل 336","القصر العينى","القاهرة","مصر",300]
["عميل 337","القصر العينى","القاهرة","مصر",30]
["عميل 338","القصر العينى","القاهرة","مصر",30]
["عميل 339","العاشر من رمضان","القليوبية","مصر",375]
["عميل 340","التجمع الأول","القاهرة","مصر",900]
["عميل 341","الزقازيق","الشرقية","مصر",8000]
["عميل 342","الزقازيق","الشرقية","مصر",825]
["عميل 343","الجمالية","القاهرة","مصر",444]
["عميل 344","المقطم","القاهرة","مصر",40]
["عميل 345","ارض اللواء","الجيزة","مصر",75]
["عميل 346","القصر العينى","القاهرة","مصر",330]
["عميل 347","مصر الجديدة","القاهرة","مصر",13000]
["عميل 348","شبرا الخمية","القليوبية","مصر",65]
["عميل 349","مستشفى الشرق","الجيزة","مصر",375]
["عميل 350","القصر العينى","القاهرة","مصر",110]
["عميل 351","القصر العينى","القاهرة","مصر",1200]
["عميل 352","القاهرة","القاهرة","مصر",160]
["عميل 353","الهرم","الجيزة","مصر",830]
["عميل 354","الزقازيق","الشرقية","مصر",290]
["عميل 355","القصر العينى","القاهرة","مصر",70]
["عميل 356","القصر العينى","القاهرة","مصر",5005]
["عميل 357","القصر العينى","القاهرة","مصر",100]
["عميل 358","مصر القديمة","القاهرة","مصر",80]
["عميل 359","مصر القديمة","القاهرة","مصر",150]
["عميل 360","القصر العينى","القاهرة","مصر",285]
["عميل 361","المحلة الكبرى","الغربية","مصر",2433]
["عميل 362","القصر العينى","القاهرة","مصر",120]
["عميل 363","القصر العينى","القاهرة","مصر",1875]
["عميل 364","شبرا الخمية","القليوبية","مصر",325]
["عميل 365","مستشفى مصر و السودان","القاهرة","مصر",4900]
["عميل 366","المعادى","القاهرة","مصر",300]
["عميل 367","حلوان","القاهرة","مصر",375]
["عميل 368","صلاح سالم","بنى سويف","مصر",750]
["عميل 369","المعادى","القاهرة","مصر",1040]
["عميل 370","العمرانية","الجيزة","مصر",1500]
["عميل 371","شبرا مصر","القاهرة","مصر",775]
["عميل 372","حلوان","القاهرة","مصر",15]
["عميل 373","بولاق الدكرور","الجيزة","مصر",210]
["عميل 374","فيصل","الجيزة","مصر",90]
["عميل 375","ايتاى البارود","البحيرة","مصر",300]
["عميل 376","القصر العينى","القاهرة","مصر",360]
["عميل 377","القصر العينى","القاهرة","مصر",5.5]
["عميل 378","القصر العينى","القاهرة","مصر",80]
["عميل 379","المعادى","القاهرة","مصر",285]
["عميل 380","القصر العينى","القاهرة","مصر",1900]
["عميل 381","التجمع الخامس","القاهرة","مصر",475]
["عميل 382","الغردقة","البحر الأحمر","مصر",116]
["عميل 383","الفسطاط الجديدة","القاهرة","مصر",75]
["عميل 384","جسر السويس","القاهرة","مصر",40]
["عميل 385","شارع السودان","الجيزة","مصر",185]
["عميل 386","القصر العينى","القاهرة","مصر",900]
["عميل 387","القصر العينى","القاهرة","مصر",680]
["عميل 388","القصر العينى","القاهرة","مصر",250]
["عميل 389","القصر العينى","القاهرة","مصر",300]
["عميل 390","المعادى","القاهرة","مصر",2500]
["عميل 391","القصر العينى","القاهرة","مصر",15]
["عميل 392","مدينة نصر","القاهرة","مصر",300]
["عميل 393","حلوان","القاهرة","مصر",350]
["عميل 394","أسيوط","أسيوط","مصر",1111]
["عميل 395","طريق الكباش","الأقصر","مصر",3000]
["عميل 396","القصر العينى","القاهرة","مصر",990]
["عميل 397","شبرا مصر","القاهرة","مصر",1950]
["عميل 398","شبرا مصر","القاهرة","مصر",35]
["عميل 399","القصر العينى","القاهرة","مصر",17500]
["عميل 400","فيصل","الجيزة","مصر",2120]
["عميل 401","القصر العينى","القاهرة","مصر",30]
["عميل 402","المنصورة","الدقهلية","مصر",4000]
["عميل 403","بنى سويف","بنى سويف","مصر",2750]
["عميل 404","بنى سويف","بنى سويف","مصر",2950]
["عميل 405","القصر العينى","القاهرة","مصر",300]
["عميل 406","القصر العينى","القاهرة","مصر",210]
["عميل 407","سوهاج","سوهاج","مصر",606]
["عميل 408","بنى سويف","بنى سويف","مصر",600]
["عميل 409","القصر العينى","القاهرة","مصر",900]
["عميل 410","القصر العينى","القاهرة","مصر",1050]
["عميل 411","التجمع الخامس","القاهرة","مصر",1650]
["عميل 412","القصر العينى","القاهرة","مصر",150]
["عميل 413","القصر العينى","القاهرة","مصر",4380]
["عميل 414","القصر العينى","القاهرة","مصر",225]
["عميل 415","القصر العينى","القاهرة","مصر",195]
["عميل 416","المقطم","القاهرة","مصر",465]
["عميل 417","غمرة","القاهرة","مصر",250]
["عميل 418","الإسماعيلية","الإسماعيلية","مصر",220]
["عميل 419","عين شمس","القاهرة","مصر",600]
["عميل 420","القصر العينى","القاهرة","مصر",420]
["عميل 421","القصر العينى","القاهرة","مصر",595]
["عميل 422","القصر العينى","القاهرة","مصر",1020]
["عميل 423","المعادى","القاهرة","مصر",150]
["عميل 424","القصر العينى","القاهرة","مصر",300]
["عميل 425","القصر العينى","القاهرة","مصر",11750]
["عميل 426","القصر العينى","القاهرة","مصر",4700]
["عميل 427","القصر العينى","القاهرة","مصر",110]
["عميل 428","القصر العينى","القاهرة","مصر",620]
["عميل 429","البساتين","القاهرة","مصر",65]
["عميل 430","العباسية","القاهرة","مصر",3000]
["عميل 431","القصر العينى","القاهرة","مصر",285]
["عميل 432","مدينة نصر","القاهرة","مصر",400]
["عميل 433","الزقازيق","الشرقية","مصر",60]
["عميل 434","الزقازيق","الشرقية","مصر",40]
["عميل 435","شبرا الخيمة","القليوبية","مصر",270]
["عميل 436","القصر العينى","القاهرة","مصر",15]
["عميل 437","المطرية","الجيزة","مصر",1000]
["عميل 438","العمرانية","الجيزة","مصر",550]
["عميل 439","القصر العينى","القاهرة","مصر",1355]
["عميل 440","وسط البلد","القاهرة","مصر",6300]
["عميل 441","سوهاج","سوهاج","مصر",748]
["عميل 442","القصر العينى","القاهرة","مصر",2500]
["عميل 443","الخصوص","القليوبية","مصر",65]
["عميل 444","الوراق","الجيزة","مصر",1685]
["عميل 445","الوراق","الجيزة","مصر",750]
["عميل 446","الهرم","الجيزة","مصر",875]
["عميل 447","المطرية","الجيزة","مصر",400]
["عميل 448","القصر العينى","القاهرة","مصر",65]
["عميل 449","السيدة زينب","القاهرة","مصر",2375]
["عميل 450","ارض اللواء","الجيزة","مصر",1575]
["عميل 451","القصر العينى","القاهرة","مصر",70]
["عميل 452","القاهرة","القاهرة","مصر",350]
["عميل 453","القصر العينى","القاهرة","مصر",815]
["عميل 454","القصر العينى","القاهرة","مصر",275]
["عميل 455","مصر الجديدة","القاهرة","مصر",350]
["عميل 456","القصر العينى","القاهرة","مصر",70]
["عميل 457","مدينة السادات","المنوفية","مصر",300]
["عميل 458","القصر العينى","القاهرة","مصر",45]
["عميل 459","شبين القناطر","القليوبية","مصر",770]
["عميل 460","حلوان","القاهرة","مصر",255]
["عميل 461","حلوان","القاهرة","مصر",15]
["عميل 462","المحلة الكبرى","الغربية","مصر",6800]
["عميل 463","القصر العينى","القاهرة","مصر",65]
[{"$f":"SUBTOTAL(103,Table1[إسم العميل])","v":463},null,null,null,{"$f":"SUBTOTAL(109,Table1[السعر])","v":557933.69999999995}]

{"sheet":"3D","index":2,"n_rows":465,"n_cols":7,"rows_kept":465,"cut":false,"hidden":true,"merged":[[22,6,23,9]]}
["إسم العميل","المنطقة","المحافظة","الدولة","المبلغ"]
["عميل 1","سوهاج","سوهاج","مصر",525.20000000000005]
["عميل 2","القصر العينى","القاهرة","مصر",65]
["عميل 3","القصر العينى","القاهرة","مصر",1100]
["عميل 4","القصر العينى","القاهرة","مصر",150]
["عميل 5","ميت غمر","الدقهلية","مصر",900]
["عميل 6","المحلة الكبرى","الغربية","مصر",1025]
["عميل 7","أسيوط","أسيوط","مصر",5840]
["عميل 8","القاهرة","القاهرة","مصر",360]
["عميل 9","المطرية","الجيزة","مصر",150]
["عميل 10","مستشفى الشرق","الجيزة","مصر",225]
["عميل 11","القصر العينى","القاهرة","مصر",760]
["عميل 12","القصر العينى","القاهرة","مصر",1780]
["عميل 13","القصر العينى","القاهرة","مصر",580]
["عميل 14","مساكن الشروق","القاهرة","مصر",520]
["عميل 15","الجيزة","الجيزة","مصر",450]
["عميل 16","القصر العينى","القاهرة","مصر",1300]
["عميل 17","المنيا","المنيا","مصر",3300]
["عميل 18","القصر العينى","القاهرة","مصر",990]
["عميل 19","القصر العينى","القاهرة","مصر",320]
["عميل 20","القصر العينى","القاهرة","مصر",600]
["عميل 21","القصر العينى","القاهرة","مصر",240]
["عميل 22","القاهرة","القاهرة","مصر",390,null,"أريد عند الضغط على هذه الصورة يتم فتح الخريطة تلقاياً"]
["عميل 23","القصر العينى","القاهرة","مصر",150]
["عميل 24","الهرم","الجيزة","مصر",1900]
["عميل 25","القصر العينى","القاهرة","مصر",500]
["عميل 26","وسط البلد","القاهرة","مصر",0]
["عميل 27","وسط البلد","القاهرة","مصر",456]
["عميل 28","كفر الشيخ","كفر الشيخ","مصر",300]
["عميل 29","الجيزة","الجيزة","مصر",295]
["عميل 30","القصر العينى","القاهرة","مصر",90]
["عميل 31","أبو غالب","الجيزة","مصر",225]
["عميل 32","القصر العينى","القاهرة","مصر",1250]
["عميل 33","القصر العينى","القاهرة","مصر",1000]
["عميل 34","الشيخ زايد","القاهرة","مصر",1100]
["عميل 35","حلوان","الجيزة","مصر",2375]
["عميل 36","حلوان","الجيزة","مصر",770]
["عميل 37","القصر العينى","القاهرة","مصر",250]
["عميل 38","المعادى","القاهرة","مصر",500]
["عميل 39","القصر العينى","القاهرة","مصر",4000]
["عميل 40","القصر العينى","القاهرة","مصر",70]
["عميل 41","القصر العينى","القاهرة","مصر",1125]
["عميل 42","القصر العينى","القاهرة","مصر",3000]
["عميل 43","المقطم","القاهرة","مصر",70]
["عميل 44","بنى سويف","بنى سويف","مصر",555]
["عميل 45","المعادى","القاهرة","مصر",3360]
["عميل 46","القصر العينى","القاهرة","مصر",980]
["عميل 47","القصر العينى","القاهرة","مصر",600]
["عميل 48","سوهاج","سوهاج","مصر",340]
["عميل 49","القصر العينى","القاهرة","مصر",22]
["عميل 50","القصر العينى","القاهرة","مصر",325]
["عميل 51","القصر العينى","القاهرة","مصر",60]
["عميل 52","القصر العينى","القاهرة","مصر",1500]
["عميل 53","شبرا مصر","القاهرة","مصر",70]
["عميل 54","اسوان","اسوان","مصر",155]
["عميل 55","مدينة نصر","القاهرة","مصر",500]
["عميل 56","القاهرة","القاهرة","مصر",325]
["عميل 57","القصر العينى","القاهرة","مصر",1950]
["عميل 58","القصر العينى","القاهرة","مصر",400]
["عميل 59","البحيرة","البحيرة","مصر",1200]
["عميل 60","بنى سويف","بنى سويف","مصر",4475]
["عميل 61","بنى سويف","بنى سويف","مصر",2450]
["عميل 62","شبرا مصر","القاهرة","مصر",1295]
["عميل 63","القصر العينى","القاهرة","مصر",375]
["عميل 64","طها","سوهاج","مصر",1880]
["عميل 65","طها","سوهاج","مصر",450]
["عميل 66","بنى سويف","بنى سويف","مصر",4400]
["عميل 67","ارض اللواء","الجيزة","مصر",3300]
["عميل 68","مدينة نصر","القاهرة","مصر",225]
["عميل 69","القاهرة","القاهرة","مصر",250]
["عميل 70","الفسطاط الجديدة","القاهرة","مصر",700]
["عميل 71","مدينة نصر","القاهرة","مصر",550]
["عميل 72","القصر العينى","القاهرة","مصر",375]
["عميل 73","القصر العينى","القاهرة","مصر",570]
["عميل 74","القصر العينى","القاهرة","مصر",342]
["عميل 75","الإسكندرية","الإسكندرية","مصر",3500]
["عميل 76","المنيا","المنيا","مصر",1050]
["عميل 77","حلوان","الجيزة","مصر",1150]
["عميل 78","أشمون","المنوفية","مصر",250]
["عميل 79","دار السلام","القاهرة","مصر",125]
["عميل 80","القصر العينى","القاهرة","مصر",5]
["عميل 81","القصر العينى","القاهرة","مصر",1750]
["عميل 82","كرداسة","الجيزة","مصر",300]
["عميل 83","القصر العينى","القاهرة","مصر",6450]
["عميل 84","سوهاج","سوهاج","مصر",288]
["عميل 85","القصر العينى","القاهرة","مصر",875]
["عميل 86","القصر العينى","القاهرة","مصر",340]
["عميل 87","الشيخ زايد","القاهرة","مصر",1500]
["عميل 88","الأقصر","الأقصر","مصر",450]
["عميل 89","فيصل","الجيزة","مصر",225]
["عميل 90","القصر العينى","القاهرة","مصر",40]
["عميل 91","القصر العينى","القاهرة","مصر",725]
["عميل 92","المنوفية","المنوفية","مصر",580]
["عميل 93","حدائق القبة","القاهرة","مصر",1950]
["عميل 94","القصر العينى","القاهرة","مصر",75]
["عميل 95","القصر العينى","القاهرة","مصر",600]
["عميل 96","عين شمس","القاهرة","مصر",350]
["عميل 97","القصر العينى","القاهرة","مصر",875]
["عميل 98","القصر العينى","القاهرة","مصر",1400]
["عميل 99","الجمهورية","المنوفية","مصر",75]
["عميل 100","المعادى","القاهرة","مصر",3400]
["عميل 101","المحلة الكبرى","الغربية","مصر",600]
["عميل 102","المحلة الكبرى","الغربية","مصر",1250]
["عميل 103","التجمع الخامس","القاهرة","مصر",325]
["عميل 104","الإسكندرية","الإسكندرية","مصر",909]
["عميل 105","القصر العينى","القاهرة","مصر",675]
["عميل 106","المقطم","القاهرة","مصر",300]
["عميل 107","القصر العينى","القاهرة","مصر",280]
["عميل 108","امبابة","الجيزة","مصر",525]
["عميل 109","القصر العينى","القاهرة","مصر",1050]
["عميل 110","زهراء المعادى","القاهرة","مصر",300]
["عميل 111","القصر العينى","القاهرة","مصر",340]
["عميل 112","المقطم","القاهرة","مصر",36250]
["عميل 113","التجمع الأول","القاهرة","مصر",800]
["عميل 114","القصر العينى","القاهرة","مصر",300]
["عميل 115","الدقى","الجيزة","مصر",150]
["عميل 116","القصر العينى","القاهرة","مصر",70]
["عميل 117","السيدة زينب","القاهرة","مصر",1469]
["عميل 118","المهندسين","الجيزة","مصر",375]
["عميل 119","حدائق القبة","القاهرة","مصر",300]
["عميل 120","المعادى","القاهرة","مصر",420]
["عميل 121","القصر العينى","القاهرة","مصر",1650]
["عميل 122","القصر العينى","القاهرة","مصر",1300]
["عميل 123","القصر العينى","القاهرة","مصر",300]
["عميل 124","القصر العينى","القاهرة","مصر",10000]
["عميل 125","المقطم","القاهرة","مصر",90]
["عميل 126","القصر العينى","القاهرة","مصر",375]
["عميل 127","مصر الجديدة","القاهرة","مصر",105]
["عميل 128","القصر العينى","القاهرة","مصر",780]
["عميل 129","أسيوط","أسيوط","مصر",120]
["عميل 130","القصر العينى","القاهرة","مصر",20]
["عميل 131","مدينة نصر","القاهرة","مصر",300]
["عميل 132","شبرا مصر","القاهرة","مصر",520]
["عميل 133","طنطا","الغربية","مصر",1400]
["عميل 134","القصر العينى","القاهرة","مصر",6850]
["عميل 135","القصر العينى","القاهرة","مصر",375]
["عميل 136","مدينة نصر","القاهرة","مصر",100]
["عميل 137","الهرم","الجيزة","مصر",680]
["عميل 138","القصر العينى","القاهرة","مصر",175]
["عميل 139","القصر العينى","القاهرة","مصر",200]
["عميل 140","القصر العينى","القاهرة","مصر",200]
["عميل 141","الشيخ زايد","القاهرة","مصر",300]
["عميل 142","حدئق الاهرام","القاهرة","مصر",300]
["عميل 143","مستشفى الشرق","الجيزة","مصر",120]
["عميل 144","حدائق القبة","القاهرة","مصر",170]
["عميل 145","القصر العينى","القاهرة","مصر",60]
["عميل 146","ميت غمر","الدقهلية","مصر",900]
["عميل 147","القصر العينى","القاهرة","مصر",80]
["عميل 148","القصر العينى","القاهرة","مصر",270]
["عميل 149","القاهرة","القاهرة","مصر",195]
["عميل 150","نجع حمادى","قنا","مصر",800]
["عميل 151","المعادى","القاهرة","مصر",225]
["عميل 152","ديشنا","قنا","مصر",300]
["عميل 153","بنى سويف","بنى سويف","مصر",90]
["عميل 154","مدينة نصر","القاهرة","مصر",260]
["عميل 155","القصر العينى","القاهرة","مصر",350]
["عميل 156","بنى سويف","بنى سويف","مصر",25]
["عميل 157","رمسيس","القاهرة","مصر",3250]
["عميل 158","التجمع الأول","القاهرة","مصر",75]
["عميل 159","ديشنا","قنا","مصر",1800]
["عميل 160","القصر العينى","القاهرة","مصر",680]
["عميل 161","القصر العينى","القاهرة","مصر",250]
["عميل 162","القصر العينى","القاهرة","مصر",250]
["عميل 163","القاهرة","القاهرة","مصر",70]
["عميل 164","الأقصر","الأقصر","مصر",2100]
["عميل 165","أبو حماد","الشرقية","مصر",1680]
["عميل 166","القصر العينى","القاهرة","مصر",2475]
["عميل 167","الزقازيق","الشرقية","مصر",390]
["عميل 168","المنيرة","القاهرة","مصر",17710]
["عميل 169","القصر العينى","القاهرة","مصر",1650]
["عميل 170","فيصل","الجيزة","مصر",90]
["عميل 171","المهندسين","الجيزة","مصر",3475]
["عميل 172","باب اللوق","القاهرة","مصر",680]
["عميل 173","القصر العينى","القاهرة","مصر",775]
["عميل 174","القصر العينى","القاهرة","مصر",855]
["عميل 175","الخلفاوى","القاهرة","مصر",1050]
["عميل 176","أسيوط","أسيوط","مصر",80]
["عميل 177","القصر العينى","القاهرة","مصر",200]
["عميل 178","الشيخ زايد","القاهرة","مصر",1100]
["عميل 179","مدينة نصر","القاهرة","مصر",660]
["عميل 180","القصر العينى","القاهرة","مصر",1400]
["عميل 181","حدائق القبة","القاهرة","مصر",545]
["عميل 182","دمنهور","البحيرة","مصر",725]
["عميل 183","القصر العينى","القاهرة","مصر",2000]
["عميل 184","القصر العينى","القاهرة","مصر",540]
["عميل 185","امبابة","الجيزة","مصر",375]
["عميل 186","المهندسين","الجيزة","مصر",600]
["عميل 187","العياط","الجيزة","مصر",180]
["عميل 188","القصر العينى","القاهرة","مصر",985]
["عميل 189","أشمون","المنوفية","مصر",40]
["عميل 190","المقطم","القاهرة","مصر",285]
["عميل 191","المهندسين","الجيزة","مصر",2100]
["عميل 192","الهرم","الجيزة","مصر",280]
["عميل 193","القصر العينى","القاهرة","مصر",280]
["عميل 194","القصر العينى","القاهرة","مصر",1095]
["عميل 195","المقطم","القاهرة","مصر",695]
["عميل 196","مدينة نصر","القاهرة","مصر",35]
["عميل 197","القصر العينى","القاهرة","مصر",875]
["عميل 198","القصر العينى","القاهرة","مصر",145]
["عميل 199","القصر العينى","القاهرة","مصر",660]
["عميل 200","المنوفية","المنوفية","مصر",560]
["عميل 201","القصر العينى","القاهرة","مصر",1160]
["عميل 202","القصر العينى","القاهرة","مصر",3750]
["عميل 203","مدينة نصر","القاهرة","مصر",550]
["عميل 204","القصر العينى","القاهرة","مصر",350]
["عميل 205","القصر العينى","القاهرة","مصر",1200]
["عميل 206","سوهاج","سوهاج","مصر",250]
["عميل 207","سوهاج","سوهاج","مصر",285]
["عميل 208","القصر العينى","القاهرة","مصر",420]
["عميل 209","القصر العينى","القاهرة","مصر",150]
["عميل 210","القصر العينى","القاهرة","مصر",150]
["عميل 211","القصر العينى","القاهرة","مصر",9810]
["عميل 212","الجيزة","الجيزة","مصر",10]
["عميل 213","القصر العينى","القاهرة","مصر",2550]
["عميل 214","شبين القناطر","القليوبية","مصر",2625]
["عميل 215","القصر العينى","القاهرة","مصر",700]
["عميل 216","القاهرة","القاهرة","مصر",240]
["عميل 217","الفيوم","الفيوم","مصر",300]
["عميل 218","أسيوط","أسيوط","مصر",40]
["عميل 219","الزقازيق","الشرقية","مصر",300]
["عميل 220","القصر العينى","القاهرة","مصر",80]
["عميل 221","العباسية","القاهرة","مصر",1250]
["عميل 222","الأقصر","الأقصر","مصر",300]
["عميل 223","القصر العينى","القاهرة","مصر",175]
["عميل 224","القصر العينى","القاهرة","مصر",350]
["عميل 225","المرج","القاهرة","مصر",70]
["عميل 226","طنطا","الغربية","مصر",800]
["عميل 227","القاهرة","القاهرة","مصر",15]
["عميل 228","فيصل","القاهرة","مصر",295]
["عميل 229","الخصوص","القليوبية","مصر",120]
["عميل 230","القصر العينى","القاهرة","مصر",390]
["عميل 231","القصر العينى","القاهرة","مصر",7695]
["عميل 232","القصر العينى","القاهرة","مصر",700]
["عميل 233","امبابة","الجيزة","مصر",65]
["عميل 234","القصر العينى","القاهرة","مصر",350]
["عميل 235","القصر العينى","القاهرة","مصر",375]
["عميل 236","القصر العينى","القاهرة","مصر",250]
["عميل 237","القصر العينى","القاهرة","مصر",530]
["عميل 238","القصر العينى","القاهرة","مصر",12000]
["عميل 239","القصر العينى","القاهرة","مصر",1400]
["عميل 240","الفيوم","الفيوم","مصر",1700]
["عميل 241","قليوب","القليوبية","مصر",375]
["عميل 242","الفيوم","الفيوم","مصر",340]
["عميل 243","القصر العينى","القاهرة","مصر",555]
["عميل 244","المنصورة","الدقهلية","مصر",546]
["عميل 245","ارض اللواء","الجيزة","مصر",85]
["عميل 246","القصر العينى","القاهرة","مصر",150]
["عميل 247","الحوامدية","الجيزة","مصر",290]
["عميل 248","القصر العينى","القاهرة","مصر",500]
["عميل 249","القصر العينى","القاهرة","مصر",300]
["عميل 250","الدرب الأحمر","القاهرة","مصر",250]
["عميل 251","القصر العينى","القاهرة","مصر",550]
["عميل 252","مدينة نصر","القاهرة","مصر",180]
["عميل 253","القصر العينى","القاهرة","مصر",95]
["عميل 254","المقطم","القاهرة","مصر",1000]
["عميل 255","المعادى","القاهرة","مصر",370]
["عميل 256","السويس","السويس","مصر",3825]
["عميل 257","الشرابية","القاهرة","مصر",250]
["عميل 258","العجوزة","الجيزة","مصر",250]
["عميل 259","وسط البلد","القاهرة","مصر",375]
["عميل 260","المقطم","القاهرة","مصر",300]
["عميل 261","المعادى","القاهرة","مصر",300]
["عميل 262","مايو","القاهرة","مصر",90]
["عميل 263","القصر العينى","القاهرة","مصر",195]
["عميل 264","العاشر من رمضان","القليوبية","مصر",540]
["عميل 265","القصر العينى","القاهرة","مصر",280]
["عميل 266","المقطم ","القاهرة","مصر",1070]
["عميل 267","القصر العينى","القاهرة","مصر",520]
["عميل 268","الجيزة","الجيزة","مصر",185]
["عميل 269","مدينتي","القاهرة","مصر",1100]
["عميل 270","مصر الجديدة","القاهرة","مصر",700]
["عميل 271","امبابة","الجيزة","مصر",200]
["عميل 272","القصر العينى","القاهرة","مصر",185]
["عميل 273","القصر العينى","القاهرة","مصر",875]
["عميل 274","أبو حماد","الشرقية","مصر",750]
["عميل 275","القصر العينى","القاهرة","مصر",830]
["عميل 276","الجيزة","الجيزة","مصر",650]
["عميل 277","طريق الكباش","الأقصر","مصر",3840]
["عميل 278","السيدة زينب","القاهرة","مصر",190]
["عميل 279","الزقازيق","الشرقية","مصر",510]
["عميل 280","كوبرى القبة","القاهرة","مصر",3210]
["عميل 281","المقطم","القاهرة","مصر",600]
["عميل 282","التجمع الخامس","القاهرة","مصر",9900]
["عميل 283","سوهاج","سوهاج","مصر",1950]
["عميل 284","القصر العينى","القاهرة","مصر",85]
["عميل 285","شبرا مصر","القاهرة","مصر",325]
["عميل 286","القاهرة","القاهرة","مصر",40]
["عميل 287","فيصل","الجيزة","مصر",250]
["عميل 288","الهرم","الجيزة","مصر",80]
["عميل 289","مول العرب","القاهرة","مصر",150]
["عميل 290","ارض الجولف","القاهرة","مصر",12000]
["عميل 291","القصر العينى","القاهرة","مصر",520]
["عميل 292","القصر العينى","القاهرة","مصر",875]
["عميل 293","الهرم","الجيزة","مصر",140]
["عميل 294","القصر العينى","القاهرة","مصر",120]
["عميل 295","مصر الجديدة","القاهرة","مصر",625]
["عميل 296","القصر العينى","القاهرة","مصر",1080]
["عميل 297","حدائق القبة","القاهرة","مصر",500]
["عميل 298","المنصورة","الدقهلية","مصر",4700]
["عميل 299","المنصورة","الدقهلية","مصر",3500]
["عميل 300","الهرم","الجيزة","مصر",342]
["عميل 301","القصر العينى","القاهرة","مصر",250]
["عميل 302","المرج الجديدة","القاهرة","مصر",2800]
["عميل 303","الهرم","الجيزة","مصر",342]
["عميل 304","القصر العينى","القاهرة","مصر",165]
["عميل 305","السادس من أكتوبر","القاهرة","مصر",2495]
["عميل 306","حدائق المعادى","القاهرة","مصر",130]
["عميل 307","جامعة القاهرة","القاهرة","مصر",225]
["عميل 308","القصر العينى","القاهرة","مصر",100]
["عميل 309","القاهرة","القاهرة","مصر",15]
["عميل 310","السيدة زينب","القاهرة","مصر",90]
["عميل 311","القصر العينى","القاهرة","مصر",295]
["عميل 312","مدينة نصر","القاهرة","مصر",650]
["عميل 313","مصر الجديدة","القاهرة","مصر",1450]
["عميل 314","الجيزة","الجيزة","مصر",325]
["عميل 315","الزقازيق","الشرقية","مصر",565]
["عميل 316","الزقازيق","الشرقية","مصر",4225]
["عميل 317","المهندسين","الجيزة","مصر",370]
["عميل 318","البحيرة","البحيرة","مصر",354]
["عميل 319","القصر العينى","القاهرة","مصر",870]
["عميل 320","سوهاج","سوهاج","مصر",300]
["عميل 321","حدائق القبة","القاهرة","مصر",535]
["عميل 322","حدائق القبة","القاهرة","مصر",300]
["عميل 323","القصر العينى","القاهرة","مصر",4800]
["عميل 324","القصر العينى","القاهرة","مصر",3300]
["عميل 325","الإسكندرية","الإسكندرية","مصر",7405]
["عميل 326","الدراسة","القاهرة","مصر",1500]
["عميل 327","القناطر الخيرية","القليوبية","مصر",2500]
["عميل 328","المنصورة","الدقهلية","مصر",4700]
["عميل 329","المعادى","القاهرة","مصر",195]
["عميل 330","القناطر الخيرية","القليوبية","مصر",75]
["عميل 331","القصر العينى","القاهرة","مصر",475]
["عميل 332","القصر العينى","القاهرة","مصر",150]
["عميل 333","الهرم","الجيزة","مصر",185]
["عميل 334","المقطم","القاهرة","مصر",285]
["عميل 335","الدراسة","القاهرة","مصر",2100]
["عميل 336","القصر العينى","القاهرة","مصر",300]
["عميل 337","القصر العينى","القاهرة","مصر",30]
["عميل 338","القصر العينى","القاهرة","مصر",30]
["عميل 339","العاشر من رمضان","القليوبية","مصر",375]
["عميل 340","التجمع الأول","القاهرة","مصر",900]
["عميل 341","الزقازيق","الشرقية","مصر",8000]
["عميل 342","الزقازيق","الشرقية","مصر",825]
["عميل 343","الجمالية","القاهرة","مصر",444]
["عميل 344","المقطم","القاهرة","مصر",40]
["عميل 345","ارض اللواء","الجيزة","مصر",75]
["عميل 346","القصر العينى","القاهرة","مصر",330]
["عميل 347","مصر الجديدة","القاهرة","مصر",13000]
["عميل 348","شبرا الخمية","القليوبية","مصر",65]
["عميل 349","مستشفى الشرق","الجيزة","مصر",375]
["عميل 350","القصر العينى","القاهرة","مصر",110]
["عميل 351","القصر العينى","القاهرة","مصر",1200]
["عميل 352","القاهرة","القاهرة","مصر",160]
["عميل 353","الهرم","الجيزة","مصر",830]
["عميل 354","الزقازيق","الشرقية","مصر",290]
["عميل 355","القصر العينى","القاهرة","مصر",70]
["عميل 356","القصر العينى","القاهرة","مصر",5005]
["عميل 357","القصر العينى","القاهرة","مصر",100]
["عميل 358","مصر القديمة","القاهرة","مصر",80]
["عميل 359","مصر القديمة","القاهرة","مصر",150]
["عميل 360","القصر العينى","القاهرة","مصر",285]
["عميل 361","المحلة الكبرى","الغربية","مصر",2433]
["عميل 362","القصر العينى","القاهرة","مصر",120]
["عميل 363","القصر العينى","القاهرة","مصر",1875]
["عميل 364","شبرا الخمية","القليوبية","مصر",325]
["عميل 365","مستشفى مصر و السودان","القاهرة","مصر",4900]
["عميل 366","المعادى","القاهرة","مصر",300]
["عميل 367","حلوان","القاهرة","مصر",375]
["عميل 368","صلاح سالم","بنى سويف","مصر",750]
["عميل 369","المعادى","القاهرة","مصر",1040]
["عميل 370","العمرانية","الجيزة","مصر",1500]
["عميل 371","شبرا مصر","القاهرة","مصر",775]
["عميل 372","حلوان","القاهرة","مصر",15]
["عميل 373","بولاق الدكرور","الجيزة","مصر",210]
["عميل 374","فيصل","الجيزة","مصر",90]
["عميل 375","ايتاى البارود","البحيرة","مصر",300]
["عميل 376","القصر العينى","القاهرة","مصر",360]
["عميل 377","القصر العينى","القاهرة","مصر",5.5]
["عميل 378","القصر العينى","القاهرة","مصر",80]
["عميل 379","المعادى","القاهرة","مصر",285]
["عميل 380","القصر العينى","القاهرة","مصر",1900]
["عميل 381","التجمع الخامس","القاهرة","مصر",475]
["عميل 382","الغردقة","البحر الأحمر","مصر",116]
["عميل 383","الفسطاط الجديدة","القاهرة","مصر",75]
["عميل 384","جسر السويس","القاهرة","مصر",40]
["عميل 385","شارع السودان","الجيزة","مصر",185]
["عميل 386","القصر العينى","القاهرة","مصر",900]
["عميل 387","القصر العينى","القاهرة","مصر",680]
["عميل 388","القصر العينى","القاهرة","مصر",250]
["عميل 389","القصر العينى","القاهرة","مصر",300]
["عميل 390","المعادى","القاهرة","مصر",2500]
["عميل 391","القصر العينى","القاهرة","مصر",15]
["عميل 392","مدينة نصر","القاهرة","مصر",300]
["عميل 393","حلوان","القاهرة","مصر",350]
["عميل 394","أسيوط","أسيوط","مصر",1111]
["عميل 395","طريق الكباش","الأقصر","مصر",3000]
["عميل 396","القصر العينى","القاهرة","مصر",990]
["عميل 397","شبرا مصر","القاهرة","مصر",1950]
["عميل 398","شبرا مصر","القاهرة","مصر",35]
["عميل 399","القصر العينى","القاهرة","مصر",17500]
["عميل 400","فيصل","الجيزة","مصر",2120]
["عميل 401","القصر العينى","القاهرة","مصر",30]
["عميل 402","المنصورة","الدقهلية","مصر",4000]
["عميل 403","بنى سويف","بنى سويف","مصر",2750]
["عميل 404","بنى سويف","بنى سويف","مصر",2950]
["عميل 405","القصر العينى","القاهرة","مصر",300]
["عميل 406","القصر العينى","القاهرة","مصر",210]
["عميل 407","سوهاج","سوهاج","مصر",606]
["عميل 408","بنى سويف","بنى سويف","مصر",600]
["عميل 409","القصر العينى","القاهرة","مصر",900]
["عميل 410","القصر العينى","القاهرة","مصر",1050]
["عميل 411","التجمع الخامس","القاهرة","مصر",1650]
["عميل 412","القصر العينى","القاهرة","مصر",150]
["عميل 413","القصر العينى","القاهرة","مصر",4380]
["عميل 414","القصر العينى","القاهرة","مصر",225]
["عميل 415","القصر العينى","القاهرة","مصر",195]
["عميل 416","المقطم","القاهرة","مصر",465]
["عميل 417","غمرة","القاهرة","مصر",250]
["عميل 418","الإسماعيلية","الإسماعيلية","مصر",220]
["عميل 419","عين شمس","القاهرة","مصر",600]
["عميل 420","القصر العينى","القاهرة","مصر",420]
["عميل 421","القصر العينى","القاهرة","مصر",595]
["عميل 422","القصر العينى","القاهرة","مصر",1020]
["عميل 423","المعادى","القاهرة","مصر",150]
["عميل 424","القصر العينى","القاهرة","مصر",300]
["عميل 425","القصر العينى","القاهرة","مصر",11750]
["عميل 426","القصر العينى","القاهرة","مصر",4700]
["عميل 427","القصر العينى","القاهرة","مصر",110]
["عميل 428","القصر العينى","القاهرة","مصر",620]
["عميل 429","البساتين","القاهرة","مصر",65]
["عميل 430","العباسية","القاهرة","مصر",3000]
["عميل 431","القصر العينى","القاهرة","مصر",285]
["عميل 432","مدينة نصر","القاهرة","مصر",400]
["عميل 433","الزقازيق","الشرقية","مصر",60]
["عميل 434","الزقازيق","الشرقية","مصر",40]
["عميل 435","شبرا الخيمة","القليوبية","مصر",270]
["عميل 436","القصر العينى","القاهرة","مصر",15]
["عميل 437","المطرية","الجيزة","مصر",1000]
["عميل 438","العمرانية","الجيزة","مصر",550]
["عميل 439","القصر العينى","القاهرة","مصر",1355]
["عميل 440","وسط البلد","القاهرة","مصر",6300]
["عميل 441","سوهاج","سوهاج","مصر",748]
["عميل 442","القصر العينى","القاهرة","مصر",2500]
["عميل 443","الخصوص","القليوبية","مصر",65]
["عميل 444","الوراق","الجيزة","مصر",1685]
["عميل 445","الوراق","الجيزة","مصر",750]
["عميل 446","الهرم","الجيزة","مصر",875]
["عميل 447","المطرية","الجيزة","مصر",400]
["عميل 448","القصر العينى","القاهرة","مصر",65]
["عميل 449","السيدة زينب","القاهرة","مصر",2375]
["عميل 450","ارض اللواء","الجيزة","مصر",1575]
["عميل 451","القصر العينى","القاهرة","مصر",70]
["عميل 452","القاهرة","القاهرة","مصر",350]
["عميل 453","القصر العينى","القاهرة","مصر",815]
["عميل 454","القصر العينى","القاهرة","مصر",275]
["عميل 455","مصر الجديدة","القاهرة","مصر",350]
["عميل 456","القصر العينى","القاهرة","مصر",70]
["عميل 457","مدينة السادات","المنوفية","مصر",300]
["عميل 458","القصر العينى","القاهرة","مصر",45]
["عميل 459","شبين القناطر","القليوبية","مصر",770]
["عميل 460","حلوان","القاهرة","مصر",255]
["عميل 461","حلوان","القاهرة","مصر",15]
["عميل 462","المحلة الكبرى","الغربية","مصر",6800]
["عميل 463","القصر العينى","القاهرة","مصر",65]
["Total",{"$f":"SUBTOTAL(103,Table2[المنطقة])","v":463},null,null,{"$f":"SUBTOTAL(109,Table2[المبلغ])","v":557933.69999999995}]

{"sheet":"تحليل محافظات","index":3,"n_rows":23,"n_cols":3,"rows_kept":23,"cut":false,"hidden":true,"merged":[]}
["المحافظة","عدد عمليات البيع","المبلغ"]
["القاهرة",{"$f":"COUNTIFS(Table1[المحافظة],Table4[[#This Row],[المحافظة]])","v":313},{"$f":"SUMIF(Table1[المحافظة],Table4[[#This Row],[المحافظة]],Table1[السعر])","v":388383.5}]
["الجيزة",{"$f":"COUNTIFS(Table1[المحافظة],Table4[[#This Row],[المحافظة]])","v":55},{"$f":"SUMIF(Table1[المحافظة],Table4[[#This Row],[المحافظة]],Table1[السعر])","v":36304}]
["الدقهلية",{"$f":"COUNTIFS(Table1[المحافظة],Table4[[#This Row],[المحافظة]])","v":7},{"$f":"SUMIF(Table1[المحافظة],Table4[[#This Row],[المحافظة]],Table1[السعر])","v":19246}]
["بنى سويف",{"$f":"COUNTIFS(Table1[المحافظة],Table4[[#This Row],[المحافظة]])","v":10},{"$f":"SUMIF(Table1[المحافظة],Table4[[#This Row],[المحافظة]],Table1[السعر])","v":19045}]
["الشرقية",{"$f":"COUNTIFS(Table1[المحافظة],Table4[[#This Row],[المحافظة]])","v":12},{"$f":"SUMIF(Table1[المحافظة],Table4[[#This Row],[المحافظة]],Table1[السعر])","v":17635}]
["الغربية",{"$f":"COUNTIFS(Table1[المحافظة],Table4[[#This Row],[المحافظة]])","v":7},{"$f":"SUMIF(Table1[المحافظة],Table4[[#This Row],[المحافظة]],Table1[السعر])","v":14308}]
["الإسكندرية",{"$f":"COUNTIFS(Table1[المحافظة],Table4[[#This Row],[المحافظة]])","v":3},{"$f":"SUMIF(Table1[المحافظة],Table4[[#This Row],[المحافظة]],Table1[السعر])","v":11814}]
["الأقصر",{"$f":"COUNTIFS(Table1[المحافظة],Table4[[#This Row],[المحافظة]])","v":5},{"$f":"SUMIF(Table1[المحافظة],Table4[[#This Row],[المحافظة]],Table1[السعر])","v":9690}]
["القليوبية",{"$f":"COUNTIFS(Table1[المحافظة],Table4[[#This Row],[المحافظة]])","v":12},{"$f":"SUMIF(Table1[المحافظة],Table4[[#This Row],[المحافظة]],Table1[السعر])","v":8105}]
["سوهاج",{"$f":"COUNTIFS(Table1[المحافظة],Table4[[#This Row],[المحافظة]])","v":11},{"$f":"SUMIF(Table1[المحافظة],Table4[[#This Row],[المحافظة]],Table1[السعر])","v":7622.2}]
["أسيوط",{"$f":"COUNTIFS(Table1[المحافظة],Table4[[#This Row],[المحافظة]])","v":5},{"$f":"SUMIF(Table1[المحافظة],Table4[[#This Row],[المحافظة]],Table1[السعر])","v":7191}]
["المنيا",{"$f":"COUNTIFS(Table1[المحافظة],Table4[[#This Row],[المحافظة]])","v":2},{"$f":"SUMIF(Table1[المحافظة],Table4[[#This Row],[المحافظة]],Table1[السعر])","v":4350}]
["السويس",{"$f":"COUNTIFS(Table1[المحافظة],Table4[[#This Row],[المحافظة]])","v":1},{"$f":"SUMIF(Table1[المحافظة],Table4[[#This Row],[المحافظة]],Table1[السعر])","v":3825}]
["قنا",{"$f":"COUNTIFS(Table1[المحافظة],Table4[[#This Row],[المحافظة]])","v":3},{"$f":"SUMIF(Table1[المحافظة],Table4[[#This Row],[المحافظة]],Table1[السعر])","v":2900}]
["البحيرة",{"$f":"COUNTIFS(Table1[المحافظة],Table4[[#This Row],[المحافظة]])","v":4},{"$f":"SUMIF(Table1[المحافظة],Table4[[#This Row],[المحافظة]],Table1[السعر])","v":2579}]
["الفيوم",{"$f":"COUNTIFS(Table1[المحافظة],Table4[[#This Row],[المحافظة]])","v":3},{"$f":"SUMIF(Table1[المحافظة],Table4[[#This Row],[المحافظة]],Table1[السعر])","v":2340}]
["المنوفية",{"$f":"COUNTIFS(Table1[المحافظة],Table4[[#This Row],[المحافظة]])","v":6},{"$f":"SUMIF(Table1[المحافظة],Table4[[#This Row],[المحافظة]],Table1[السعر])","v":1805}]
["كفر الشيخ",{"$f":"COUNTIFS(Table1[المحافظة],Table4[[#This Row],[المحافظة]])","v":1},{"$f":"SUMIF(Table1[المحافظة],Table4[[#This Row],[المحافظة]],Table1[السعر])","v":300}]
["الإسماعيلية",{"$f":"COUNTIFS(Table1[المحافظة],Table4[[#This Row],[المحافظة]])","v":1},{"$f":"SUMIF(Table1[المحافظة],Table4[[#This Row],[المحافظة]],Table1[السعر])","v":220}]
["أسوان",{"$f":"COUNTIFS(Table1[المحافظة],Table4[[#This Row],[المحافظة]])","v":1},{"$f":"SUMIF(Table1[المحافظة],Table4[[#This Row],[المحافظة]],Table1[السعر])","v":155}]
["البحر الأحمر",{"$f":"COUNTIFS(Table1[المحافظة],Table4[[#This Row],[المحافظة]])","v":1},{"$f":"SUMIF(Table1[المحافظة],Table4[[#This Row],[المحافظة]],Table1[السعر])","v":116}]
["Total",{"$f":"SUBTOTAL(109,Table4[عدد عمليات البيع])","v":463},{"$f":"SUBTOTAL(109,Table4[المبلغ])","v":557933.69999999995}]

{"sheet":"تحليل عملاء","index":4,"n_rows":297,"n_cols":13,"rows_kept":297,"cut":false,"hidden":false,"merged":[[1,5,5,13],[26,7,26,13],[27,7,27,9],[27,12,27,13],[27,10,27,11],[33,7,33,9],[34,7,34,9],[35,7,35,9],[28,10,28,11],[29,10,29,11],[30,10,30,11],[31,10,31,11],[32,10,32,11],[33,10,33,11],[34,10,34,11],[35,10,35,11],[28,7,28,9],[29,7,29,9],[30,7,30,9],[31,7,31,9],[32,7,32,9],[33,12,33,13],[34,12,34,13],[35,12,35,13],[28,12,28,13],[29,12,29,13],[30,12,30,13],[31,12,31,13],[32,12,32,13]]}
["إسم العميل","المنطقة","المحافظة","عدد البيعات","المبلغ"]
["عميل 1","المقطم","القاهرة",{"$f":"COUNTIFS('بيانات البيع'!A:A,Table3[[#This Row],[إسم العميل]],'بيانات البيع'!B:B,Table3[[#This Row],[المنطقة]],'بيانات البيع'!C:C,Table3[[#This Row],[المحافظة]])","v":0},{"$f":"SUMIFS('بيانات البيع'!E:E,'بيانات البيع'!A:A,Table3[[#This Row],[إسم العميل]],'بيانات البيع'!B:B,Table3[[#This Row],[المنطقة]],'بيانات البيع'!C:C,Table3[[#This Row],[المحافظة]])","v":0},"ترتيب العملاء تنازليا"]
["عميل 2","المنيرة","القاهرة",{"$f":"COUNTIFS('بيانات البيع'!A:A,Table3[[#This Row],[إسم العميل]],'بيانات البيع'!B:B,Table3[[#This Row],[المنطقة]],'بيانات البيع'!C:C,Table3[[#This Row],[المحافظة]])","v":0},{"$f":"SUMIFS('بيانات البيع'!E:E,'بيانات البيع'!A:A,Table3[[#This Row],[إسم العميل]],'بيانات البيع'!B:B,Table3[[#This Row],[المنطقة]],'بيانات البيع'!C:C,Table3[[#This Row],[المحافظة]])","v":0}]
["عميل 3","بنى سويف","بنى سويف",{"$f":"COUNTIFS('بيانات البيع'!A:A,Table3[[#This Row],[إسم العميل]],'بيانات البيع'!B:B,Table3[[#This Row],[المنطقة]],'بيانات البيع'!C:C,Table3[[#This Row],[المحافظة]])","v":0},{"$f":"SUMIFS('بيانات البيع'!E:E,'بيانات البيع'!A:A,Table3[[#This Row],[إسم العميل]],'بيانات البيع'!B:B,Table3[[#This Row],[المنطقة]],'بيانات البيع'!C:C,Table3[[#This Row],[المحافظة]])","v":0}]
["عميل 4","القصر العينى","القاهرة",{"$f":"COUNTIFS('بيانات البيع'!A:A,Table3[[#This Row],[إسم العميل]],'بيانات البيع'!B:B,Table3[[#This Row],[المنطقة]],'بيانات البيع'!C:C,Table3[[#This Row],[المحافظة]])","v":1},{"$f":"SUMIFS('بيانات البيع'!E:E,'بيانات البيع'!A:A,Table3[[#This Row],[إسم العميل]],'بيانات البيع'!B:B,Table3[[#This Row],[المنطقة]],'بيانات البيع'!C:C,Table3[[#This Row],[المحافظة]])","v":150}]
["عميل 5","المنصورة","الدقهلية",{"$f":"COUNTIFS('بيانات البيع'!A:A,Table3[[#This Row],[إسم العميل]],'بيانات البيع'!B:B,Table3[[#This Row],[المنطقة]],'بيانات البيع'!C:C,Table3[[#This Row],[المحافظة]])","v":0},{"$f":"SUMIFS('بيانات البيع'!E:E,'بيانات البيع'!A:A,Table3[[#This Row],[إسم العميل]],'بيانات البيع'!B:B,Table3[[#This Row],[المنطقة]],'بيانات البيع'!C:C,Table3[[#This Row],[المحافظة]])","v":0}]
["عميل 6","القصر العينى","القاهرة",{"$f":"COUNTIFS('بيانات البيع'!A:A,Table3[[#This Row],[إسم العميل]],'بيانات البيع'!B:B,Table3[[#This Row],[المنطقة]],'بيانات البيع'!C:C,Table3[[#This Row],[المحافظة]])","v":0},{"$f":"SUMIFS('بيانات البيع'!E:E,'بيانات البيع'!A:A,Table3[[#This Row],[إسم العميل]],'بيانات البيع'!B:B,Table3[[#This Row],[المنطقة]],'بيانات البيع'!C:C,Table3[[#This Row],[المحافظة]])","v":0}]
["عميل 7","القصر العينى","القاهرة",{"$f":"COUNTIFS('بيانات البيع'!A:A,Table3[[#This Row],[إسم العميل]],'بيانات البيع'!B:B,Table3[[#This Row],[المنطقة]],'بيانات البيع'!C:C,Table3[[#This Row],[المحافظة]])","v":0},{"$f":"SUMIFS('بيانات البيع'!E:E,'بيانات البيع'!A:A,Table3[[#This Row],[إسم العميل]],'بيانات البيع'!B:B,Table3[[#This Row],[المنطقة]],'بيانات البيع'!C:C,Table3[[#This Row],[المحافظة]])","v":0}]
["عميل 8","القصر العينى","القاهرة",{"$f":"COUNTIFS('بيانات البيع'!A:A,Table3[[#This Row],[إسم العميل]],'بيانات البيع'!B:B,Table3[[#This Row],[المنطقة]],'بيانات البيع'!C:C,Table3[[#This Row],[المحافظة]])","v":0},{"$f":"SUMIFS('بيانات البيع'!E:E,'بيانات البيع'!A:A,Table3[[#This Row],[إسم العميل]],'بيانات البيع'!B:B,Table3[[#This Row],[المنطقة]],'بيانات البيع'!C:C,Table3[[#This Row],[المحافظة]])","v":0}]
["عميل 9","القصر العينى","القاهرة",{"$f":"COUNTIFS('بيانات البيع'!A:A,Table3[[#This Row],[إسم العميل]],'بيانات البيع'!B:B,Table3[[#This Row],[المنطقة]],'بيانات البيع'!C:C,Table3[[#This Row],[المحافظة]])","v":0},{"$f":"SUMIFS('بيانات البيع'!E:E,'بيانات البيع'!A:A,Table3[[#This Row],[إسم العميل]],'بيانات البيع'!B:B,Table3[[#This Row],[المنطقة]],'بيانات البيع'!C:C,Table3[[#This Row],[المحافظة]])","v":0}]
["عميل 10","القصر العينى","القاهرة",{"$f":"COUNTIFS('بيانات البيع'!A:A,Table3[[#This Row],[إسم العميل]],'بيانات البيع'!B:B,Table3[[#This Row],[المنطقة]],'بيانات البيع'!C:C,Table3[[#This Row],[المحافظة]])","v":0},{"$f":"SUMIFS('بيانات البيع'!E:E,'بيانات البيع'!A:A,Table3[[#This Row],[إسم العميل]],'بيانات البيع'!B:B,Table3[[#This Row],[المنطقة]],'بيانات البيع'!C:C,Table3[[#This Row],[المحافظة]])","v":0}]
["عميل 11","القصر العينى","القاهرة",{"$f":"COUNTIFS('بيانات البيع'!A:A,Table3[[#This Row],[إسم العميل]],'بيانات البيع'!B:B,Table3[[#This Row],[المنطقة]],'بيانات البيع'!C:C,Table3[[#This Row],[المحافظة]])","v":1},{"$f":"SUMIFS('بيانات البيع'!E:E,'بيانات البيع'!A:A,Table3[[#This Row],[إسم العميل]],'بيانات البيع'!B:B,Table3[[#This Row],[المنطقة]],'بيانات البيع'!C:C,Table3[[#This Row],[المحافظة]])","v":760}]
["عميل 12","مصر الجديدة","القاهرة",{"$f":"COUNTIFS('بيانات البيع'!A:A,Table3[[#This Row],[إسم العميل]],'بيانات البيع'!B:B,Table3[[#This Row],[المنطقة]],'بيانات البيع'!C:C,Table3[[#This Row],[المحافظة]])","v":0},{"$f":"SUMIFS('بيانات البيع'!E:E,'بيانات البيع'!A:A,Table3[[#This Row],[إسم العميل]],'بيانات البيع'!B:B,Table3[[#This Row],[المنطقة]],'بيانات البيع'!C:C,Table3[[#This Row],[المحافظة]])","v":0}]
["عميل 13","ارض الجولف","القاهرة",{"$f":"COUNTIFS('بيانات البيع'!A:A,Table3[[#This Row],[إسم العميل]],'بيانات البيع'!B:B,Table3[[#This Row],[المنطقة]],'بيانات البيع'!C:C,Table3[[#This Row],[المحافظة]])","v":0},{"$f":"SUMIFS('بيانات البيع'!E:E,'بيانات البيع'!A:A,Table3[[#This Row],[إسم العميل]],'بيانات البيع'!B:B,Table3[[#This Row],[المنطقة]],'بيانات البيع'!C:C,Table3[[#This Row],[المحافظة]])","v":0}]
["عميل 14","التجمع الخامس","القاهرة",{"$f":"COUNTIFS('بيانات البيع'!A:A,Table3[[#This Row],[إسم العميل]],'بيانات البيع'!B:B,Table3[[#This Row],[المنطقة]],'بيانات البيع'!C:C,Table3[[#This Row],[المحافظة]])","v":0},{"$f":"SUMIFS('بيانات البيع'!E:E,'بيانات البيع'!A:A,Table3[[#This Row],[إسم العميل]],'بيانات البيع'!B:B,Table3[[#This Row],[المنطقة]],'بيانات البيع'!C:C,Table3[[#This Row],[المحافظة]])","v":0}]
["عميل 15","الزقازيق","الشرقية",{"$f":"COUNTIFS('بيانات البيع'!A:A,Table3[[#This Row],[إسم العميل]],'بيانات البيع'!B:B,Table3[[#This Row],[المنطقة]],'بيانات البيع'!C:C,Table3[[#This Row],[المحافظة]])","v":0},{"$f":"SUMIFS('بيانات البيع'!E:E,'بيانات البيع'!A:A,Table3[[#This Row],[إسم العميل]],'بيانات البيع'!B:B,Table3[[#This Row],[المنطقة]],'بيانات البيع'!C:C,Table3[[#This Row],[المحافظة]])","v":0}]
["عميل 16","القصر العينى","القاهرة",{"$f":"COUNTIFS('بيانات البيع'!A:A,Table3[[#This Row],[إسم العميل]],'بيانات البيع'!B:B,Table3[[#This Row],[المنطقة]],'بيانات البيع'!C:C,Table3[[#This Row],[المحافظة]])","v":1},{"$f":"SUMIFS('بيانات البيع'!E:E,'بيانات البيع'!A:A,Table3[[#This Row],[إسم العميل]],'بيانات البيع'!B:B,Table3[[#This Row],[المنطقة]],'بيانات البيع'!C:C,Table3[[#This Row],[المحافظة]])","v":1300}]
["عميل 17","القصر العينى","القاهرة",{"$f":"COUNTIFS('بيانات البيع'!A:A,Table3[[#This Row],[إسم العميل]],'بيانات البيع'!B:B,Table3[[#This Row],[المنطقة]],'بيانات البيع'!C:C,Table3[[#This Row],[المحافظة]])","v":0},{"$f":"SUMIFS('بيانات البيع'!E:E,'بيانات البيع'!A:A,Table3[[#This Row],[إسم العميل]],'بيانات البيع'!B:B,Table3[[#This Row],[المنطقة]],'بيانات البيع'!C:C,Table3[[#This Row],[المحافظة]])","v":0}]
["عميل 18","القصر العينى","القاهرة",{"$f":"COUNTIFS('بيانات البيع'!A:A,Table3[[#This Row],[إسم العميل]],'بيانات البيع'!B:B,Table3[[#This Row],[المنطقة]],'بيانات البيع'!C:C,Table3[[#This Row],[المحافظة]])","v":1},{"$f":"SUMIFS('بيانات البيع'!E:E,'بيانات البيع'!A:A,Table3[[#This Row],[إسم العميل]],'بيانات البيع'!B:B,Table3[[#This Row],[المنطقة]],'بيانات البيع'!C:C,Table3[[#This Row],[المحافظة]])","v":990}]
["عميل 19","الإسكندرية","الإسكندرية",{"$f":"COUNTIFS('بيانات البيع'!A:A,Table3[[#This Row],[إسم العميل]],'بيانات البيع'!B:B,Table3[[#This Row],[المنطقة]],'بيانات البيع'!C:C,Table3[[#This Row],[المحافظة]])","v":0},{"$f":"SUMIFS('بيانات البيع'!E:E,'بيانات البيع'!A:A,Table3[[#This Row],[إسم العميل]],'بيانات البيع'!B:B,Table3[[#This Row],[المنطقة]],'بيانات البيع'!C:C,Table3[[#This Row],[المحافظة]])","v":0}]
["عميل 20","المعادى","القاهرة",{"$f":"COUNTIFS('بيانات البيع'!A:A,Table3[[#This Row],[إسم العميل]],'بيانات البيع'!B:B,Table3[[#This Row],[المنطقة]],'بيانات البيع'!C:C,Table3[[#This Row],[المحافظة]])","v":0},{"$f":"SUMIFS('بيانات البيع'!E:E,'بيانات البيع'!A:A,Table3[[#This Row],[إسم العميل]],'بيانات البيع'!B:B,Table3[[#This Row],[المنطقة]],'بيانات البيع'!C:C,Table3[[#This Row],[المحافظة]])","v":0}]
["عميل 21","القصر العينى","القاهرة",{"$f":"COUNTIFS('بيانات البيع'!A:A,Table3[[#This Row],[إسم العميل]],'بيانات البيع'!B:B,Table3[[#This Row],[المنطقة]],'بيانات البيع'!C:C,Table3[[#This Row],[المحافظة]])","v":1},{"$f":"SUMIFS('بيانات البيع'!E:E,'بيانات البيع'!A:A,Table3[[#This Row],[إسم العميل]],'بيانات البيع'!B:B,Table3[[#This Row],[المنطقة]],'بيانات البيع'!C:C,Table3[[#This Row],[المحافظة]])","v":240}]
["عميل 22","طريق الكباش","الأقصر",{"$f":"COUNTIFS('بيانات البيع'!A:A,Table3[[#This Row],[إسم العميل]],'بيانات البيع'!B:B,Table3[[#This Row],[المنطقة]],'بيانات البيع'!C:C,Table3[[#This Row],[المحافظة]])","v":0},{"$f":"SUMIFS('بيانات البيع'!E:E,'بيانات البيع'!A:A,Table3[[#This Row],[إسم العميل]],'بيانات البيع'!B:B,Table3[[#This Row],[المنطقة]],'بيانات البيع'!C:C,Table3[[#This Row],[المحافظة]])","v":0}]
["عميل 23","المحلة الكبرى","الغربية",{"$f":"COUNTIFS('بيانات البيع'!A:A,Table3[[#This Row],[إسم العميل]],'بيانات البيع'!B:B,Table3[[#This Row],[المنطقة]],'بيانات البيع'!C:C,Table3[[#This Row],[المحافظة]])","v":0},{"$f":"SUMIFS('بيانات البيع'!E:E,'بيانات البيع'!A:A,Table3[[#This Row],[إسم العميل]],'بيانات البيع'!B:B,Table3[[#This Row],[المنطقة]],'بيانات البيع'!C:C,Table3[[#This Row],[المحافظة]])","v":0}]
["عميل 24","وسط البلد","القاهرة",{"$f":"COUNTIFS('بيانات البيع'!A:A,Table3[[#This Row],[إسم العميل]],'بيانات البيع'!B:B,Table3[[#This Row],[المنطقة]],'بيانات البيع'!C:C,Table3[[#This Row],[المحافظة]])","v":0},{"$f":"SUMIFS('بيانات البيع'!E:E,'بيانات البيع'!A:A,Table3[[#This Row],[إسم العميل]],'بيانات البيع'!B:B,Table3[[#This Row],[المنطقة]],'بيانات البيع'!C:C,Table3[[#This Row],[المحافظة]])","v":0}]
["عميل 25","أسيوط","أسيوط",{"$f":"COUNTIFS('بيانات البيع'!A:A,Table3[[#This Row],[إسم العميل]],'بيانات البيع'!B:B,Table3[[#This Row],[المنطقة]],'بيانات البيع'!C:C,Table3[[#This Row],[المحافظة]])","v":0},{"$f":"SUMIFS('بيانات البيع'!E:E,'بيانات البيع'!A:A,Table3[[#This Row],[إسم العميل]],'بيانات البيع'!B:B,Table3[[#This Row],[المنطقة]],'بيانات البيع'!C:C,Table3[[#This Row],[المحافظة]])","v":0}]
["عميل 26","المهندسين","الجيزة",{"$f":"COUNTIFS('بيانات البيع'!A:A,Table3[[#This Row],[إسم العميل]],'بيانات البيع'!B:B,Table3[[#This Row],[المنطقة]],'بيانات البيع'!C:C,Table3[[#This Row],[المحافظة]])","v":0},{"$f":"SUMIFS('بيانات البيع'!E:E,'بيانات البيع'!A:A,Table3[[#This Row],[إسم العميل]],'بيانات البيع'!B:B,Table3[[#This Row],[المنطقة]],'بيانات البيع'!C:C,Table3[[#This Row],[المحافظة]])","v":0},null,null,"أفضل العملاء من حيث عدد عمليات الشراء خلال الشهر"]
["عميل 27","القصر العينى","القاهرة",{"$f":"COUNTIFS('بيانات البيع'!A:A,Table3[[#This Row],[إسم العميل]],'بيانات البيع'!B:B,Table3[[#This Row],[المنطقة]],'بيانات البيع'!C:C,Table3[[#This Row],[المحافظة]])","v":0},{"$f":"SUMIFS('بيانات البيع'!E:E,'بيانات البيع'!A:A,Table3[[#This Row],[إسم العميل]],'بيانات البيع'!B:B,Table3[[#This Row],[المنطقة]],'بيانات البيع'!C:C,Table3[[#This Row],[المحافظة]])","v":0},null,null,"إسم العميل",null,null,"عدد عمليات الشراء",null,"المبلغ"]
["عميل 28","القصر العينى","القاهرة",{"$f":"COUNTIFS('بيانات البيع'!A:A,Table3[[#This Row],[إسم العميل]],'بيانات البيع'!B:B,Table3[[#This Row],[المنطقة]],'بيانات البيع'!C:C,Table3[[#This Row],[المحافظة]])","v":0},{"$f":"SUMIFS('بيانات البيع'!E:E,'بيانات البيع'!A:A,Table3[[#This Row],[إسم العميل]],'بيانات البيع'!B:B,Table3[[#This Row],[المنطقة]],'بيانات البيع'!C:C,Table3[[#This Row],[المحافظة]])","v":0},null,null,"عميل 1",null,null,{"$f":"COUNTIF('بيانات البيع'!A:A,H29)","v":1},null,{"$f":"SUMIFS('بيانات البيع'!E:E,'بيانات البيع'!A:A,H29)","v":525.20000000000005}]
["عميل 29","القصر العينى","القاهرة",{"$f":"COUNTIFS('بيانات البيع'!A:A,Table3[[#This Row],[إسم العميل]],'بيانات البيع'!B:B,Table3[[#This Row],[المنطقة]],'بيانات البيع'!C:C,Table3[[#This Row],[المحافظة]])","v":0},{"$f":"SUMIFS('بيانات البيع'!E:E,'بيانات البيع'!A:A,Table3[[#This Row],[إسم العميل]],'بيانات البيع'!B:B,Table3[[#This Row],[المنطقة]],'بيانات البيع'!C:C,Table3[[#This Row],[المحافظة]])","v":0},null,null,"عميل 2",null,null,{"$f":"COUNTIF('بيانات البيع'!A:A,H30)","v":1},null,{"$f":"SUMIFS('بيانات البيع'!E:E,'بيانات البيع'!A:A,H30)","v":65}]
["عميل 30","مستشفى مصر و السودان","القاهرة",{"$f":"COUNTIFS('بيانات البيع'!A:A,Table3[[#This Row],[إسم العميل]],'بيانات البيع'!B:B,Table3[[#This Row],[المنطقة]],'بيانات البيع'!C:C,Table3[[#This Row],[المحافظة]])","v":0},{"$f":"SUMIFS('بيانات البيع'!E:E,'بيانات البيع'!A:A,Table3[[#This Row],[إسم العميل]],'بيانات البيع'!B:B,Table3[[#This Row],[المنطقة]],'بيانات البيع'!C:C,Table3[[#This Row],[المحافظة]])","v":0},null,null,"عميل 3",null,null,{"$f":"COUNTIF('بيانات البيع'!A:A,H31)","v":1},null,{"$f":"SUMIFS('بيانات البيع'!E:E,'بيانات البيع'!A:A,H31)","v":1100}]
["عميل 31","حلوان","الجيزة",{"$f":"COUNTIFS('بيانات البيع'!A:A,Table3[[#This Row],[إسم العميل]],'بيانات البيع'!B:B,Table3[[#This Row],[المنطقة]],'بيانات البيع'!C:C,Table3[[#This Row],[المحافظة]])","v":0},{"$f":"SUMIFS('بيانات البيع'!E:E,'بيانات البيع'!A:A,Table3[[#This Row],[إسم العميل]],'بيانات البيع'!B:B,Table3[[#This Row],[المنطقة]],'بيانات البيع'!C:C,Table3[[#This Row],[المحافظة]])","v":0},null,null,"عميل 4",null,null,{"$f":"COUNTIF('بيانات البيع'!A:A,H32)","v":1},null,{"$f":"SUMIFS('بيانات البيع'!E:E,'بيانات البيع'!A:A,H32)","v":150}]
["عميل 32","الزقازيق","الشرقية",{"$f":"COUNTIFS('بيانات البيع'!A:A,Table3[[#This Row],[إسم العميل]],'بيانات البيع'!B:B,Table3[[#This Row],[المنطقة]],'بيانات البيع'!C:C,Table3[[#This Row],[المحافظة]])","v":0},{"$f":"SUMIFS('بيانات البيع'!E:E,'بيانات البيع'!A:A,Table3[[#This Row],[إسم العميل]],'بيانات البيع'!B:B,Table3[[#This Row],[المنطقة]],'بيانات البيع'!C:C,Table3[[#This Row],[المحافظة]])","v":0},null,null,"عميل 5",null,null,{"$f":"COUNTIF('بيانات البيع'!A:A,H33)","v":1},null,{"$f":"SUMIFS('بيانات البيع'!E:E,'بيانات البيع'!A:A,H33)","v":900}]
["عميل 33","السويس","السويس",{"$f":"COUNTIFS('بيانات البيع'!A:A,Table3[[#This Row],[إسم العميل]],'بيانات البيع'!B:B,Table3[[#This Row],[المنطقة]],'بيانات البيع'!C:C,Table3[[#This Row],[المحافظة]])","v":0},{"$f":"SUMIFS('بيانات البيع'!E:E,'بيانات البيع'!A:A,Table3[[#This Row],[إسم العميل]],'بيانات البيع'!B:B,Table3[[#This Row],[المنطقة]],'بيانات البيع'!C:C,Table3[[#This Row],[المحافظة]])","v":0},null,null,"عميل 6",null,null,{"$f":"COUNTIF('بيانات البيع'!A:A,H34)","v":1},null,{"$f":"SUMIFS('بيانات البيع'!E:E,'بيانات البيع'!A:A,H34)","v":1025}]
["عميل 34","الشيخ زايد","القاهرة",{"$f":"COUNTIFS('بيانات البيع'!A:A,Table3[[#This Row],[إسم العميل]],'بيانات البيع'!B:B,Table3[[#This Row],[المنطقة]],'بيانات البيع'!C:C,Table3[[#This Row],[المحافظة]])","v":1},{"$f":"SUMIFS('بيانات البيع'!E:E,'بيانات البيع'!A:A,Table3[[#This Row],[إسم العميل]],'بيانات البيع'!B:B,Table3[[#This Row],[المنطقة]],'بيانات البيع'!C:C,Table3[[#This Row],[المحافظة]])","v":1100},null,null,"عميل 7",null,null,{"$f":"COUNTIF('بيانات البيع'!A:A,H35)","v":1},null,{"$f":"SUMIFS('بيانات البيع'!E:E,'بيانات البيع'!A:A,H35)","v":5840}]
["عميل 35","القصر العينى","القاهرة",{"$f":"COUNTIFS('بيانات البيع'!A:A,Table3[[#This Row],[إسم العميل]],'بيانات البيع'!B:B,Table3[[#This Row],[المنطقة]],'بيانات البيع'!C:C,Table3[[#This Row],[المحافظة]])","v":0},{"$f":"SUMIFS('بيانات البيع'!E:E,'بيانات البيع'!A:A,Table3[[#This Row],[إسم العميل]],'بيانات البيع'!B:B,Table3[[#This Row],[المنطقة]],'بيانات البيع'!C:C,Table3[[#This Row],[المحافظة]])","v":0}]
["عميل 36","الدراسة","القاهرة",{"$f":"COUNTIFS('بيانات البيع'!A:A,Table3[[#This Row],[إسم العميل]],'بيانات البيع'!B:B,Table3[[#This Row],[المنطقة]],'بيانات البيع'!C:C,Table3[[#This Row],[المحافظة]])","v":0},{"$f":"SUMIFS('بيانات البيع'!E:E,'بيانات البيع'!A:A,Table3[[#This Row],[إسم العميل]],'بيانات البيع'!B:B,Table3[[#This Row],[المنطقة]],'بيانات البيع'!C:C,Table3[[#This Row],[المحافظة]])","v":0}]
["عميل 37","الإسكندرية","الإسكندرية",{"$f":"COUNTIFS('بيانات البيع'!A:A,Table3[[#This Row],[إسم العميل]],'بيانات البيع'!B:B,Table3[[#This Row],[المنطقة]],'بيانات البيع'!C:C,Table3[[#This Row],[المحافظة]])","v":0},{"$f":"SUMIFS('بيانات البيع'!E:E,'بيانات البيع'!A:A,Table3[[#This Row],[إسم العميل]],'بيانات البيع'!B:B,Table3[[#This Row],[المنطقة]],'بيانات البيع'!C:C,Table3[[#This Row],[المحافظة]])","v":0}]
["عميل 38","المحلة الكبرى","الغربية",{"$f":"COUNTIFS('بيانات البيع'!A:A,Table3[[#This Row],[إسم العميل]],'بيانات البيع'!B:B,Table3[[#This Row],[المنطقة]],'بيانات البيع'!C:C,Table3[[#This Row],[المحافظة]])","v":0},{"$f":"SUMIFS('بيانات البيع'!E:E,'بيانات البيع'!A:A,Table3[[#This Row],[إسم العميل]],'بيانات البيع'!B:B,Table3[[#This Row],[المنطقة]],'بيانات البيع'!C:C,Table3[[#This Row],[المحافظة]])","v":0}]
["عميل 39","الهرم","الجيزة",{"$f":"COUNTIFS('بيانات البيع'!A:A,Table3[[#This Row],[إسم العميل]],'بيانات البيع'!B:B,Table3[[#This Row],[المنطقة]],'بيانات البيع'!C:C,Table3[[#This Row],[المحافظة]])","v":0},{"$f":"SUMIFS('بيانات البيع'!E:E,'بيانات البيع'!A:A,Table3[[#This Row],[إسم العميل]],'بيانات البيع'!B:B,Table3[[#This Row],[المنطقة]],'بيانات البيع'!C:C,Table3[[#This Row],[المحافظة]])","v":0}]
["عميل 40","شبين القناطر","القليوبية",{"$f":"COUNTIFS('بيانات البيع'!A:A,Table3[[#This Row],[إسم العميل]],'بيانات البيع'!B:B,Table3[[#This Row],[المنطقة]],'بيانات البيع'!C:C,Table3[[#This Row],[المحافظة]])","v":0},{"$f":"SUMIFS('بيانات البيع'!E:E,'بيانات البيع'!A:A,Table3[[#This Row],[إسم العميل]],'بيانات البيع'!B:B,Table3[[#This Row],[المنطقة]],'بيانات البيع'!C:C,Table3[[#This Row],[المحافظة]])","v":0}]
["عميل 41","ارض اللواء","الجيزة",{"$f":"COUNTIFS('بيانات البيع'!A:A,Table3[[#This Row],[إسم العميل]],'بيانات البيع'!B:B,Table3[[#This Row],[المنطقة]],'بيانات البيع'!C:C,Table3[[#This Row],[المحافظة]])","v":0},{"$f":"SUMIFS('بيانات البيع'!E:E,'بيانات البيع'!A:A,Table3[[#This Row],[إسم العميل]],'بيانات البيع'!B:B,Table3[[#This Row],[المنطقة]],'بيانات البيع'!C:C,Table3[[#This Row],[المحافظة]])","v":0}]
["عميل 42","المنيا","المنيا",{"$f":"COUNTIFS('بيانات البيع'!A:A,Table3[[#This Row],[إسم العميل]],'بيانات البيع'!B:B,Table3[[#This Row],[المنطقة]],'بيانات البيع'!C:C,Table3[[#This Row],[المحافظة]])","v":0},{"$f":"SUMIFS('بيانات البيع'!E:E,'بيانات البيع'!A:A,Table3[[#This Row],[إسم العميل]],'بيانات البيع'!B:B,Table3[[#This Row],[المنطقة]],'بيانات البيع'!C:C,Table3[[#This Row],[المحافظة]])","v":0}]
["عميل 43","رمسيس","القاهرة",{"$f":"COUNTIFS('بيانات البيع'!A:A,Table3[[#This Row],[إسم العميل]],'بيانات البيع'!B:B,Table3[[#This Row],[المنطقة]],'بيانات البيع'!C:C,Table3[[#This Row],[المحافظة]])","v":0},{"$f":"SUMIFS('بيانات البيع'!E:E,'بيانات البيع'!A:A,Table3[[#This Row],[إسم العميل]],'بيانات البيع'!B:B,Table3[[#This Row],[المنطقة]],'بيانات البيع'!C:C,Table3[[#This Row],[المحافظة]])","v":0}]
["عميل 44","كوبرى القبة","القاهرة",{"$f":"COUNTIFS('بيانات البيع'!A:A,Table3[[#This Row],[إسم العميل]],'بيانات البيع'!B:B,Table3[[#This Row],[المنطقة]],'بيانات البيع'!C:C,Table3[[#This Row],[المحافظة]])","v":0},{"$f":"SUMIFS('بيانات البيع'!E:E,'بيانات البيع'!A:A,Table3[[#This Row],[إسم العميل]],'بيانات البيع'!B:B,Table3[[#This Row],[المنطقة]],'بيانات البيع'!C:C,Table3[[#This Row],[المحافظة]])","v":0}]
["عميل 45","العباسية","القاهرة",{"$f":"COUNTIFS('بيانات البيع'!A:A,Table3[[#This Row],[إسم العميل]],'بيانات البيع'!B:B,Table3[[#This Row],[المنطقة]],'بيانات البيع'!C:C,Table3[[#This Row],[المحافظة]])","v":0},{"$f":"SUMIFS('بيانات البيع'!E:E,'بيانات البيع'!A:A,Table3[[#This Row],[إسم العميل]],'بيانات البيع'!B:B,Table3[[#This Row],[المنطقة]],'بيانات البيع'!C:C,Table3[[#This Row],[المحافظة]])","v":0}]
["عميل 46","القصر العينى","القاهرة",{"$f":"COUNTIFS('بيانات البيع'!A:A,Table3[[#This Row],[إسم العميل]],'بيانات البيع'!B:B,Table3[[#This Row],[المنطقة]],'بيانات البيع'!C:C,Table3[[#This Row],[المحافظة]])","v":1},{"$f":"SUMIFS('بيانات البيع'!E:E,'بيانات البيع'!A:A,Table3[[#This Row],[إسم العميل]],'بيانات البيع'!B:B,Table3[[#This Row],[المنطقة]],'بيانات البيع'!C:C,Table3[[#This Row],[المحافظة]])","v":980}]
["عميل 47","القصر العينى","القاهرة",{"$f":"COUNTIFS('بيانات البيع'!A:A,Table3[[#This Row],[إسم العميل]],'بيانات البيع'!B:B,Table3[[#This Row],[المنطقة]],'بيانات البيع'!C:C,Table3[[#This Row],[المحافظة]])","v":1},{"$f":"SUMIFS('بيانات البيع'!E:E,'بيانات البيع'!A:A,Table3[[#This Row],[إسم العميل]],'بيانات البيع'!B:B,Table3[[#This Row],[المنطقة]],'بيانات البيع'!C:C,Table3[[#This Row],[المحافظة]])","v":600}]
["عميل 48","المرج الجديدة","القاهرة",{"$f":"COUNTIFS('بيانات البيع'!A:A,Table3[[#This Row],[إسم العميل]],'بيانات البيع'!B:B,Table3[[#This Row],[المنطقة]],'بيانات البيع'!C:C,Table3[[#This Row],[المحافظة]])","v":0},{"$f":"SUMIFS('بيانات البيع'!E:E,'بيانات البيع'!A:A,Table3[[#This Row],[إسم العميل]],'بيانات البيع'!B:B,Table3[[#This Row],[المنطقة]],'بيانات البيع'!C:C,Table3[[#This Row],[المحافظة]])","v":0}]
["عميل 49","القناطر الخيرية","القليوبية",{"$f":"COUNTIFS('بيانات البيع'!A:A,Table3[[#This Row],[إسم العميل]],'بيانات البيع'!B:B,Table3[[#This Row],[المنطقة]],'بيانات البيع'!C:C,Table3[[#This Row],[المحافظة]])","v":0},{"$f":"SUMIFS('بيانات البيع'!E:E,'بيانات البيع'!A:A,Table3[[#This Row],[إسم العميل]],'بيانات البيع'!B:B,Table3[[#This Row],[المنطقة]],'بيانات البيع'!C:C,Table3[[#This Row],[المحافظة]])","v":0}]
["عميل 50","القصر العينى","القاهرة",{"$f":"COUNTIFS('بيانات البيع'!A:A,Table3[[#This Row],[إسم العميل]],'بيانات البيع'!B:B,Table3[[#This Row],[المنطقة]],'بيانات البيع'!C:C,Table3[[#This Row],[المحافظة]])","v":1},{"$f":"SUMIFS('بيانات البيع'!E:E,'بيانات البيع'!A:A,Table3[[#This Row],[إسم العميل]],'بيانات البيع'!B:B,Table3[[#This Row],[المنطقة]],'بيانات البيع'!C:C,Table3[[#This Row],[المحافظة]])","v":325}]
["عميل 51","المعادى","القاهرة",{"$f":"COUNTIFS('بيانات البيع'!A:A,Table3[[#This Row],[إسم العميل]],'بيانات البيع'!B:B,Table3[[#This Row],[المنطقة]],'بيانات البيع'!C:C,Table3[[#This Row],[المحافظة]])","v":0},{"$f":"SUMIFS('بيانات البيع'!E:E,'بيانات البيع'!A:A,Table3[[#This Row],[إسم العميل]],'بيانات البيع'!B:B,Table3[[#This Row],[المنطقة]],'بيانات البيع'!C:C,Table3[[#This Row],[المحافظة]])","v":0}]
["عميل 52","السادس من أكتوبر","القاهرة",{"$f":"COUNTIFS('بيانات البيع'!A:A,Table3[[#This Row],[إسم العميل]],'بيانات البيع'!B:B,Table3[[#This Row],[المنطقة]],'بيانات البيع'!C:C,Table3[[#This Row],[المحافظة]])","v":0},{"$f":"SUMIFS('بيانات البيع'!E:E,'بيانات البيع'!A:A,Table3[[#This Row],[إسم العميل]],'بيانات البيع'!B:B,Table3[[#This Row],[المنطقة]],'بيانات البيع'!C:C,Table3[[#This Row],[المحافظة]])","v":0}]
["عميل 53","الوراق","الجيزة",{"$f":"COUNTIFS('بيانات البيع'!A:A,Table3[[#This Row],[إسم العميل]],'بيانات البيع'!B:B,Table3[[#This Row],[المنطقة]],'بيانات البيع'!C:C,Table3[[#This Row],[المحافظة]])","v":0},{"$f":"SUMIFS('بيانات البيع'!E:E,'بيانات البيع'!A:A,Table3[[#This Row],[إسم العميل]],'بيانات البيع'!B:B,Table3[[#This Row],[المنطقة]],'بيانات البيع'!C:C,Table3[[#This Row],[المحافظة]])","v":0}]
["عميل 54","أبو حماد","الشرقية",{"$f":"COUNTIFS('بيانات البيع'!A:A,Table3[[#This Row],[إسم العميل]],'بيانات البيع'!B:B,Table3[[#This Row],[المنطقة]],'بيانات البيع'!C:C,Table3[[#This Row],[المحافظة]])","v":0},{"$f":"SUMIFS('بيانات البيع'!E:E,'بيانات البيع'!A:A,Table3[[#This Row],[إسم العميل]],'بيانات البيع'!B:B,Table3[[#This Row],[المنطقة]],'بيانات البيع'!C:C,Table3[[#This Row],[المحافظة]])","v":0}]
["عميل 55","السيدة زينب","القاهرة",{"$f":"COUNTIFS('بيانات البيع'!A:A,Table3[[#This Row],[إسم العميل]],'بيانات البيع'!B:B,Table3[[#This Row],[المنطقة]],'بيانات البيع'!C:C,Table3[[#This Row],[المحافظة]])","v":0},{"$f":"SUMIFS('بيانات البيع'!E:E,'بيانات البيع'!A:A,Table3[[#This Row],[إسم العميل]],'بيانات البيع'!B:B,Table3[[#This Row],[المنطقة]],'بيانات البيع'!C:C,Table3[[#This Row],[المحافظة]])","v":0}]
["عميل 56","طها","سوهاج",{"$f":"COUNTIFS('بيانات البيع'!A:A,Table3[[#This Row],[إسم العميل]],'بيانات البيع'!B:B,Table3[[#This Row],[المنطقة]],'بيانات البيع'!C:C,Table3[[#This Row],[المحافظة]])","v":0},{"$f":"SUMIFS('بيانات البيع'!E:E,'بيانات البيع'!A:A,Table3[[#This Row],[إسم العميل]],'بيانات البيع'!B:B,Table3[[#This Row],[المنطقة]],'بيانات البيع'!C:C,Table3[[#This Row],[المحافظة]])","v":0}]
["عميل 57","القصر العينى","القاهرة",{"$f":"COUNTIFS('بيانات البيع'!A:A,Table3[[#This Row],[إسم العميل]],'بيانات البيع'!B:B,Table3[[#This Row],[المنطقة]],'بيانات البيع'!C:C,Table3[[#This Row],[المحافظة]])","v":1},{"$f":"SUMIFS('بيانات البيع'!E:E,'بيانات البيع'!A:A,Table3[[#This Row],[إسم العميل]],'بيانات البيع'!B:B,Table3[[#This Row],[المنطقة]],'بيانات البيع'!C:C,Table3[[#This Row],[المحافظة]])","v":1950}]
["عميل 58","فيصل","الجيزة",{"$f":"COUNTIFS('بيانات البيع'!A:A,Table3[[#This Row],[إسم العميل]],'بيانات البيع'!B:B,Table3[[#This Row],[المنطقة]],'بيانات البيع'!C:C,Table3[[#This Row],[المحافظة]])","v":0},{"$f":"SUMIFS('بيانات البيع'!E:E,'بيانات البيع'!A:A,Table3[[#This Row],[إسم العميل]],'بيانات البيع'!B:B,Table3[[#This Row],[المنطقة]],'بيانات البيع'!C:C,Table3[[#This Row],[المحافظة]])","v":0}]
["عميل 59","حدائق القبة","القاهرة",{"$f":"COUNTIFS('بيانات البيع'!A:A,Table3[[#This Row],[إسم العميل]],'بيانات البيع'!B:B,Table3[[#This Row],[المنطقة]],'بيانات البيع'!C:C,Table3[[#This Row],[المحافظة]])","v":0},{"$f":"SUMIFS('بيانات البيع'!E:E,'بيانات البيع'!A:A,Table3[[#This Row],[إسم العميل]],'بيانات البيع'!B:B,Table3[[#This Row],[المنطقة]],'بيانات البيع'!C:C,Table3[[#This Row],[المحافظة]])","v":0}]
["عميل 60","ديشنا","قنا",{"$f":"COUNTIFS('بيانات البيع'!A:A,Table3[[#This Row],[إسم العميل]],'بيانات البيع'!B:B,Table3[[#This Row],[المنطقة]],'بيانات البيع'!C:C,Table3[[#This Row],[المحافظة]])","v":0},{"$f":"SUMIFS('بيانات البيع'!E:E,'بيانات البيع'!A:A,Table3[[#This Row],[إسم العميل]],'بيانات البيع'!B:B,Table3[[#This Row],[المنطقة]],'بيانات البيع'!C:C,Table3[[#This Row],[المحافظة]])","v":0}]
["عميل 61","الأقصر","الأقصر",{"$f":"COUNTIFS('بيانات البيع'!A:A,Table3[[#This Row],[إسم العميل]],'بيانات البيع'!B:B,Table3[[#This Row],[المنطقة]],'بيانات البيع'!C:C,Table3[[#This Row],[المحافظة]])","v":0},{"$f":"SUMIFS('بيانات البيع'!E:E,'بيانات البيع'!A:A,Table3[[#This Row],[إسم العميل]],'بيانات البيع'!B:B,Table3[[#This Row],[المنطقة]],'بيانات البيع'!C:C,Table3[[#This Row],[المحافظة]])","v":0}]
["عميل 62","شبرا مصر","القاهرة",{"$f":"COUNTIFS('بيانات البيع'!A:A,Table3[[#This Row],[إسم العميل]],'بيانات البيع'!B:B,Table3[[#This Row],[المنطقة]],'بيانات البيع'!C:C,Table3[[#This Row],[المحافظة]])","v":1},{"$f":"SUMIFS('بيانات البيع'!E:E,'بيانات البيع'!A:A,Table3[[#This Row],[إسم العميل]],'بيانات البيع'!B:B,Table3[[#This Row],[المنطقة]],'بيانات البيع'!C:C,Table3[[#This Row],[المحافظة]])","v":1295}]
["عميل 63","الفيوم","الفيوم",{"$f":"COUNTIFS('بيانات البيع'!A:A,Table3[[#This Row],[إسم العميل]],'بيانات البيع'!B:B,Table3[[#This Row],[المنطقة]],'بيانات البيع'!C:C,Table3[[#This Row],[المحافظة]])","v":0},{"$f":"SUMIFS('بيانات البيع'!E:E,'بيانات البيع'!A:A,Table3[[#This Row],[إسم العميل]],'بيانات البيع'!B:B,Table3[[#This Row],[المنطقة]],'بيانات البيع'!C:C,Table3[[#This Row],[المحافظة]])","v":0}]
["عميل 64","سوهاج","سوهاج",{"$f":"COUNTIFS('بيانات البيع'!A:A,Table3[[#This Row],[إسم العميل]],'بيانات البيع'!B:B,Table3[[#This Row],[المنطقة]],'بيانات البيع'!C:C,Table3[[#This Row],[المحافظة]])","v":0},{"$f":"SUMIFS('بيانات البيع'!E:E,'بيانات البيع'!A:A,Table3[[#This Row],[إسم العميل]],'بيانات البيع'!B:B,Table3[[#This Row],[المنطقة]],'بيانات البيع'!C:C,Table3[[#This Row],[المحافظة]])","v":0}]
["عميل 65","القصر العينى","القاهرة",{"$f":"COUNTIFS('بيانات البيع'!A:A,Table3[[#This Row],[إسم العميل]],'بيانات البيع'!B:B,Table3[[#This Row],[المنطقة]],'بيانات البيع'!C:C,Table3[[#This Row],[المحافظة]])","v":0},{"$f":"SUMIFS('بيانات البيع'!E:E,'بيانات البيع'!A:A,Table3[[#This Row],[إسم العميل]],'بيانات البيع'!B:B,Table3[[#This Row],[المنطقة]],'بيانات البيع'!C:C,Table3[[#This Row],[المحافظة]])","v":0}]
["عميل 66","القصر العينى","القاهرة",{"$f":"COUNTIFS('بيانات البيع'!A:A,Table3[[#This Row],[إسم العميل]],'بيانات البيع'!B:B,Table3[[#This Row],[المنطقة]],'بيانات البيع'!C:C,Table3[[#This Row],[المحافظة]])","v":0},{"$f":"SUMIFS('بيانات البيع'!E:E,'بيانات البيع'!A:A,Table3[[#This Row],[إسم العميل]],'بيانات البيع'!B:B,Table3[[#This Row],[المنطقة]],'بيانات البيع'!C:C,Table3[[#This Row],[المحافظة]])","v":0}]
["عميل 67","القصر العينى","القاهرة",{"$f":"COUNTIFS('بيانات البيع'!A:A,Table3[[#This Row],[إسم العميل]],'بيانات البيع'!B:B,Table3[[#This Row],[المنطقة]],'بيانات البيع'!C:C,Table3[[#This Row],[المحافظة]])","v":0},{"$f":"SUMIFS('بيانات البيع'!E:E,'بيانات البيع'!A:A,Table3[[#This Row],[إسم العميل]],'بيانات البيع'!B:B,Table3[[#This Row],[المنطقة]],'بيانات البيع'!C:C,Table3[[#This Row],[المحافظة]])","v":0}]
["عميل 68","المحلة الكبرى","الغربية",{"$f":"COUNTIFS('بيانات البيع'!A:A,Table3[[#This Row],[إسم العميل]],'بيانات البيع'!B:B,Table3[[#This Row],[المنطقة]],'بيانات البيع'!C:C,Table3[[#This Row],[المحافظة]])","v":0},{"$f":"SUMIFS('بيانات البيع'!E:E,'بيانات البيع'!A:A,Table3[[#This Row],[إسم العميل]],'بيانات البيع'!B:B,Table3[[#This Row],[المنطقة]],'بيانات البيع'!C:C,Table3[[#This Row],[المحافظة]])","v":0}]
["عميل 69","ميت غمر","الدقهلية",{"$f":"COUNTIFS('بيانات البيع'!A:A,Table3[[#This Row],[إسم العميل]],'بيانات البيع'!B:B,Table3[[#This Row],[المنطقة]],'بيانات البيع'!C:C,Table3[[#This Row],[المحافظة]])","v":0},{"$f":"SUMIFS('بيانات البيع'!E:E,'بيانات البيع'!A:A,Table3[[#This Row],[إسم العميل]],'بيانات البيع'!B:B,Table3[[#This Row],[المنطقة]],'بيانات البيع'!C:C,Table3[[#This Row],[المحافظة]])","v":0}]
["عميل 70","المقطم","القاهرة",{"$f":"COUNTIFS('بيانات البيع'!A:A,Table3[[#This Row],[إسم العميل]],'بيانات البيع'!B:B,Table3[[#This Row],[المنطقة]],'بيانات البيع'!C:C,Table3[[#This Row],[المحافظة]])","v":0},{"$f":"SUMIFS('بيانات البيع'!E:E,'بيانات البيع'!A:A,Table3[[#This Row],[إسم العميل]],'بيانات البيع'!B:B,Table3[[#This Row],[المنطقة]],'بيانات البيع'!C:C,Table3[[#This Row],[المحافظة]])","v":0}]
["عميل 71","التجمع الأول","القاهرة",{"$f":"COUNTIFS('بيانات البيع'!A:A,Table3[[#This Row],[إسم العميل]],'بيانات البيع'!B:B,Table3[[#This Row],[المنطقة]],'بيانات البيع'!C:C,Table3[[#This Row],[المحافظة]])","v":0},{"$f":"SUMIFS('بيانات البيع'!E:E,'بيانات البيع'!A:A,Table3[[#This Row],[إسم العميل]],'بيانات البيع'!B:B,Table3[[#This Row],[المنطقة]],'بيانات البيع'!C:C,Table3[[#This Row],[المحافظة]])","v":0}]
["عميل 72","القصر العينى","القاهرة",{"$f":"COUNTIFS('بيانات البيع'!A:A,Table3[[#This Row],[إسم العميل]],'بيانات البيع'!B:B,Table3[[#This Row],[المنطقة]],'بيانات البيع'!C:C,Table3[[#This Row],[المحافظة]])","v":1},{"$f":"SUMIFS('بيانات البيع'!E:E,'بيانات البيع'!A:A,Table3[[#This Row],[إسم العميل]],'بيانات البيع'!B:B,Table3[[#This Row],[المنطقة]],'بيانات البيع'!C:C,Table3[[#This Row],[المحافظة]])","v":375}]
["عميل 73","ارض اللواء","الجيزة",{"$f":"COUNTIFS('بيانات البيع'!A:A,Table3[[#This Row],[إسم العميل]],'بيانات البيع'!B:B,Table3[[#This Row],[المنطقة]],'بيانات البيع'!C:C,Table3[[#This Row],[المحافظة]])","v":0},{"$f":"SUMIFS('بيانات البيع'!E:E,'بيانات البيع'!A:A,Table3[[#This Row],[إسم العميل]],'بيانات البيع'!B:B,Table3[[#This Row],[المنطقة]],'بيانات البيع'!C:C,Table3[[#This Row],[المحافظة]])","v":0}]
["عميل 74","القصر العينى","القاهرة",{"$f":"COUNTIFS('بيانات البيع'!A:A,Table3[[#This Row],[إسم العميل]],'بيانات البيع'!B:B,Table3[[#This Row],[المنطقة]],'بيانات البيع'!C:C,Table3[[#This Row],[المحافظة]])","v":1},{"$f":"SUMIFS('بيانات البيع'!E:E,'بيانات البيع'!A:A,Table3[[#This Row],[إسم العميل]],'بيانات البيع'!B:B,Table3[[#This Row],[المنطقة]],'بيانات البيع'!C:C,Table3[[#This Row],[المحافظة]])","v":342}]
["عميل 75","القصر العينى","القاهرة",{"$f":"COUNTIFS('بيانات البيع'!A:A,Table3[[#This Row],[إسم العميل]],'بيانات البيع'!B:B,Table3[[#This Row],[المنطقة]],'بيانات البيع'!C:C,Table3[[#This Row],[المحافظة]])","v":0},{"$f":"SUMIFS('بيانات البيع'!E:E,'بيانات البيع'!A:A,Table3[[#This Row],[إسم العميل]],'بيانات البيع'!B:B,Table3[[#This Row],[المنطقة]],'بيانات البيع'!C:C,Table3[[#This Row],[المحافظة]])","v":0}]
["عميل 76","القصر العينى","القاهرة",{"$f":"COUNTIFS('بيانات البيع'!A:A,Table3[[#This Row],[إسم العميل]],'بيانات البيع'!B:B,Table3[[#This Row],[المنطقة]],'بيانات البيع'!C:C,Table3[[#This Row],[المحافظة]])","v":0},{"$f":"SUMIFS('بيانات البيع'!E:E,'بيانات البيع'!A:A,Table3[[#This Row],[إسم العميل]],'بيانات البيع'!B:B,Table3[[#This Row],[المنطقة]],'بيانات البيع'!C:C,Table3[[#This Row],[المحافظة]])","v":0}]
["عميل 77","القصر العينى","القاهرة",{"$f":"COUNTIFS('بيانات البيع'!A:A,Table3[[#This Row],[إسم العميل]],'بيانات البيع'!B:B,Table3[[#This Row],[المنطقة]],'بيانات البيع'!C:C,Table3[[#This Row],[المحافظة]])","v":0},{"$f":"SUMIFS('بيانات البيع'!E:E,'بيانات البيع'!A:A,Table3[[#This Row],[إسم العميل]],'بيانات البيع'!B:B,Table3[[#This Row],[المنطقة]],'بيانات البيع'!C:C,Table3[[#This Row],[المحافظة]])","v":0}]
["عميل 78","القصر العينى","القاهرة",{"$f":"COUNTIFS('بيانات البيع'!A:A,Table3[[#This Row],[إسم العميل]],'بيانات البيع'!B:B,Table3[[#This Row],[المنطقة]],'بيانات البيع'!C:C,Table3[[#This Row],[المحافظة]])","v":0},{"$f":"SUMIFS('بيانات البيع'!E:E,'بيانات البيع'!A:A,Table3[[#This Row],[إسم العميل]],'بيانات البيع'!B:B,Table3[[#This Row],[المنطقة]],'بيانات البيع'!C:C,Table3[[#This Row],[المحافظة]])","v":0}]
["عميل 79","العمرانية","الجيزة",{"$f":"COUNTIFS('بيانات البيع'!A:A,Table3[[#This Row],[إسم العميل]],'بيانات البيع'!B:B,Table3[[#This Row],[المنطقة]],'بيانات البيع'!C:C,Table3[[#This Row],[المحافظة]])","v":0},{"$f":"SUMIFS('بيانات البيع'!E:E,'بيانات البيع'!A:A,Table3[[#This Row],[إسم العميل]],'بيانات البيع'!B:B,Table3[[#This Row],[المنطقة]],'بيانات البيع'!C:C,Table3[[#This Row],[المحافظة]])","v":0}]
["عميل 80","القصر العينى","القاهرة",{"$f":"COUNTIFS('بيانات البيع'!A:A,Table3[[#This Row],[إسم العميل]],'بيانات البيع'!B:B,Table3[[#This Row],[المنطقة]],'بيانات البيع'!C:C,Table3[[#This Row],[المحافظة]])","v":1},{"$f":"SUMIFS('بيانات البيع'!E:E,'بيانات البيع'!A:A,Table3[[#This Row],[إسم العميل]],'بيانات البيع'!B:B,Table3[[#This Row],[المنطقة]],'بيانات البيع'!C:C,Table3[[#This Row],[المحافظة]])","v":5}]
["عميل 81","السيدة زينب","القاهرة",{"$f":"COUNTIFS('بيانات البيع'!A:A,Table3[[#This Row],[إسم العميل]],'بيانات البيع'!B:B,Table3[[#This Row],[المنطقة]],'بيانات البيع'!C:C,Table3[[#This Row],[المحافظة]])","v":0},{"$f":"SUMIFS('بيانات البيع'!E:E,'بيانات البيع'!A:A,Table3[[#This Row],[إسم العميل]],'بيانات البيع'!B:B,Table3[[#This Row],[المنطقة]],'بيانات البيع'!C:C,Table3[[#This Row],[المحافظة]])","v":0}]
["عميل 82","مصر الجديدة","القاهرة",{"$f":"COUNTIFS('بيانات البيع'!A:A,Table3[[#This Row],[إسم العميل]],'بيانات البيع'!B:B,Table3[[#This Row],[المنطقة]],'بيانات البيع'!C:C,Table3[[#This Row],[المحافظة]])","v":0},{"$f":"SUMIFS('بيانات البيع'!E:E,'بيانات البيع'!A:A,Table3[[#This Row],[إسم العميل]],'بيانات البيع'!B:B,Table3[[#This Row],[المنطقة]],'بيانات البيع'!C:C,Table3[[#This Row],[المحافظة]])","v":0}]
["عميل 83","القصر العينى","القاهرة",{"$f":"COUNTIFS('بيانات البيع'!A:A,Table3[[#This Row],[إسم العميل]],'بيانات البيع'!B:B,Table3[[#This Row],[المنطقة]],'بيانات البيع'!C:C,Table3[[#This Row],[المحافظة]])","v":1},{"$f":"SUMIFS('بيانات البيع'!E:E,'بيانات البيع'!A:A,Table3[[#This Row],[إسم العميل]],'بيانات البيع'!B:B,Table3[[#This Row],[المنطقة]],'بيانات البيع'!C:C,Table3[[#This Row],[المحافظة]])","v":6450}]
["عميل 84","طنطا","الغربية",{"$f":"COUNTIFS('بيانات البيع'!A:A,Table3[[#This Row],[إسم العميل]],'بيانات البيع'!B:B,Table3[[#This Row],[المنطقة]],'بيانات البيع'!C:C,Table3[[#This Row],[المحافظة]])","v":0},{"$f":"SUMIFS('بيانات البيع'!E:E,'بيانات البيع'!A:A,Table3[[#This Row],[إسم العميل]],'بيانات البيع'!B:B,Table3[[#This Row],[المنطقة]],'بيانات البيع'!C:C,Table3[[#This Row],[المحافظة]])","v":0}]
["عميل 85","القصر العينى","القاهرة",{"$f":"COUNTIFS('بيانات البيع'!A:A,Table3[[#This Row],[إسم العميل]],'بيانات البيع'!B:B,Table3[[#This Row],[المنطقة]],'بيانات البيع'!C:C,Table3[[#This Row],[المحافظة]])","v":1},{"$f":"SUMIFS('بيانات البيع'!E:E,'بيانات البيع'!A:A,Table3[[#This Row],[إسم العميل]],'بيانات البيع'!B:B,Table3[[#This Row],[المنطقة]],'بيانات البيع'!C:C,Table3[[#This Row],[المحافظة]])","v":875}]
["عميل 86","القصر العينى","القاهرة",{"$f":"COUNTIFS('بيانات البيع'!A:A,Table3[[#This Row],[إسم العميل]],'بيانات البيع'!B:B,Table3[[#This Row],[المنطقة]],'بيانات البيع'!C:C,Table3[[#This Row],[المحافظة]])","v":1},{"$f":"SUMIFS('بيانات البيع'!E:E,'بيانات البيع'!A:A,Table3[[#This Row],[إسم العميل]],'بيانات البيع'!B:B,Table3[[#This Row],[المنطقة]],'بيانات البيع'!C:C,Table3[[#This Row],[المحافظة]])","v":340}]
["عميل 87","القصر العينى","القاهرة",{"$f":"COUNTIFS('بيانات البيع'!A:A,Table3[[#This Row],[إسم العميل]],'بيانات البيع'!B:B,Table3[[#This Row],[المنطقة]],'بيانات البيع'!C:C,Table3[[#This Row],[المحافظة]])","v":0},{"$f":"SUMIFS('بيانات البيع'!E:E,'بيانات البيع'!A:A,Table3[[#This Row],[إسم العميل]],'بيانات البيع'!B:B,Table3[[#This Row],[المنطقة]],'بيانات البيع'!C:C,Table3[[#This Row],[المحافظة]])","v":0}]
["عميل 88","سوهاج","سوهاج",{"$f":"COUNTIFS('بيانات البيع'!A:A,Table3[[#This Row],[إسم العميل]],'بيانات البيع'!B:B,Table3[[#This Row],[المنطقة]],'بيانات البيع'!C:C,Table3[[#This Row],[المحافظة]])","v":0},{"$f":"SUMIFS('بيانات البيع'!E:E,'بيانات البيع'!A:A,Table3[[#This Row],[إسم العميل]],'بيانات البيع'!B:B,Table3[[#This Row],[المنطقة]],'بيانات البيع'!C:C,Table3[[#This Row],[المحافظة]])","v":0}]
["عميل 89","المقطم","القاهرة",{"$f":"COUNTIFS('بيانات البيع'!A:A,Table3[[#This Row],[إسم العميل]],'بيانات البيع'!B:B,Table3[[#This Row],[المنطقة]],'بيانات البيع'!C:C,Table3[[#This Row],[المحافظة]])","v":0},{"$f":"SUMIFS('بيانات البيع'!E:E,'بيانات البيع'!A:A,Table3[[#This Row],[إسم العميل]],'بيانات البيع'!B:B,Table3[[#This Row],[المنطقة]],'بيانات البيع'!C:C,Table3[[#This Row],[المحافظة]])","v":0}]
["عميل 90","شبرا مصر","القاهرة",{"$f":"COUNTIFS('بيانات البيع'!A:A,Table3[[#This Row],[إسم العميل]],'بيانات البيع'!B:B,Table3[[#This Row],[المنطقة]],'بيانات البيع'!C:C,Table3[[#This Row],[المحافظة]])","v":0},{"$f":"SUMIFS('بيانات البيع'!E:E,'بيانات البيع'!A:A,Table3[[#This Row],[إسم العميل]],'بيانات البيع'!B:B,Table3[[#This Row],[المنطقة]],'بيانات البيع'!C:C,Table3[[#This Row],[المحافظة]])","v":0}]
["عميل 91","المعادى","القاهرة",{"$f":"COUNTIFS('بيانات البيع'!A:A,Table3[[#This Row],[إسم العميل]],'بيانات البيع'!B:B,Table3[[#This Row],[المنطقة]],'بيانات البيع'!C:C,Table3[[#This Row],[المحافظة]])","v":0},{"$f":"SUMIFS('بيانات البيع'!E:E,'بيانات البيع'!A:A,Table3[[#This Row],[إسم العميل]],'بيانات البيع'!B:B,Table3[[#This Row],[المنطقة]],'بيانات البيع'!C:C,Table3[[#This Row],[المحافظة]])","v":0}]
["عميل 92","العباسية","القاهرة",{"$f":"COUNTIFS('بيانات البيع'!A:A,Table3[[#This Row],[إسم العميل]],'بيانات البيع'!B:B,Table3[[#This Row],[المنطقة]],'بيانات البيع'!C:C,Table3[[#This Row],[المحافظة]])","v":0},{"$f":"SUMIFS('بيانات البيع'!E:E,'بيانات البيع'!A:A,Table3[[#This Row],[إسم العميل]],'بيانات البيع'!B:B,Table3[[#This Row],[المنطقة]],'بيانات البيع'!C:C,Table3[[#This Row],[المحافظة]])","v":0}]
["عميل 93","البحيرة","البحيرة",{"$f":"COUNTIFS('بيانات البيع'!A:A,Table3[[#This Row],[إسم العميل]],'بيانات البيع'!B:B,Table3[[#This Row],[المنطقة]],'بيانات البيع'!C:C,Table3[[#This Row],[المحافظة]])","v":0},{"$f":"SUMIFS('بيانات البيع'!E:E,'بيانات البيع'!A:A,Table3[[#This Row],[إسم العميل]],'بيانات البيع'!B:B,Table3[[#This Row],[المنطقة]],'بيانات البيع'!C:C,Table3[[#This Row],[المحافظة]])","v":0}]
["عميل 94","القصر العينى","القاهرة",{"$f":"COUNTIFS('بيانات البيع'!A:A,Table3[[#This Row],[إسم العميل]],'بيانات البيع'!B:B,Table3[[#This Row],[المنطقة]],'بيانات البيع'!C:C,Table3[[#This Row],[المحافظة]])","v":1},{"$f":"SUMIFS('بيانات البيع'!E:E,'بيانات البيع'!A:A,Table3[[#This Row],[إسم العميل]],'بيانات البيع'!B:B,Table3[[#This Row],[المنطقة]],'بيانات البيع'!C:C,Table3[[#This Row],[المحافظة]])","v":75}]
["عميل 95","القصر العينى","القاهرة",{"$f":"COUNTIFS('بيانات البيع'!A:A,Table3[[#This Row],[إسم العميل]],'بيانات البيع'!B:B,Table3[[#This Row],[المنطقة]],'بيانات البيع'!C:C,Table3[[#This Row],[المحافظة]])","v":1},{"$f":"SUMIFS('بيانات البيع'!E:E,'بيانات البيع'!A:A,Table3[[#This Row],[إسم العميل]],'بيانات البيع'!B:B,Table3[[#This Row],[المنطقة]],'بيانات البيع'!C:C,Table3[[#This Row],[المحافظة]])","v":600}]
["عميل 96","أسيوط","أسيوط",{"$f":"COUNTIFS('بيانات البيع'!A:A,Table3[[#This Row],[إسم العميل]],'بيانات البيع'!B:B,Table3[[#This Row],[المنطقة]],'بيانات البيع'!C:C,Table3[[#This Row],[المحافظة]])","v":0},{"$f":"SUMIFS('بيانات البيع'!E:E,'بيانات البيع'!A:A,Table3[[#This Row],[إسم العميل]],'بيانات البيع'!B:B,Table3[[#This Row],[المنطقة]],'بيانات البيع'!C:C,Table3[[#This Row],[المحافظة]])","v":0}]
["عميل 97","مدينتي","القاهرة",{"$f":"COUNTIFS('بيانات البيع'!A:A,Table3[[#This Row],[إسم العميل]],'بيانات البيع'!B:B,Table3[[#This Row],[المنطقة]],'بيانات البيع'!C:C,Table3[[#This Row],[المحافظة]])","v":0},{"$f":"SUMIFS('بيانات البيع'!E:E,'بيانات البيع'!A:A,Table3[[#This Row],[إسم العميل]],'بيانات البيع'!B:B,Table3[[#This Row],[المنطقة]],'بيانات البيع'!C:C,Table3[[#This Row],[المحافظة]])","v":0}]
["عميل 98","مدينة نصر","القاهرة",{"$f":"COUNTIFS('بيانات البيع'!A:A,Table3[[#This Row],[إسم العميل]],'بيانات البيع'!B:B,Table3[[#This Row],[المنطقة]],'بيانات البيع'!C:C,Table3[[#This Row],[المحافظة]])","v":0},{"$f":"SUMIFS('بيانات البيع'!E:E,'بيانات البيع'!A:A,Table3[[#This Row],[إسم العميل]],'بيانات البيع'!B:B,Table3[[#This Row],[المنطقة]],'بيانات البيع'!C:C,Table3[[#This Row],[المحافظة]])","v":0}]
["عميل 99","المقطم ","القاهرة",{"$f":"COUNTIFS('بيانات البيع'!A:A,Table3[[#This Row],[إسم العميل]],'بيانات البيع'!B:B,Table3[[#This Row],[المنطقة]],'بيانات البيع'!C:C,Table3[[#This Row],[المحافظة]])","v":0},{"$f":"SUMIFS('بيانات البيع'!E:E,'بيانات البيع'!A:A,Table3[[#This Row],[إسم العميل]],'بيانات البيع'!B:B,Table3[[#This Row],[المنطقة]],'بيانات البيع'!C:C,Table3[[#This Row],[المحافظة]])","v":0}]
["عميل 100","الخلفاوى","القاهرة",{"$f":"COUNTIFS('بيانات البيع'!A:A,Table3[[#This Row],[إسم العميل]],'بيانات البيع'!B:B,Table3[[#This Row],[المنطقة]],'بيانات البيع'!C:C,Table3[[#This Row],[المحافظة]])","v":0},{"$f":"SUMIFS('بيانات البيع'!E:E,'بيانات البيع'!A:A,Table3[[#This Row],[إسم العميل]],'بيانات البيع'!B:B,Table3[[#This Row],[المنطقة]],'بيانات البيع'!C:C,Table3[[#This Row],[المحافظة]])","v":0}]
["عميل 101","المنيا","المنيا",{"$f":"COUNTIFS('بيانات البيع'!A:A,Table3[[#This Row],[إسم العميل]],'بيانات البيع'!B:B,Table3[[#This Row],[المنطقة]],'بيانات البيع'!C:C,Table3[[#This Row],[المحافظة]])","v":0},{"$f":"SUMIFS('بيانات البيع'!E:E,'بيانات البيع'!A:A,Table3[[#This Row],[إسم العميل]],'بيانات البيع'!B:B,Table3[[#This Row],[المنطقة]],'بيانات البيع'!C:C,Table3[[#This Row],[المحافظة]])","v":0}]
["عميل 102","حدائق القبة","القاهرة",{"$f":"COUNTIFS('بيانات البيع'!A:A,Table3[[#This Row],[إسم العميل]],'بيانات البيع'!B:B,Table3[[#This Row],[المنطقة]],'بيانات البيع'!C:C,Table3[[#This Row],[المحافظة]])","v":0},{"$f":"SUMIFS('بيانات البيع'!E:E,'بيانات البيع'!A:A,Table3[[#This Row],[إسم العميل]],'بيانات البيع'!B:B,Table3[[#This Row],[المنطقة]],'بيانات البيع'!C:C,Table3[[#This Row],[المحافظة]])","v":0}]
["عميل 103","المطرية","الجيزة",{"$f":"COUNTIFS('بيانات البيع'!A:A,Table3[[#This Row],[إسم العميل]],'بيانات البيع'!B:B,Table3[[#This Row],[المنطقة]],'بيانات البيع'!C:C,Table3[[#This Row],[المحافظة]])","v":0},{"$f":"SUMIFS('بيانات البيع'!E:E,'بيانات البيع'!A:A,Table3[[#This Row],[إسم العميل]],'بيانات البيع'!B:B,Table3[[#This Row],[المنطقة]],'بيانات البيع'!C:C,Table3[[#This Row],[المحافظة]])","v":0}]
["عميل 104","القصر العينى","القاهرة",{"$f":"COUNTIFS('بيانات البيع'!A:A,Table3[[#This Row],[إسم العميل]],'بيانات البيع'!B:B,Table3[[#This Row],[المنطقة]],'بيانات البيع'!C:C,Table3[[#This Row],[المحافظة]])","v":0},{"$f":"SUMIFS('بيانات البيع'!E:E,'بيانات البيع'!A:A,Table3[[#This Row],[إسم العميل]],'بيانات البيع'!B:B,Table3[[#This Row],[المنطقة]],'بيانات البيع'!C:C,Table3[[#This Row],[المحافظة]])","v":0}]
["عميل 105","الجيزة","الجيزة",{"$f":"COUNTIFS('بيانات البيع'!A:A,Table3[[#This Row],[إسم العميل]],'بيانات البيع'!B:B,Table3[[#This Row],[المنطقة]],'بيانات البيع'!C:C,Table3[[#This Row],[المحافظة]])","v":0},{"$f":"SUMIFS('بيانات البيع'!E:E,'بيانات البيع'!A:A,Table3[[#This Row],[إسم العميل]],'بيانات البيع'!B:B,Table3[[#This Row],[المنطقة]],'بيانات البيع'!C:C,Table3[[#This Row],[المحافظة]])","v":0}]
["عميل 106","المهندسين","الجيزة",{"$f":"COUNTIFS('بيانات البيع'!A:A,Table3[[#This Row],[إسم العميل]],'بيانات البيع'!B:B,Table3[[#This Row],[المنطقة]],'بيانات البيع'!C:C,Table3[[#This Row],[المحافظة]])","v":0},{"$f":"SUMIFS('بيانات البيع'!E:E,'بيانات البيع'!A:A,Table3[[#This Row],[إسم العميل]],'بيانات البيع'!B:B,Table3[[#This Row],[المنطقة]],'بيانات البيع'!C:C,Table3[[#This Row],[المحافظة]])","v":0}]
["عميل 107","مدينة نصر","القاهرة",{"$f":"COUNTIFS('بيانات البيع'!A:A,Table3[[#This Row],[إسم العميل]],'بيانات البيع'!B:B,Table3[[#This Row],[المنطقة]],'بيانات البيع'!C:C,Table3[[#This Row],[المحافظة]])","v":0},{"$f":"SUMIFS('بيانات البيع'!E:E,'بيانات البيع'!A:A,Table3[[#This Row],[إسم العميل]],'بيانات البيع'!B:B,Table3[[#This Row],[المنطقة]],'بيانات البيع'!C:C,Table3[[#This Row],[المحافظة]])","v":0}]
["عميل 108","عين شمس","القاهرة",{"$f":"COUNTIFS('بيانات البيع'!A:A,Table3[[#This Row],[إسم العميل]],'بيانات البيع'!B:B,Table3[[#This Row],[المنطقة]],'بيانات البيع'!C:C,Table3[[#This Row],[المحافظة]])","v":0},{"$f":"SUMIFS('بيانات البيع'!E:E,'بيانات البيع'!A:A,Table3[[#This Row],[إسم العميل]],'بيانات البيع'!B:B,Table3[[#This Row],[المنطقة]],'بيانات البيع'!C:C,Table3[[#This Row],[المحافظة]])","v":0}]
["عميل 109","القصر العينى","القاهرة",{"$f":"COUNTIFS('بيانات البيع'!A:A,Table3[[#This Row],[إسم العميل]],'بيانات البيع'!B:B,Table3[[#This Row],[المنطقة]],'بيانات البيع'!C:C,Table3[[#This Row],[المحافظة]])","v":1},{"$f":"SUMIFS('بيانات البيع'!E:E,'بيانات البيع'!A:A,Table3[[#This Row],[إسم العميل]],'بيانات البيع'!B:B,Table3[[#This Row],[المنطقة]],'بيانات البيع'!C:C,Table3[[#This Row],[المحافظة]])","v":1050}]
["عميل 110","الإسكندرية","الإسكندرية",{"$f":"COUNTIFS('بيانات البيع'!A:A,Table3[[#This Row],[إسم العميل]],'بيانات البيع'!B:B,Table3[[#This Row],[المنطقة]],'بيانات البيع'!C:C,Table3[[#This Row],[المحافظة]])","v":0},{"$f":"SUMIFS('بيانات البيع'!E:E,'بيانات البيع'!A:A,Table3[[#This Row],[إسم العميل]],'بيانات البيع'!B:B,Table3[[#This Row],[المنطقة]],'بيانات البيع'!C:C,Table3[[#This Row],[المحافظة]])","v":0}]
["عميل 111","مدينة نصر","القاهرة",{"$f":"COUNTIFS('بيانات البيع'!A:A,Table3[[#This Row],[إسم العميل]],'بيانات البيع'!B:B,Table3[[#This Row],[المنطقة]],'بيانات البيع'!C:C,Table3[[#This Row],[المحافظة]])","v":0},{"$f":"SUMIFS('بيانات البيع'!E:E,'بيانات البيع'!A:A,Table3[[#This Row],[إسم العميل]],'بيانات البيع'!B:B,Table3[[#This Row],[المنطقة]],'بيانات البيع'!C:C,Table3[[#This Row],[المحافظة]])","v":0}]
["عميل 112","القصر العينى","القاهرة",{"$f":"COUNTIFS('بيانات البيع'!A:A,Table3[[#This Row],[إسم العميل]],'بيانات البيع'!B:B,Table3[[#This Row],[المنطقة]],'بيانات البيع'!C:C,Table3[[#This Row],[المحافظة]])","v":0},{"$f":"SUMIFS('بيانات البيع'!E:E,'بيانات البيع'!A:A,Table3[[#This Row],[إسم العميل]],'بيانات البيع'!B:B,Table3[[#This Row],[المنطقة]],'بيانات البيع'!C:C,Table3[[#This Row],[المحافظة]])","v":0}]
["عميل 113","سوهاج","سوهاج",{"$f":"COUNTIFS('بيانات البيع'!A:A,Table3[[#This Row],[إسم العميل]],'بيانات البيع'!B:B,Table3[[#This Row],[المنطقة]],'بيانات البيع'!C:C,Table3[[#This Row],[المحافظة]])","v":0},{"$f":"SUMIFS('بيانات البيع'!E:E,'بيانات البيع'!A:A,Table3[[#This Row],[إسم العميل]],'بيانات البيع'!B:B,Table3[[#This Row],[المنطقة]],'بيانات البيع'!C:C,Table3[[#This Row],[المحافظة]])","v":0}]
["عميل 114","حدائق القبة","القاهرة",{"$f":"COUNTIFS('بيانات البيع'!A:A,Table3[[#This Row],[إسم العميل]],'بيانات البيع'!B:B,Table3[[#This Row],[المنطقة]],'بيانات البيع'!C:C,Table3[[#This Row],[المحافظة]])","v":0},{"$f":"SUMIFS('بيانات البيع'!E:E,'بيانات البيع'!A:A,Table3[[#This Row],[إسم العميل]],'بيانات البيع'!B:B,Table3[[#This Row],[المنطقة]],'بيانات البيع'!C:C,Table3[[#This Row],[المحافظة]])","v":0}]
["عميل 115","الهرم","الجيزة",{"$f":"COUNTIFS('بيانات البيع'!A:A,Table3[[#This Row],[إسم العميل]],'بيانات البيع'!B:B,Table3[[#This Row],[المنطقة]],'بيانات البيع'!C:C,Table3[[#This Row],[المحافظة]])","v":0},{"$f":"SUMIFS('بيانات البيع'!E:E,'بيانات البيع'!A:A,Table3[[#This Row],[إسم العميل]],'بيانات البيع'!B:B,Table3[[#This Row],[المنطقة]],'بيانات البيع'!C:C,Table3[[#This Row],[المحافظة]])","v":0}]
["عميل 116","القصر العينى","القاهرة",{"$f":"COUNTIFS('بيانات البيع'!A:A,Table3[[#This Row],[إسم العميل]],'بيانات البيع'!B:B,Table3[[#This Row],[المنطقة]],'بيانات البيع'!C:C,Table3[[#This Row],[المحافظة]])","v":1},{"$f":"SUMIFS('بيانات البيع'!E:E,'بيانات البيع'!A:A,Table3[[#This Row],[إسم العميل]],'بيانات البيع'!B:B,Table3[[#This Row],[المنطقة]],'بيانات البيع'!C:C,Table3[[#This Row],[المحافظة]])","v":70}]
["عميل 117","القصر العينى","القاهرة",{"$f":"COUNTIFS('بيانات البيع'!A:A,Table3[[#This Row],[إسم العميل]],'بيانات البيع'!B:B,Table3[[#This Row],[المنطقة]],'بيانات البيع'!C:C,Table3[[#This Row],[المحافظة]])","v":0},{"$f":"SUMIFS('بيانات البيع'!E:E,'بيانات البيع'!A:A,Table3[[#This Row],[إسم العميل]],'بيانات البيع'!B:B,Table3[[#This Row],[المنطقة]],'بيانات البيع'!C:C,Table3[[#This Row],[المحافظة]])","v":0}]
["عميل 118","القصر العينى","القاهرة",{"$f":"COUNTIFS('بيانات البيع'!A:A,Table3[[#This Row],[إسم العميل]],'بيانات البيع'!B:B,Table3[[#This Row],[المنطقة]],'بيانات البيع'!C:C,Table3[[#This Row],[المحافظة]])","v":0},{"$f":"SUMIFS('بيانات البيع'!E:E,'بيانات البيع'!A:A,Table3[[#This Row],[إسم العميل]],'بيانات البيع'!B:B,Table3[[#This Row],[المنطقة]],'بيانات البيع'!C:C,Table3[[#This Row],[المحافظة]])","v":0}]
["عميل 119","القصر العينى","القاهرة",{"$f":"COUNTIFS('بيانات البيع'!A:A,Table3[[#This Row],[إسم العميل]],'بيانات البيع'!B:B,Table3[[#This Row],[المنطقة]],'بيانات البيع'!C:C,Table3[[#This Row],[المحافظة]])","v":0},{"$f":"SUMIFS('بيانات البيع'!E:E,'بيانات البيع'!A:A,Table3[[#This Row],[إسم العميل]],'بيانات البيع'!B:B,Table3[[#This Row],[المنطقة]],'بيانات البيع'!C:C,Table3[[#This Row],[المحافظة]])","v":0}]
["عميل 120","طنطا","الغربية",{"$f":"COUNTIFS('بيانات البيع'!A:A,Table3[[#This Row],[إسم العميل]],'بيانات البيع'!B:B,Table3[[#This Row],[المنطقة]],'بيانات البيع'!C:C,Table3[[#This Row],[المحافظة]])","v":0},{"$f":"SUMIFS('بيانات البيع'!E:E,'بيانات البيع'!A:A,Table3[[#This Row],[إسم العميل]],'بيانات البيع'!B:B,Table3[[#This Row],[المنطقة]],'بيانات البيع'!C:C,Table3[[#This Row],[المحافظة]])","v":0}]
["عميل 121","نجع حمادى","قنا",{"$f":"COUNTIFS('بيانات البيع'!A:A,Table3[[#This Row],[إسم العميل]],'بيانات البيع'!B:B,Table3[[#This Row],[المنطقة]],'بيانات البيع'!C:C,Table3[[#This Row],[المحافظة]])","v":0},{"$f":"SUMIFS('بيانات البيع'!E:E,'بيانات البيع'!A:A,Table3[[#This Row],[إسم العميل]],'بيانات البيع'!B:B,Table3[[#This Row],[المنطقة]],'بيانات البيع'!C:C,Table3[[#This Row],[المحافظة]])","v":0}]
["عميل 122","شبرا مصر","القاهرة",{"$f":"COUNTIFS('بيانات البيع'!A:A,Table3[[#This Row],[إسم العميل]],'بيانات البيع'!B:B,Table3[[#This Row],[المنطقة]],'بيانات البيع'!C:C,Table3[[#This Row],[المحافظة]])","v":0},{"$f":"SUMIFS('بيانات البيع'!E:E,'بيانات البيع'!A:A,Table3[[#This Row],[إسم العميل]],'بيانات البيع'!B:B,Table3[[#This Row],[المنطقة]],'بيانات البيع'!C:C,Table3[[#This Row],[المحافظة]])","v":0}]
["عميل 123","الفسطاط الجديدة","القاهرة",{"$f":"COUNTIFS('بيانات البيع'!A:A,Table3[[#This Row],[إسم العميل]],'بيانات البيع'!B:B,Table3[[#This Row],[المنطقة]],'بيانات البيع'!C:C,Table3[[#This Row],[المحافظة]])","v":0},{"$f":"SUMIFS('بيانات البيع'!E:E,'بيانات البيع'!A:A,Table3[[#This Row],[إسم العميل]],'بيانات البيع'!B:B,Table3[[#This Row],[المنطقة]],'بيانات البيع'!C:C,Table3[[#This Row],[المحافظة]])","v":0}]
["عميل 124","القصر العينى","القاهرة",{"$f":"COUNTIFS('بيانات البيع'!A:A,Table3[[#This Row],[إسم العميل]],'بيانات البيع'!B:B,Table3[[#This Row],[المنطقة]],'بيانات البيع'!C:C,Table3[[#This Row],[المحافظة]])","v":1},{"$f":"SUMIFS('بيانات البيع'!E:E,'بيانات البيع'!A:A,Table3[[#This Row],[إسم العميل]],'بيانات البيع'!B:B,Table3[[#This Row],[المنطقة]],'بيانات البيع'!C:C,Table3[[#This Row],[المحافظة]])","v":10000}]
["عميل 125","صلاح سالم","بنى سويف",{"$f":"COUNTIFS('بيانات البيع'!A:A,Table3[[#This Row],[إسم العميل]],'بيانات البيع'!B:B,Table3[[#This Row],[المنطقة]],'بيانات البيع'!C:C,Table3[[#This Row],[المحافظة]])","v":0},{"$f":"SUMIFS('بيانات البيع'!E:E,'بيانات البيع'!A:A,Table3[[#This Row],[إسم العميل]],'بيانات البيع'!B:B,Table3[[#This Row],[المنطقة]],'بيانات البيع'!C:C,Table3[[#This Row],[المحافظة]])","v":0}]
["عميل 126","امبابة","الجيزة",{"$f":"COUNTIFS('بيانات البيع'!A:A,Table3[[#This Row],[إسم العميل]],'بيانات البيع'!B:B,Table3[[#This Row],[المنطقة]],'بيانات البيع'!C:C,Table3[[#This Row],[المحافظة]])","v":0},{"$f":"SUMIFS('بيانات البيع'!E:E,'بيانات البيع'!A:A,Table3[[#This Row],[إسم العميل]],'بيانات البيع'!B:B,Table3[[#This Row],[المنطقة]],'بيانات البيع'!C:C,Table3[[#This Row],[المحافظة]])","v":0}]
["عميل 127","دمنهور","البحيرة",{"$f":"COUNTIFS('بيانات البيع'!A:A,Table3[[#This Row],[إسم العميل]],'بيانات البيع'!B:B,Table3[[#This Row],[المنطقة]],'بيانات البيع'!C:C,Table3[[#This Row],[المحافظة]])","v":0},{"$f":"SUMIFS('بيانات البيع'!E:E,'بيانات البيع'!A:A,Table3[[#This Row],[إسم العميل]],'بيانات البيع'!B:B,Table3[[#This Row],[المنطقة]],'بيانات البيع'!C:C,Table3[[#This Row],[المحافظة]])","v":0}]
["عميل 128","مستشفى الشرق","الجيزة",{"$f":"COUNTIFS('بيانات البيع'!A:A,Table3[[#This Row],[إسم العميل]],'بيانات البيع'!B:B,Table3[[#This Row],[المنطقة]],'بيانات البيع'!C:C,Table3[[#This Row],[المحافظة]])","v":0},{"$f":"SUMIFS('بيانات البيع'!E:E,'بيانات البيع'!A:A,Table3[[#This Row],[إسم العميل]],'بيانات البيع'!B:B,Table3[[#This Row],[المنطقة]],'بيانات البيع'!C:C,Table3[[#This Row],[المحافظة]])","v":0}]
["عميل 129","مصر الجديدة","القاهرة",{"$f":"COUNTIFS('بيانات البيع'!A:A,Table3[[#This Row],[إسم العميل]],'بيانات البيع'!B:B,Table3[[#This Row],[المنطقة]],'بيانات البيع'!C:C,Table3[[#This Row],[المحافظة]])","v":0},{"$f":"SUMIFS('بيانات البيع'!E:E,'بيانات البيع'!A:A,Table3[[#This Row],[إسم العميل]],'بيانات البيع'!B:B,Table3[[#This Row],[المنطقة]],'بيانات البيع'!C:C,Table3[[#This Row],[المحافظة]])","v":0}]
["عميل 130","الهرم","الجيزة",{"$f":"COUNTIFS('بيانات البيع'!A:A,Table3[[#This Row],[إسم العميل]],'بيانات البيع'!B:B,Table3[[#This Row],[المنطقة]],'بيانات البيع'!C:C,Table3[[#This Row],[المحافظة]])","v":0},{"$f":"SUMIFS('بيانات البيع'!E:E,'بيانات البيع'!A:A,Table3[[#This Row],[إسم العميل]],'بيانات البيع'!B:B,Table3[[#This Row],[المنطقة]],'بيانات البيع'!C:C,Table3[[#This Row],[المحافظة]])","v":0}]
["عميل 131","باب اللوق","القاهرة",{"$f":"COUNTIFS('بيانات البيع'!A:A,Table3[[#This Row],[إسم العميل]],'بيانات البيع'!B:B,Table3[[#This Row],[المنطقة]],'بيانات البيع'!C:C,Table3[[#This Row],[المحافظة]])","v":0},{"$f":"SUMIFS('بيانات البيع'!E:E,'بيانات البيع'!A:A,Table3[[#This Row],[إسم العميل]],'بيانات البيع'!B:B,Table3[[#This Row],[المنطقة]],'بيانات البيع'!C:C,Table3[[#This Row],[المحافظة]])","v":0}]
["عميل 132","القصر العينى","القاهرة",{"$f":"COUNTIFS('بيانات البيع'!A:A,Table3[[#This Row],[إسم العميل]],'بيانات البيع'!B:B,Table3[[#This Row],[المنطقة]],'بيانات البيع'!C:C,Table3[[#This Row],[المحافظة]])","v":0},{"$f":"SUMIFS('بيانات البيع'!E:E,'بيانات البيع'!A:A,Table3[[#This Row],[إسم العميل]],'بيانات البيع'!B:B,Table3[[#This Row],[المنطقة]],'بيانات البيع'!C:C,Table3[[#This Row],[المحافظة]])","v":0}]
["عميل 133","القصر العينى","القاهرة",{"$f":"COUNTIFS('بيانات البيع'!A:A,Table3[[#This Row],[إسم العميل]],'بيانات البيع'!B:B,Table3[[#This Row],[المنطقة]],'بيانات البيع'!C:C,Table3[[#This Row],[المحافظة]])","v":0},{"$f":"SUMIFS('بيانات البيع'!E:E,'بيانات البيع'!A:A,Table3[[#This Row],[إسم العميل]],'بيانات البيع'!B:B,Table3[[#This Row],[المنطقة]],'بيانات البيع'!C:C,Table3[[#This Row],[المحافظة]])","v":0}]
["عميل 134","القصر العينى","القاهرة",{"$f":"COUNTIFS('بيانات البيع'!A:A,Table3[[#This Row],[إسم العميل]],'بيانات البيع'!B:B,Table3[[#This Row],[المنطقة]],'بيانات البيع'!C:C,Table3[[#This Row],[المحافظة]])","v":1},{"$f":"SUMIFS('بيانات البيع'!E:E,'بيانات البيع'!A:A,Table3[[#This Row],[إسم العميل]],'بيانات البيع'!B:B,Table3[[#This Row],[المنطقة]],'بيانات البيع'!C:C,Table3[[#This Row],[المحافظة]])","v":6850}]
["عميل 135","القصر العينى","القاهرة",{"$f":"COUNTIFS('بيانات البيع'!A:A,Table3[[#This Row],[إسم العميل]],'بيانات البيع'!B:B,Table3[[#This Row],[المنطقة]],'بيانات البيع'!C:C,Table3[[#This Row],[المحافظة]])","v":1},{"$f":"SUMIFS('بيانات البيع'!E:E,'بيانات البيع'!A:A,Table3[[#This Row],[إسم العميل]],'بيانات البيع'!B:B,Table3[[#This Row],[المنطقة]],'بيانات البيع'!C:C,Table3[[#This Row],[المحافظة]])","v":375}]
["عميل 136","مدينة نصر","القاهرة",{"$f":"COUNTIFS('بيانات البيع'!A:A,Table3[[#This Row],[إسم العميل]],'بيانات البيع'!B:B,Table3[[#This Row],[المنطقة]],'بيانات البيع'!C:C,Table3[[#This Row],[المحافظة]])","v":1},{"$f":"SUMIFS('بيانات البيع'!E:E,'بيانات البيع'!A:A,Table3[[#This Row],[إسم العميل]],'بيانات البيع'!B:B,Table3[[#This Row],[المنطقة]],'بيانات البيع'!C:C,Table3[[#This Row],[المحافظة]])","v":100}]
["عميل 137","مصر الجديدة","القاهرة",{"$f":"COUNTIFS('بيانات البيع'!A:A,Table3[[#This Row],[إسم العميل]],'بيانات البيع'!B:B,Table3[[#This Row],[المنطقة]],'بيانات البيع'!C:C,Table3[[#This Row],[المحافظة]])","v":0},{"$f":"SUMIFS('بيانات البيع'!E:E,'بيانات البيع'!A:A,Table3[[#This Row],[إسم العميل]],'بيانات البيع'!B:B,Table3[[#This Row],[المنطقة]],'بيانات البيع'!C:C,Table3[[#This Row],[المحافظة]])","v":0}]
["عميل 138","المقطم","القاهرة",{"$f":"COUNTIFS('بيانات البيع'!A:A,Table3[[#This Row],[إسم العميل]],'بيانات البيع'!B:B,Table3[[#This Row],[المنطقة]],'بيانات البيع'!C:C,Table3[[#This Row],[المحافظة]])","v":0},{"$f":"SUMIFS('بيانات البيع'!E:E,'بيانات البيع'!A:A,Table3[[#This Row],[إسم العميل]],'بيانات البيع'!B:B,Table3[[#This Row],[المنطقة]],'بيانات البيع'!C:C,Table3[[#This Row],[المحافظة]])","v":0}]
["عميل 139","القصر العينى","القاهرة",{"$f":"COUNTIFS('بيانات البيع'!A:A,Table3[[#This Row],[إسم العميل]],'بيانات البيع'!B:B,Table3[[#This Row],[المنطقة]],'بيانات البيع'!C:C,Table3[[#This Row],[المحافظة]])","v":1},{"$f":"SUMIFS('بيانات البيع'!E:E,'بيانات البيع'!A:A,Table3[[#This Row],[إسم العميل]],'بيانات البيع'!B:B,Table3[[#This Row],[المنطقة]],'بيانات البيع'!C:C,Table3[[#This Row],[المحافظة]])","v":200}]
["عميل 140","القصر العينى","القاهرة",{"$f":"COUNTIFS('بيانات البيع'!A:A,Table3[[#This Row],[إسم العميل]],'بيانات البيع'!B:B,Table3[[#This Row],[المنطقة]],'بيانات البيع'!C:C,Table3[[#This Row],[المحافظة]])","v":1},{"$f":"SUMIFS('بيانات البيع'!E:E,'بيانات البيع'!A:A,Table3[[#This Row],[إسم العميل]],'بيانات البيع'!B:B,Table3[[#This Row],[المنطقة]],'بيانات البيع'!C:C,Table3[[#This Row],[المحافظة]])","v":200}]
["عميل 141","المنوفية","المنوفية",{"$f":"COUNTIFS('بيانات البيع'!A:A,Table3[[#This Row],[إسم العميل]],'بيانات البيع'!B:B,Table3[[#This Row],[المنطقة]],'بيانات البيع'!C:C,Table3[[#This Row],[المحافظة]])","v":0},{"$f":"SUMIFS('بيانات البيع'!E:E,'بيانات البيع'!A:A,Table3[[#This Row],[إسم العميل]],'بيانات البيع'!B:B,Table3[[#This Row],[المنطقة]],'بيانات البيع'!C:C,Table3[[#This Row],[المحافظة]])","v":0}]
["عميل 142","المنوفية","المنوفية",{"$f":"COUNTIFS('بيانات البيع'!A:A,Table3[[#This Row],[إسم العميل]],'بيانات البيع'!B:B,Table3[[#This Row],[المنطقة]],'بيانات البيع'!C:C,Table3[[#This Row],[المحافظة]])","v":0},{"$f":"SUMIFS('بيانات البيع'!E:E,'بيانات البيع'!A:A,Table3[[#This Row],[إسم العميل]],'بيانات البيع'!B:B,Table3[[#This Row],[المنطقة]],'بيانات البيع'!C:C,Table3[[#This Row],[المحافظة]])","v":0}]
["عميل 143","بنى سويف","بنى سويف",{"$f":"COUNTIFS('بيانات البيع'!A:A,Table3[[#This Row],[إسم العميل]],'بيانات البيع'!B:B,Table3[[#This Row],[المنطقة]],'بيانات البيع'!C:C,Table3[[#This Row],[المحافظة]])","v":0},{"$f":"SUMIFS('بيانات البيع'!E:E,'بيانات البيع'!A:A,Table3[[#This Row],[إسم العميل]],'بيانات البيع'!B:B,Table3[[#This Row],[المنطقة]],'بيانات البيع'!C:C,Table3[[#This Row],[المحافظة]])","v":0}]
["عميل 144","العمرانية","الجيزة",{"$f":"COUNTIFS('بيانات البيع'!A:A,Table3[[#This Row],[إسم العميل]],'بيانات البيع'!B:B,Table3[[#This Row],[المنطقة]],'بيانات البيع'!C:C,Table3[[#This Row],[المحافظة]])","v":0},{"$f":"SUMIFS('بيانات البيع'!E:E,'بيانات البيع'!A:A,Table3[[#This Row],[إسم العميل]],'بيانات البيع'!B:B,Table3[[#This Row],[المنطقة]],'بيانات البيع'!C:C,Table3[[#This Row],[المحافظة]])","v":0}]
["عميل 145","المنصورة","الدقهلية",{"$f":"COUNTIFS('بيانات البيع'!A:A,Table3[[#This Row],[إسم العميل]],'بيانات البيع'!B:B,Table3[[#This Row],[المنطقة]],'بيانات البيع'!C:C,Table3[[#This Row],[المحافظة]])","v":0},{"$f":"SUMIFS('بيانات البيع'!E:E,'بيانات البيع'!A:A,Table3[[#This Row],[إسم العميل]],'بيانات البيع'!B:B,Table3[[#This Row],[المنطقة]],'بيانات البيع'!C:C,Table3[[#This Row],[المحافظة]])","v":0}]
["عميل 146","العاشر من رمضان","القليوبية",{"$f":"COUNTIFS('بيانات البيع'!A:A,Table3[[#This Row],[إسم العميل]],'بيانات البيع'!B:B,Table3[[#This Row],[المنطقة]],'بيانات البيع'!C:C,Table3[[#This Row],[المحافظة]])","v":0},{"$f":"SUMIFS('بيانات البيع'!E:E,'بيانات البيع'!A:A,Table3[[#This Row],[إسم العميل]],'بيانات البيع'!B:B,Table3[[#This Row],[المنطقة]],'بيانات البيع'!C:C,Table3[[#This Row],[المحافظة]])","v":0}]
["عميل 147","سوهاج","سوهاج",{"$f":"COUNTIFS('بيانات البيع'!A:A,Table3[[#This Row],[إسم العميل]],'بيانات البيع'!B:B,Table3[[#This Row],[المنطقة]],'بيانات البيع'!C:C,Table3[[#This Row],[المحافظة]])","v":0},{"$f":"SUMIFS('بيانات البيع'!E:E,'بيانات البيع'!A:A,Table3[[#This Row],[إسم العميل]],'بيانات البيع'!B:B,Table3[[#This Row],[المنطقة]],'بيانات البيع'!C:C,Table3[[#This Row],[المحافظة]])","v":0}]
["عميل 148","القصر العينى","القاهرة",{"$f":"COUNTIFS('بيانات البيع'!A:A,Table3[[#This Row],[إسم العميل]],'بيانات البيع'!B:B,Table3[[#This Row],[المنطقة]],'بيانات البيع'!C:C,Table3[[#This Row],[المحافظة]])","v":1},{"$f":"SUMIFS('بيانات البيع'!E:E,'بيانات البيع'!A:A,Table3[[#This Row],[إسم العميل]],'بيانات البيع'!B:B,Table3[[#This Row],[المنطقة]],'بيانات البيع'!C:C,Table3[[#This Row],[المحافظة]])","v":270}]
["عميل 149","مساكن الشروق","القاهرة",{"$f":"COUNTIFS('بيانات البيع'!A:A,Table3[[#This Row],[إسم العميل]],'بيانات البيع'!B:B,Table3[[#This Row],[المنطقة]],'بيانات البيع'!C:C,Table3[[#This Row],[المحافظة]])","v":0},{"$f":"SUMIFS('بيانات البيع'!E:E,'بيانات البيع'!A:A,Table3[[#This Row],[إسم العميل]],'بيانات البيع'!B:B,Table3[[#This Row],[المنطقة]],'بيانات البيع'!C:C,Table3[[#This Row],[المحافظة]])","v":0}]
["عميل 150","شبرا مصر","القاهرة",{"$f":"COUNTIFS('بيانات البيع'!A:A,Table3[[#This Row],[إسم العميل]],'بيانات البيع'!B:B,Table3[[#This Row],[المنطقة]],'بيانات البيع'!C:C,Table3[[#This Row],[المحافظة]])","v":0},{"$f":"SUMIFS('بيانات البيع'!E:E,'بيانات البيع'!A:A,Table3[[#This Row],[إسم العميل]],'بيانات البيع'!B:B,Table3[[#This Row],[المنطقة]],'بيانات البيع'!C:C,Table3[[#This Row],[المحافظة]])","v":0}]
["عميل 151","الزقازيق","الشرقية",{"$f":"COUNTIFS('بيانات البيع'!A:A,Table3[[#This Row],[إسم العميل]],'بيانات البيع'!B:B,Table3[[#This Row],[المنطقة]],'بيانات البيع'!C:C,Table3[[#This Row],[المحافظة]])","v":0},{"$f":"SUMIFS('بيانات البيع'!E:E,'بيانات البيع'!A:A,Table3[[#This Row],[إسم العميل]],'بيانات البيع'!B:B,Table3[[#This Row],[المنطقة]],'بيانات البيع'!C:C,Table3[[#This Row],[المحافظة]])","v":0}]
["عميل 152","مدينة نصر","القاهرة",{"$f":"COUNTIFS('بيانات البيع'!A:A,Table3[[#This Row],[إسم العميل]],'بيانات البيع'!B:B,Table3[[#This Row],[المنطقة]],'بيانات البيع'!C:C,Table3[[#This Row],[المحافظة]])","v":0},{"$f":"SUMIFS('بيانات البيع'!E:E,'بيانات البيع'!A:A,Table3[[#This Row],[إسم العميل]],'بيانات البيع'!B:B,Table3[[#This Row],[المنطقة]],'بيانات البيع'!C:C,Table3[[#This Row],[المحافظة]])","v":0}]
["عميل 153","التجمع الخامس","القاهرة",{"$f":"COUNTIFS('بيانات البيع'!A:A,Table3[[#This Row],[إسم العميل]],'بيانات البيع'!B:B,Table3[[#This Row],[المنطقة]],'بيانات البيع'!C:C,Table3[[#This Row],[المحافظة]])","v":0},{"$f":"SUMIFS('بيانات البيع'!E:E,'بيانات البيع'!A:A,Table3[[#This Row],[إسم العميل]],'بيانات البيع'!B:B,Table3[[#This Row],[المنطقة]],'بيانات البيع'!C:C,Table3[[#This Row],[المحافظة]])","v":0}]
["عميل 154","وسط البلد","القاهرة",{"$f":"COUNTIFS('بيانات البيع'!A:A,Table3[[#This Row],[إسم العميل]],'بيانات البيع'!B:B,Table3[[#This Row],[المنطقة]],'بيانات البيع'!C:C,Table3[[#This Row],[المحافظة]])","v":0},{"$f":"SUMIFS('بيانات البيع'!E:E,'بيانات البيع'!A:A,Table3[[#This Row],[إسم العميل]],'بيانات البيع'!B:B,Table3[[#This Row],[المنطقة]],'بيانات البيع'!C:C,Table3[[#This Row],[المحافظة]])","v":0}]
["عميل 155","الأقصر","الأقصر",{"$f":"COUNTIFS('بيانات البيع'!A:A,Table3[[#This Row],[إسم العميل]],'بيانات البيع'!B:B,Table3[[#This Row],[المنطقة]],'بيانات البيع'!C:C,Table3[[#This Row],[المحافظة]])","v":0},{"$f":"SUMIFS('بيانات البيع'!E:E,'بيانات البيع'!A:A,Table3[[#This Row],[إسم العميل]],'بيانات البيع'!B:B,Table3[[#This Row],[المنطقة]],'بيانات البيع'!C:C,Table3[[#This Row],[المحافظة]])","v":0}]
["عميل 156","الجيزة","الجيزة",{"$f":"COUNTIFS('بيانات البيع'!A:A,Table3[[#This Row],[إسم العميل]],'بيانات البيع'!B:B,Table3[[#This Row],[المنطقة]],'بيانات البيع'!C:C,Table3[[#This Row],[المحافظة]])","v":0},{"$f":"SUMIFS('بيانات البيع'!E:E,'بيانات البيع'!A:A,Table3[[#This Row],[إسم العميل]],'بيانات البيع'!B:B,Table3[[#This Row],[المنطقة]],'بيانات البيع'!C:C,Table3[[#This Row],[المحافظة]])","v":0}]
["عميل 157","الجمالية","القاهرة",{"$f":"COUNTIFS('بيانات البيع'!A:A,Table3[[#This Row],[إسم العميل]],'بيانات البيع'!B:B,Table3[[#This Row],[المنطقة]],'بيانات البيع'!C:C,Table3[[#This Row],[المحافظة]])","v":0},{"$f":"SUMIFS('بيانات البيع'!E:E,'بيانات البيع'!A:A,Table3[[#This Row],[إسم العميل]],'بيانات البيع'!B:B,Table3[[#This Row],[المنطقة]],'بيانات البيع'!C:C,Table3[[#This Row],[المحافظة]])","v":0}]
["عميل 158","القصر العينى","القاهرة",{"$f":"COUNTIFS('بيانات البيع'!A:A,Table3[[#This Row],[إسم العميل]],'بيانات البيع'!B:B,Table3[[#This Row],[المنطقة]],'بيانات البيع'!C:C,Table3[[#This Row],[المحافظة]])","v":0},{"$f":"SUMIFS('بيانات البيع'!E:E,'بيانات البيع'!A:A,Table3[[#This Row],[إسم العميل]],'بيانات البيع'!B:B,Table3[[#This Row],[المنطقة]],'بيانات البيع'!C:C,Table3[[#This Row],[المحافظة]])","v":0}]
["عميل 159","القصر العينى","القاهرة",{"$f":"COUNTIFS('بيانات البيع'!A:A,Table3[[#This Row],[إسم العميل]],'بيانات البيع'!B:B,Table3[[#This Row],[المنطقة]],'بيانات البيع'!C:C,Table3[[#This Row],[المحافظة]])","v":0},{"$f":"SUMIFS('بيانات البيع'!E:E,'بيانات البيع'!A:A,Table3[[#This Row],[إسم العميل]],'بيانات البيع'!B:B,Table3[[#This Row],[المنطقة]],'بيانات البيع'!C:C,Table3[[#This Row],[المحافظة]])","v":0}]
["عميل 160","المعادى","القاهرة",{"$f":"COUNTIFS('بيانات البيع'!A:A,Table3[[#This Row],[إسم العميل]],'بيانات البيع'!B:B,Table3[[#This Row],[المنطقة]],'بيانات البيع'!C:C,Table3[[#This Row],[المحافظة]])","v":0},{"$f":"SUMIFS('بيانات البيع'!E:E,'بيانات البيع'!A:A,Table3[[#This Row],[إسم العميل]],'بيانات البيع'!B:B,Table3[[#This Row],[المنطقة]],'بيانات البيع'!C:C,Table3[[#This Row],[المحافظة]])","v":0}]
["عميل 161","القصر العينى","القاهرة",{"$f":"COUNTIFS('بيانات البيع'!A:A,Table3[[#This Row],[إسم العميل]],'بيانات البيع'!B:B,Table3[[#This Row],[المنطقة]],'بيانات البيع'!C:C,Table3[[#This Row],[المحافظة]])","v":1},{"$f":"SUMIFS('بيانات البيع'!E:E,'بيانات البيع'!A:A,Table3[[#This Row],[إسم العميل]],'بيانات البيع'!B:B,Table3[[#This Row],[المنطقة]],'بيانات البيع'!C:C,Table3[[#This Row],[المحافظة]])","v":250}]
["عميل 162","المطرية","الجيزة",{"$f":"COUNTIFS('بيانات البيع'!A:A,Table3[[#This Row],[إسم العميل]],'بيانات البيع'!B:B,Table3[[#This Row],[المنطقة]],'بيانات البيع'!C:C,Table3[[#This Row],[المحافظة]])","v":0},{"$f":"SUMIFS('بيانات البيع'!E:E,'بيانات البيع'!A:A,Table3[[#This Row],[إسم العميل]],'بيانات البيع'!B:B,Table3[[#This Row],[المنطقة]],'بيانات البيع'!C:C,Table3[[#This Row],[المحافظة]])","v":0}]
["عميل 163","القاهرة","القاهرة",{"$f":"COUNTIFS('بيانات البيع'!A:A,Table3[[#This Row],[إسم العميل]],'بيانات البيع'!B:B,Table3[[#This Row],[المنطقة]],'بيانات البيع'!C:C,Table3[[#This Row],[المحافظة]])","v":1},{"$f":"SUMIFS('بيانات البيع'!E:E,'بيانات البيع'!A:A,Table3[[#This Row],[إسم العميل]],'بيانات البيع'!B:B,Table3[[#This Row],[المنطقة]],'بيانات البيع'!C:C,Table3[[#This Row],[المحافظة]])","v":70}]
["عميل 164","القصر العينى","القاهرة",{"$f":"COUNTIFS('بيانات البيع'!A:A,Table3[[#This Row],[إسم العميل]],'بيانات البيع'!B:B,Table3[[#This Row],[المنطقة]],'بيانات البيع'!C:C,Table3[[#This Row],[المحافظة]])","v":0},{"$f":"SUMIFS('بيانات البيع'!E:E,'بيانات البيع'!A:A,Table3[[#This Row],[إسم العميل]],'بيانات البيع'!B:B,Table3[[#This Row],[المنطقة]],'بيانات البيع'!C:C,Table3[[#This Row],[المحافظة]])","v":0}]
["عميل 165","الزقازيق","الشرقية",{"$f":"COUNTIFS('بيانات البيع'!A:A,Table3[[#This Row],[إسم العميل]],'بيانات البيع'!B:B,Table3[[#This Row],[المنطقة]],'بيانات البيع'!C:C,Table3[[#This Row],[المحافظة]])","v":0},{"$f":"SUMIFS('بيانات البيع'!E:E,'بيانات البيع'!A:A,Table3[[#This Row],[إسم العميل]],'بيانات البيع'!B:B,Table3[[#This Row],[المنطقة]],'بيانات البيع'!C:C,Table3[[#This Row],[المحافظة]])","v":0}]
["عميل 166","امبابة","الجيزة",{"$f":"COUNTIFS('بيانات البيع'!A:A,Table3[[#This Row],[إسم العميل]],'بيانات البيع'!B:B,Table3[[#This Row],[المنطقة]],'بيانات البيع'!C:C,Table3[[#This Row],[المحافظة]])","v":0},{"$f":"SUMIFS('بيانات البيع'!E:E,'بيانات البيع'!A:A,Table3[[#This Row],[إسم العميل]],'بيانات البيع'!B:B,Table3[[#This Row],[المنطقة]],'بيانات البيع'!C:C,Table3[[#This Row],[المحافظة]])","v":0}]
["عميل 167","المهندسين","الجيزة",{"$f":"COUNTIFS('بيانات البيع'!A:A,Table3[[#This Row],[إسم العميل]],'بيانات البيع'!B:B,Table3[[#This Row],[المنطقة]],'بيانات البيع'!C:C,Table3[[#This Row],[المحافظة]])","v":0},{"$f":"SUMIFS('بيانات البيع'!E:E,'بيانات البيع'!A:A,Table3[[#This Row],[إسم العميل]],'بيانات البيع'!B:B,Table3[[#This Row],[المنطقة]],'بيانات البيع'!C:C,Table3[[#This Row],[المحافظة]])","v":0}]
["عميل 168","العاشر من رمضان","القليوبية",{"$f":"COUNTIFS('بيانات البيع'!A:A,Table3[[#This Row],[إسم العميل]],'بيانات البيع'!B:B,Table3[[#This Row],[المنطقة]],'بيانات البيع'!C:C,Table3[[#This Row],[المحافظة]])","v":0},{"$f":"SUMIFS('بيانات البيع'!E:E,'بيانات البيع'!A:A,Table3[[#This Row],[إسم العميل]],'بيانات البيع'!B:B,Table3[[#This Row],[المنطقة]],'بيانات البيع'!C:C,Table3[[#This Row],[المحافظة]])","v":0}]
["عميل 169","وسط البلد","القاهرة",{"$f":"COUNTIFS('بيانات البيع'!A:A,Table3[[#This Row],[إسم العميل]],'بيانات البيع'!B:B,Table3[[#This Row],[المنطقة]],'بيانات البيع'!C:C,Table3[[#This Row],[المحافظة]])","v":0},{"$f":"SUMIFS('بيانات البيع'!E:E,'بيانات البيع'!A:A,Table3[[#This Row],[إسم العميل]],'بيانات البيع'!B:B,Table3[[#This Row],[المنطقة]],'بيانات البيع'!C:C,Table3[[#This Row],[المحافظة]])","v":0}]
["عميل 170","قليوب","القليوبية",{"$f":"COUNTIFS('بيانات البيع'!A:A,Table3[[#This Row],[إسم العميل]],'بيانات البيع'!B:B,Table3[[#This Row],[المنطقة]],'بيانات البيع'!C:C,Table3[[#This Row],[المحافظة]])","v":0},{"$f":"SUMIFS('بيانات البيع'!E:E,'بيانات البيع'!A:A,Table3[[#This Row],[إسم العميل]],'بيانات البيع'!B:B,Table3[[#This Row],[المنطقة]],'بيانات البيع'!C:C,Table3[[#This Row],[المحافظة]])","v":0}]
["عميل 171","القصر العينى","القاهرة",{"$f":"COUNTIFS('بيانات البيع'!A:A,Table3[[#This Row],[إسم العميل]],'بيانات البيع'!B:B,Table3[[#This Row],[المنطقة]],'بيانات البيع'!C:C,Table3[[#This Row],[المحافظة]])","v":0},{"$f":"SUMIFS('بيانات البيع'!E:E,'بيانات البيع'!A:A,Table3[[#This Row],[إسم العميل]],'بيانات البيع'!B:B,Table3[[#This Row],[المنطقة]],'بيانات البيع'!C:C,Table3[[#This Row],[المحافظة]])","v":0}]
["عميل 172","حلوان","القاهرة",{"$f":"COUNTIFS('بيانات البيع'!A:A,Table3[[#This Row],[إسم العميل]],'بيانات البيع'!B:B,Table3[[#This Row],[المنطقة]],'بيانات البيع'!C:C,Table3[[#This Row],[المحافظة]])","v":0},{"$f":"SUMIFS('بيانات البيع'!E:E,'بيانات البيع'!A:A,Table3[[#This Row],[إسم العميل]],'بيانات البيع'!B:B,Table3[[#This Row],[المنطقة]],'بيانات البيع'!C:C,Table3[[#This Row],[المحافظة]])","v":0}]
["عميل 173","المعادى","القاهرة",{"$f":"COUNTIFS('بيانات البيع'!A:A,Table3[[#This Row],[إسم العميل]],'بيانات البيع'!B:B,Table3[[#This Row],[المنطقة]],'بيانات البيع'!C:C,Table3[[#This Row],[المحافظة]])","v":0},{"$f":"SUMIFS('بيانات البيع'!E:E,'بيانات البيع'!A:A,Table3[[#This Row],[إسم العميل]],'بيانات البيع'!B:B,Table3[[#This Row],[المنطقة]],'بيانات البيع'!C:C,Table3[[#This Row],[المحافظة]])","v":0}]
["عميل 174","القصر العينى","القاهرة",{"$f":"COUNTIFS('بيانات البيع'!A:A,Table3[[#This Row],[إسم العميل]],'بيانات البيع'!B:B,Table3[[#This Row],[المنطقة]],'بيانات البيع'!C:C,Table3[[#This Row],[المحافظة]])","v":1},{"$f":"SUMIFS('بيانات البيع'!E:E,'بيانات البيع'!A:A,Table3[[#This Row],[إسم العميل]],'بيانات البيع'!B:B,Table3[[#This Row],[المنطقة]],'بيانات البيع'!C:C,Table3[[#This Row],[المحافظة]])","v":855}]
["عميل 175","القاهرة","القاهرة",{"$f":"COUNTIFS('بيانات البيع'!A:A,Table3[[#This Row],[إسم العميل]],'بيانات البيع'!B:B,Table3[[#This Row],[المنطقة]],'بيانات البيع'!C:C,Table3[[#This Row],[المحافظة]])","v":0},{"$f":"SUMIFS('بيانات البيع'!E:E,'بيانات البيع'!A:A,Table3[[#This Row],[إسم العميل]],'بيانات البيع'!B:B,Table3[[#This Row],[المنطقة]],'بيانات البيع'!C:C,Table3[[#This Row],[المحافظة]])","v":0}]
["عميل 176","البحيرة","البحيرة",{"$f":"COUNTIFS('بيانات البيع'!A:A,Table3[[#This Row],[إسم العميل]],'بيانات البيع'!B:B,Table3[[#This Row],[المنطقة]],'بيانات البيع'!C:C,Table3[[#This Row],[المحافظة]])","v":0},{"$f":"SUMIFS('بيانات البيع'!E:E,'بيانات البيع'!A:A,Table3[[#This Row],[إسم العميل]],'بيانات البيع'!B:B,Table3[[#This Row],[المنطقة]],'بيانات البيع'!C:C,Table3[[#This Row],[المحافظة]])","v":0}]
["عميل 177","القصر العينى","القاهرة",{"$f":"COUNTIFS('بيانات البيع'!A:A,Table3[[#This Row],[إسم العميل]],'بيانات البيع'!B:B,Table3[[#This Row],[المنطقة]],'بيانات البيع'!C:C,Table3[[#This Row],[المحافظة]])","v":1},{"$f":"SUMIFS('بيانات البيع'!E:E,'بيانات البيع'!A:A,Table3[[#This Row],[إسم العميل]],'بيانات البيع'!B:B,Table3[[#This Row],[المنطقة]],'بيانات البيع'!C:C,Table3[[#This Row],[المحافظة]])","v":200}]
["عميل 178","القصر العينى","القاهرة",{"$f":"COUNTIFS('بيانات البيع'!A:A,Table3[[#This Row],[إسم العميل]],'بيانات البيع'!B:B,Table3[[#This Row],[المنطقة]],'بيانات البيع'!C:C,Table3[[#This Row],[المحافظة]])","v":0},{"$f":"SUMIFS('بيانات البيع'!E:E,'بيانات البيع'!A:A,Table3[[#This Row],[إسم العميل]],'بيانات البيع'!B:B,Table3[[#This Row],[المنطقة]],'بيانات البيع'!C:C,Table3[[#This Row],[المحافظة]])","v":0}]
["عميل 179","القصر العينى","القاهرة",{"$f":"COUNTIFS('بيانات البيع'!A:A,Table3[[#This Row],[إسم العميل]],'بيانات البيع'!B:B,Table3[[#This Row],[المنطقة]],'بيانات البيع'!C:C,Table3[[#This Row],[المحافظة]])","v":0},{"$f":"SUMIFS('بيانات البيع'!E:E,'بيانات البيع'!A:A,Table3[[#This Row],[إسم العميل]],'بيانات البيع'!B:B,Table3[[#This Row],[المنطقة]],'بيانات البيع'!C:C,Table3[[#This Row],[المحافظة]])","v":0}]
["عميل 180","مصر الجديدة","القاهرة",{"$f":"COUNTIFS('بيانات البيع'!A:A,Table3[[#This Row],[إسم العميل]],'بيانات البيع'!B:B,Table3[[#This Row],[المنطقة]],'بيانات البيع'!C:C,Table3[[#This Row],[المحافظة]])","v":0},{"$f":"SUMIFS('بيانات البيع'!E:E,'بيانات البيع'!A:A,Table3[[#This Row],[إسم العميل]],'بيانات البيع'!B:B,Table3[[#This Row],[المنطقة]],'بيانات البيع'!C:C,Table3[[#This Row],[المحافظة]])","v":0}]
["عميل 181","حلوان","القاهرة",{"$f":"COUNTIFS('بيانات البيع'!A:A,Table3[[#This Row],[إسم العميل]],'بيانات البيع'!B:B,Table3[[#This Row],[المنطقة]],'بيانات البيع'!C:C,Table3[[#This Row],[المحافظة]])","v":0},{"$f":"SUMIFS('بيانات البيع'!E:E,'بيانات البيع'!A:A,Table3[[#This Row],[إسم العميل]],'بيانات البيع'!B:B,Table3[[#This Row],[المنطقة]],'بيانات البيع'!C:C,Table3[[#This Row],[المحافظة]])","v":0}]
["عميل 182","القاهرة","القاهرة",{"$f":"COUNTIFS('بيانات البيع'!A:A,Table3[[#This Row],[إسم العميل]],'بيانات البيع'!B:B,Table3[[#This Row],[المنطقة]],'بيانات البيع'!C:C,Table3[[#This Row],[المحافظة]])","v":0},{"$f":"SUMIFS('بيانات البيع'!E:E,'بيانات البيع'!A:A,Table3[[#This Row],[إسم العميل]],'بيانات البيع'!B:B,Table3[[#This Row],[المنطقة]],'بيانات البيع'!C:C,Table3[[#This Row],[المحافظة]])","v":0}]
["عميل 183","القصر العينى","القاهرة",{"$f":"COUNTIFS('بيانات البيع'!A:A,Table3[[#This Row],[إسم العميل]],'بيانات البيع'!B:B,Table3[[#This Row],[المنطقة]],'بيانات البيع'!C:C,Table3[[#This Row],[المحافظة]])","v":1},{"$f":"SUMIFS('بيانات البيع'!E:E,'بيانات البيع'!A:A,Table3[[#This Row],[إسم العميل]],'بيانات البيع'!B:B,Table3[[#This Row],[المنطقة]],'بيانات البيع'!C:C,Table3[[#This Row],[المحافظة]])","v":2000}]
["عميل 184","شبرا الخمية","القليوبية",{"$f":"COUNTIFS('بيانات البيع'!A:A,Table3[[#This Row],[إسم العميل]],'بيانات البيع'!B:B,Table3[[#This Row],[المنطقة]],'بيانات البيع'!C:C,Table3[[#This Row],[المحافظة]])","v":0},{"$f":"SUMIFS('بيانات البيع'!E:E,'بيانات البيع'!A:A,Table3[[#This Row],[إسم العميل]],'بيانات البيع'!B:B,Table3[[#This Row],[المنطقة]],'بيانات البيع'!C:C,Table3[[#This Row],[المحافظة]])","v":0}]
["عميل 185","التجمع الخامس","القاهرة",{"$f":"COUNTIFS('بيانات البيع'!A:A,Table3[[#This Row],[إسم العميل]],'بيانات البيع'!B:B,Table3[[#This Row],[المنطقة]],'بيانات البيع'!C:C,Table3[[#This Row],[المحافظة]])","v":0},{"$f":"SUMIFS('بيانات البيع'!E:E,'بيانات البيع'!A:A,Table3[[#This Row],[إسم العميل]],'بيانات البيع'!B:B,Table3[[#This Row],[المنطقة]],'بيانات البيع'!C:C,Table3[[#This Row],[المحافظة]])","v":0}]
["عميل 186","القاهرة","القاهرة",{"$f":"COUNTIFS('بيانات البيع'!A:A,Table3[[#This Row],[إسم العميل]],'بيانات البيع'!B:B,Table3[[#This Row],[المنطقة]],'بيانات البيع'!C:C,Table3[[#This Row],[المحافظة]])","v":0},{"$f":"SUMIFS('بيانات البيع'!E:E,'بيانات البيع'!A:A,Table3[[#This Row],[إسم العميل]],'بيانات البيع'!B:B,Table3[[#This Row],[المنطقة]],'بيانات البيع'!C:C,Table3[[#This Row],[المحافظة]])","v":0}]
["عميل 187","شبرا مصر","القاهرة",{"$f":"COUNTIFS('بيانات البيع'!A:A,Table3[[#This Row],[إسم العميل]],'بيانات البيع'!B:B,Table3[[#This Row],[المنطقة]],'بيانات البيع'!C:C,Table3[[#This Row],[المحافظة]])","v":0},{"$f":"SUMIFS('بيانات البيع'!E:E,'بيانات البيع'!A:A,Table3[[#This Row],[إسم العميل]],'بيانات البيع'!B:B,Table3[[#This Row],[المنطقة]],'بيانات البيع'!C:C,Table3[[#This Row],[المحافظة]])","v":0}]
["عميل 188","كفر الشيخ","كفر الشيخ",{"$f":"COUNTIFS('بيانات البيع'!A:A,Table3[[#This Row],[إسم العميل]],'بيانات البيع'!B:B,Table3[[#This Row],[المنطقة]],'بيانات البيع'!C:C,Table3[[#This Row],[المحافظة]])","v":0},{"$f":"SUMIFS('بيانات البيع'!E:E,'بيانات البيع'!A:A,Table3[[#This Row],[إسم العميل]],'بيانات البيع'!B:B,Table3[[#This Row],[المنطقة]],'بيانات البيع'!C:C,Table3[[#This Row],[المحافظة]])","v":0}]
["عميل 189","الشيخ زايد","القاهرة",{"$f":"COUNTIFS('بيانات البيع'!A:A,Table3[[#This Row],[إسم العميل]],'بيانات البيع'!B:B,Table3[[#This Row],[المنطقة]],'بيانات البيع'!C:C,Table3[[#This Row],[المحافظة]])","v":0},{"$f":"SUMIFS('بيانات البيع'!E:E,'بيانات البيع'!A:A,Table3[[#This Row],[إسم العميل]],'بيانات البيع'!B:B,Table3[[#This Row],[المنطقة]],'بيانات البيع'!C:C,Table3[[#This Row],[المحافظة]])","v":0}]
["عميل 190","الفيوم","الفيوم",{"$f":"COUNTIFS('بيانات البيع'!A:A,Table3[[#This Row],[إسم العميل]],'بيانات البيع'!B:B,Table3[[#This Row],[المنطقة]],'بيانات البيع'!C:C,Table3[[#This Row],[المحافظة]])","v":0},{"$f":"SUMIFS('بيانات البيع'!E:E,'بيانات البيع'!A:A,Table3[[#This Row],[إسم العميل]],'بيانات البيع'!B:B,Table3[[#This Row],[المنطقة]],'بيانات البيع'!C:C,Table3[[#This Row],[المحافظة]])","v":0}]
["عميل 191","المعادى","القاهرة",{"$f":"COUNTIFS('بيانات البيع'!A:A,Table3[[#This Row],[إسم العميل]],'بيانات البيع'!B:B,Table3[[#This Row],[المنطقة]],'بيانات البيع'!C:C,Table3[[#This Row],[المحافظة]])","v":0},{"$f":"SUMIFS('بيانات البيع'!E:E,'بيانات البيع'!A:A,Table3[[#This Row],[إسم العميل]],'بيانات البيع'!B:B,Table3[[#This Row],[المنطقة]],'بيانات البيع'!C:C,Table3[[#This Row],[المحافظة]])","v":0}]
["عميل 192","مدينة السادات","المنوفية",{"$f":"COUNTIFS('بيانات البيع'!A:A,Table3[[#This Row],[إسم العميل]],'بيانات البيع'!B:B,Table3[[#This Row],[المنطقة]],'بيانات البيع'!C:C,Table3[[#This Row],[المحافظة]])","v":0},{"$f":"SUMIFS('بيانات البيع'!E:E,'بيانات البيع'!A:A,Table3[[#This Row],[إسم العميل]],'بيانات البيع'!B:B,Table3[[#This Row],[المنطقة]],'بيانات البيع'!C:C,Table3[[#This Row],[المحافظة]])","v":0}]
["عميل 193","مدينة نصر","القاهرة",{"$f":"COUNTIFS('بيانات البيع'!A:A,Table3[[#This Row],[إسم العميل]],'بيانات البيع'!B:B,Table3[[#This Row],[المنطقة]],'بيانات البيع'!C:C,Table3[[#This Row],[المحافظة]])","v":0},{"$f":"SUMIFS('بيانات البيع'!E:E,'بيانات البيع'!A:A,Table3[[#This Row],[إسم العميل]],'بيانات البيع'!B:B,Table3[[#This Row],[المنطقة]],'بيانات البيع'!C:C,Table3[[#This Row],[المحافظة]])","v":0}]
["عميل 194","زهراء المعادى","القاهرة",{"$f":"COUNTIFS('بيانات البيع'!A:A,Table3[[#This Row],[إسم العميل]],'بيانات البيع'!B:B,Table3[[#This Row],[المنطقة]],'بيانات البيع'!C:C,Table3[[#This Row],[المحافظة]])","v":0},{"$f":"SUMIFS('بيانات البيع'!E:E,'بيانات البيع'!A:A,Table3[[#This Row],[إسم العميل]],'بيانات البيع'!B:B,Table3[[#This Row],[المنطقة]],'بيانات البيع'!C:C,Table3[[#This Row],[المحافظة]])","v":0}]
["عميل 195","سوهاج","سوهاج",{"$f":"COUNTIFS('بيانات البيع'!A:A,Table3[[#This Row],[إسم العميل]],'بيانات البيع'!B:B,Table3[[#This Row],[المنطقة]],'بيانات البيع'!C:C,Table3[[#This Row],[المحافظة]])","v":0},{"$f":"SUMIFS('بيانات البيع'!E:E,'بيانات البيع'!A:A,Table3[[#This Row],[إسم العميل]],'بيانات البيع'!B:B,Table3[[#This Row],[المنطقة]],'بيانات البيع'!C:C,Table3[[#This Row],[المحافظة]])","v":0}]
["عميل 196","المعادى","القاهرة",{"$f":"COUNTIFS('بيانات البيع'!A:A,Table3[[#This Row],[إسم العميل]],'بيانات البيع'!B:B,Table3[[#This Row],[المنطقة]],'بيانات البيع'!C:C,Table3[[#This Row],[المحافظة]])","v":0},{"$f":"SUMIFS('بيانات البيع'!E:E,'بيانات البيع'!A:A,Table3[[#This Row],[إسم العميل]],'بيانات البيع'!B:B,Table3[[#This Row],[المنطقة]],'بيانات البيع'!C:C,Table3[[#This Row],[المحافظة]])","v":0}]
["عميل 197","حدئق الاهرام","القاهرة",{"$f":"COUNTIFS('بيانات البيع'!A:A,Table3[[#This Row],[إسم العميل]],'بيانات البيع'!B:B,Table3[[#This Row],[المنطقة]],'بيانات البيع'!C:C,Table3[[#This Row],[المحافظة]])","v":0},{"$f":"SUMIFS('بيانات البيع'!E:E,'بيانات البيع'!A:A,Table3[[#This Row],[إسم العميل]],'بيانات البيع'!B:B,Table3[[#This Row],[المنطقة]],'بيانات البيع'!C:C,Table3[[#This Row],[المحافظة]])","v":0}]
["عميل 198","المقطم","القاهرة",{"$f":"COUNTIFS('بيانات البيع'!A:A,Table3[[#This Row],[إسم العميل]],'بيانات البيع'!B:B,Table3[[#This Row],[المنطقة]],'بيانات البيع'!C:C,Table3[[#This Row],[المحافظة]])","v":0},{"$f":"SUMIFS('بيانات البيع'!E:E,'بيانات البيع'!A:A,Table3[[#This Row],[إسم العميل]],'بيانات البيع'!B:B,Table3[[#This Row],[المنطقة]],'بيانات البيع'!C:C,Table3[[#This Row],[المحافظة]])","v":0}]
["عميل 199","الأقصر","الأقصر",{"$f":"COUNTIFS('بيانات البيع'!A:A,Table3[[#This Row],[إسم العميل]],'بيانات البيع'!B:B,Table3[[#This Row],[المنطقة]],'بيانات البيع'!C:C,Table3[[#This Row],[المحافظة]])","v":0},{"$f":"SUMIFS('بيانات البيع'!E:E,'بيانات البيع'!A:A,Table3[[#This Row],[إسم العميل]],'بيانات البيع'!B:B,Table3[[#This Row],[المنطقة]],'بيانات البيع'!C:C,Table3[[#This Row],[المحافظة]])","v":0}]
["عميل 200","كرداسة","الجيزة",{"$f":"COUNTIFS('بيانات البيع'!A:A,Table3[[#This Row],[إسم العميل]],'بيانات البيع'!B:B,Table3[[#This Row],[المنطقة]],'بيانات البيع'!C:C,Table3[[#This Row],[المحافظة]])","v":0},{"$f":"SUMIFS('بيانات البيع'!E:E,'بيانات البيع'!A:A,Table3[[#This Row],[إسم العميل]],'بيانات البيع'!B:B,Table3[[#This Row],[المنطقة]],'بيانات البيع'!C:C,Table3[[#This Row],[المحافظة]])","v":0}]
["عميل 201","القصر العينى","القاهرة",{"$f":"COUNTIFS('بيانات البيع'!A:A,Table3[[#This Row],[إسم العميل]],'بيانات البيع'!B:B,Table3[[#This Row],[المنطقة]],'بيانات البيع'!C:C,Table3[[#This Row],[المحافظة]])","v":1},{"$f":"SUMIFS('بيانات البيع'!E:E,'بيانات البيع'!A:A,Table3[[#This Row],[إسم العميل]],'بيانات البيع'!B:B,Table3[[#This Row],[المنطقة]],'بيانات البيع'!C:C,Table3[[#This Row],[المحافظة]])","v":1160}]
["عميل 202","ايتاى البارود","البحيرة",{"$f":"COUNTIFS('بيانات البيع'!A:A,Table3[[#This Row],[إسم العميل]],'بيانات البيع'!B:B,Table3[[#This Row],[المنطقة]],'بيانات البيع'!C:C,Table3[[#This Row],[المحافظة]])","v":0},{"$f":"SUMIFS('بيانات البيع'!E:E,'بيانات البيع'!A:A,Table3[[#This Row],[إسم العميل]],'بيانات البيع'!B:B,Table3[[#This Row],[المنطقة]],'بيانات البيع'!C:C,Table3[[#This Row],[المحافظة]])","v":0}]
["عميل 203","حدائق القبة","القاهرة",{"$f":"COUNTIFS('بيانات البيع'!A:A,Table3[[#This Row],[إسم العميل]],'بيانات البيع'!B:B,Table3[[#This Row],[المنطقة]],'بيانات البيع'!C:C,Table3[[#This Row],[المحافظة]])","v":0},{"$f":"SUMIFS('بيانات البيع'!E:E,'بيانات البيع'!A:A,Table3[[#This Row],[إسم العميل]],'بيانات البيع'!B:B,Table3[[#This Row],[المنطقة]],'بيانات البيع'!C:C,Table3[[#This Row],[المحافظة]])","v":0}]
["عميل 204","فيصل","القاهرة",{"$f":"COUNTIFS('بيانات البيع'!A:A,Table3[[#This Row],[إسم العميل]],'بيانات البيع'!B:B,Table3[[#This Row],[المنطقة]],'بيانات البيع'!C:C,Table3[[#This Row],[المحافظة]])","v":0},{"$f":"SUMIFS('بيانات البيع'!E:E,'بيانات البيع'!A:A,Table3[[#This Row],[إسم العميل]],'بيانات البيع'!B:B,Table3[[#This Row],[المنطقة]],'بيانات البيع'!C:C,Table3[[#This Row],[المحافظة]])","v":0}]
["عميل 205","الجيزة","الجيزة",{"$f":"COUNTIFS('بيانات البيع'!A:A,Table3[[#This Row],[إسم العميل]],'بيانات البيع'!B:B,Table3[[#This Row],[المنطقة]],'بيانات البيع'!C:C,Table3[[#This Row],[المحافظة]])","v":0},{"$f":"SUMIFS('بيانات البيع'!E:E,'بيانات البيع'!A:A,Table3[[#This Row],[إسم العميل]],'بيانات البيع'!B:B,Table3[[#This Row],[المنطقة]],'بيانات البيع'!C:C,Table3[[#This Row],[المحافظة]])","v":0}]
["عميل 206","الزقازيق","الشرقية",{"$f":"COUNTIFS('بيانات البيع'!A:A,Table3[[#This Row],[إسم العميل]],'بيانات البيع'!B:B,Table3[[#This Row],[المنطقة]],'بيانات البيع'!C:C,Table3[[#This Row],[المحافظة]])","v":0},{"$f":"SUMIFS('بيانات البيع'!E:E,'بيانات البيع'!A:A,Table3[[#This Row],[إسم العميل]],'بيانات البيع'!B:B,Table3[[#This Row],[المنطقة]],'بيانات البيع'!C:C,Table3[[#This Row],[المحافظة]])","v":0}]
["عميل 207","الحوامدية","الجيزة",{"$f":"COUNTIFS('بيانات البيع'!A:A,Table3[[#This Row],[إسم العميل]],'بيانات البيع'!B:B,Table3[[#This Row],[المنطقة]],'بيانات البيع'!C:C,Table3[[#This Row],[المحافظة]])","v":0},{"$f":"SUMIFS('بيانات البيع'!E:E,'بيانات البيع'!A:A,Table3[[#This Row],[إسم العميل]],'بيانات البيع'!B:B,Table3[[#This Row],[المنطقة]],'بيانات البيع'!C:C,Table3[[#This Row],[المحافظة]])","v":0}]
["عميل 208","أشمون","المنوفية",{"$f":"COUNTIFS('بيانات البيع'!A:A,Table3[[#This Row],[إسم العميل]],'بيانات البيع'!B:B,Table3[[#This Row],[المنطقة]],'بيانات البيع'!C:C,Table3[[#This Row],[المحافظة]])","v":0},{"$f":"SUMIFS('بيانات البيع'!E:E,'بيانات البيع'!A:A,Table3[[#This Row],[إسم العميل]],'بيانات البيع'!B:B,Table3[[#This Row],[المنطقة]],'بيانات البيع'!C:C,Table3[[#This Row],[المحافظة]])","v":0}]
["عميل 209","سوهاج","سوهاج",{"$f":"COUNTIFS('بيانات البيع'!A:A,Table3[[#This Row],[إسم العميل]],'بيانات البيع'!B:B,Table3[[#This Row],[المنطقة]],'بيانات البيع'!C:C,Table3[[#This Row],[المحافظة]])","v":0},{"$f":"SUMIFS('بيانات البيع'!E:E,'بيانات البيع'!A:A,Table3[[#This Row],[إسم العميل]],'بيانات البيع'!B:B,Table3[[#This Row],[المنطقة]],'بيانات البيع'!C:C,Table3[[#This Row],[المحافظة]])","v":0}]
["عميل 210","المعادى","القاهرة",{"$f":"COUNTIFS('بيانات البيع'!A:A,Table3[[#This Row],[إسم العميل]],'بيانات البيع'!B:B,Table3[[#This Row],[المنطقة]],'بيانات البيع'!C:C,Table3[[#This Row],[المحافظة]])","v":0},{"$f":"SUMIFS('بيانات البيع'!E:E,'بيانات البيع'!A:A,Table3[[#This Row],[إسم العميل]],'بيانات البيع'!B:B,Table3[[#This Row],[المنطقة]],'بيانات البيع'!C:C,Table3[[#This Row],[المحافظة]])","v":0}]
["عميل 211","الهرم","الجيزة",{"$f":"COUNTIFS('بيانات البيع'!A:A,Table3[[#This Row],[إسم العميل]],'بيانات البيع'!B:B,Table3[[#This Row],[المنطقة]],'بيانات البيع'!C:C,Table3[[#This Row],[المحافظة]])","v":0},{"$f":"SUMIFS('بيانات البيع'!E:E,'بيانات البيع'!A:A,Table3[[#This Row],[إسم العميل]],'بيانات البيع'!B:B,Table3[[#This Row],[المنطقة]],'بيانات البيع'!C:C,Table3[[#This Row],[المحافظة]])","v":0}]
["عميل 212","القصر العينى","القاهرة",{"$f":"COUNTIFS('بيانات البيع'!A:A,Table3[[#This Row],[إسم العميل]],'بيانات البيع'!B:B,Table3[[#This Row],[المنطقة]],'بيانات البيع'!C:C,Table3[[#This Row],[المحافظة]])","v":0},{"$f":"SUMIFS('بيانات البيع'!E:E,'بيانات البيع'!A:A,Table3[[#This Row],[إسم العميل]],'بيانات البيع'!B:B,Table3[[#This Row],[المنطقة]],'بيانات البيع'!C:C,Table3[[#This Row],[المحافظة]])","v":0}]
["عميل 213","شبرا الخيمة","القليوبية",{"$f":"COUNTIFS('بيانات البيع'!A:A,Table3[[#This Row],[إسم العميل]],'بيانات البيع'!B:B,Table3[[#This Row],[المنطقة]],'بيانات البيع'!C:C,Table3[[#This Row],[المحافظة]])","v":0},{"$f":"SUMIFS('بيانات البيع'!E:E,'بيانات البيع'!A:A,Table3[[#This Row],[إسم العميل]],'بيانات البيع'!B:B,Table3[[#This Row],[المنطقة]],'بيانات البيع'!C:C,Table3[[#This Row],[المحافظة]])","v":0}]
["عميل 214","حلوان","القاهرة",{"$f":"COUNTIFS('بيانات البيع'!A:A,Table3[[#This Row],[إسم العميل]],'بيانات البيع'!B:B,Table3[[#This Row],[المنطقة]],'بيانات البيع'!C:C,Table3[[#This Row],[المحافظة]])","v":0},{"$f":"SUMIFS('بيانات البيع'!E:E,'بيانات البيع'!A:A,Table3[[#This Row],[إسم العميل]],'بيانات البيع'!B:B,Table3[[#This Row],[المنطقة]],'بيانات البيع'!C:C,Table3[[#This Row],[المحافظة]])","v":0}]
["عميل 215","الشرابية","القاهرة",{"$f":"COUNTIFS('بيانات البيع'!A:A,Table3[[#This Row],[إسم العميل]],'بيانات البيع'!B:B,Table3[[#This Row],[المنطقة]],'بيانات البيع'!C:C,Table3[[#This Row],[المحافظة]])","v":0},{"$f":"SUMIFS('بيانات البيع'!E:E,'بيانات البيع'!A:A,Table3[[#This Row],[إسم العميل]],'بيانات البيع'!B:B,Table3[[#This Row],[المنطقة]],'بيانات البيع'!C:C,Table3[[#This Row],[المحافظة]])","v":0}]
["عميل 216","القاهرة","القاهرة",{"$f":"COUNTIFS('بيانات البيع'!A:A,Table3[[#This Row],[إسم العميل]],'بيانات البيع'!B:B,Table3[[#This Row],[المنطقة]],'بيانات البيع'!C:C,Table3[[#This Row],[المحافظة]])","v":1},{"$f":"SUMIFS('بيانات البيع'!E:E,'بيانات البيع'!A:A,Table3[[#This Row],[إسم العميل]],'بيانات البيع'!B:B,Table3[[#This Row],[المنطقة]],'بيانات البيع'!C:C,Table3[[#This Row],[المحافظة]])","v":240}]
["عميل 217","فيصل","الجيزة",{"$f":"COUNTIFS('بيانات البيع'!A:A,Table3[[#This Row],[إسم العميل]],'بيانات البيع'!B:B,Table3[[#This Row],[المنطقة]],'بيانات البيع'!C:C,Table3[[#This Row],[المحافظة]])","v":0},{"$f":"SUMIFS('بيانات البيع'!E:E,'بيانات البيع'!A:A,Table3[[#This Row],[إسم العميل]],'بيانات البيع'!B:B,Table3[[#This Row],[المنطقة]],'بيانات البيع'!C:C,Table3[[#This Row],[المحافظة]])","v":0}]
["عميل 218","العجوزة","الجيزة",{"$f":"COUNTIFS('بيانات البيع'!A:A,Table3[[#This Row],[إسم العميل]],'بيانات البيع'!B:B,Table3[[#This Row],[المنطقة]],'بيانات البيع'!C:C,Table3[[#This Row],[المحافظة]])","v":0},{"$f":"SUMIFS('بيانات البيع'!E:E,'بيانات البيع'!A:A,Table3[[#This Row],[إسم العميل]],'بيانات البيع'!B:B,Table3[[#This Row],[المنطقة]],'بيانات البيع'!C:C,Table3[[#This Row],[المحافظة]])","v":0}]
["عميل 219","القصر العينى","القاهرة",{"$f":"COUNTIFS('بيانات البيع'!A:A,Table3[[#This Row],[إسم العميل]],'بيانات البيع'!B:B,Table3[[#This Row],[المنطقة]],'بيانات البيع'!C:C,Table3[[#This Row],[المحافظة]])","v":0},{"$f":"SUMIFS('بيانات البيع'!E:E,'بيانات البيع'!A:A,Table3[[#This Row],[إسم العميل]],'بيانات البيع'!B:B,Table3[[#This Row],[المنطقة]],'بيانات البيع'!C:C,Table3[[#This Row],[المحافظة]])","v":0}]
["عميل 220","الدرب الأحمر","القاهرة",{"$f":"COUNTIFS('بيانات البيع'!A:A,Table3[[#This Row],[إسم العميل]],'بيانات البيع'!B:B,Table3[[#This Row],[المنطقة]],'بيانات البيع'!C:C,Table3[[#This Row],[المحافظة]])","v":0},{"$f":"SUMIFS('بيانات البيع'!E:E,'بيانات البيع'!A:A,Table3[[#This Row],[إسم العميل]],'بيانات البيع'!B:B,Table3[[#This Row],[المنطقة]],'بيانات البيع'!C:C,Table3[[#This Row],[المحافظة]])","v":0}]
["عميل 221","غمرة","القاهرة",{"$f":"COUNTIFS('بيانات البيع'!A:A,Table3[[#This Row],[إسم العميل]],'بيانات البيع'!B:B,Table3[[#This Row],[المنطقة]],'بيانات البيع'!C:C,Table3[[#This Row],[المحافظة]])","v":0},{"$f":"SUMIFS('بيانات البيع'!E:E,'بيانات البيع'!A:A,Table3[[#This Row],[إسم العميل]],'بيانات البيع'!B:B,Table3[[#This Row],[المنطقة]],'بيانات البيع'!C:C,Table3[[#This Row],[المحافظة]])","v":0}]
["عميل 222","القاهرة","القاهرة",{"$f":"COUNTIFS('بيانات البيع'!A:A,Table3[[#This Row],[إسم العميل]],'بيانات البيع'!B:B,Table3[[#This Row],[المنطقة]],'بيانات البيع'!C:C,Table3[[#This Row],[المحافظة]])","v":0},{"$f":"SUMIFS('بيانات البيع'!E:E,'بيانات البيع'!A:A,Table3[[#This Row],[إسم العميل]],'بيانات البيع'!B:B,Table3[[#This Row],[المنطقة]],'بيانات البيع'!C:C,Table3[[#This Row],[المحافظة]])","v":0}]
["عميل 223","القصر العينى","القاهرة",{"$f":"COUNTIFS('بيانات البيع'!A:A,Table3[[#This Row],[إسم العميل]],'بيانات البيع'!B:B,Table3[[#This Row],[المنطقة]],'بيانات البيع'!C:C,Table3[[#This Row],[المحافظة]])","v":1},{"$f":"SUMIFS('بيانات البيع'!E:E,'بيانات البيع'!A:A,Table3[[#This Row],[إسم العميل]],'بيانات البيع'!B:B,Table3[[#This Row],[المنطقة]],'بيانات البيع'!C:C,Table3[[#This Row],[المحافظة]])","v":175}]
["عميل 224","مصر القديمة","القاهرة",{"$f":"COUNTIFS('بيانات البيع'!A:A,Table3[[#This Row],[إسم العميل]],'بيانات البيع'!B:B,Table3[[#This Row],[المنطقة]],'بيانات البيع'!C:C,Table3[[#This Row],[المحافظة]])","v":0},{"$f":"SUMIFS('بيانات البيع'!E:E,'بيانات البيع'!A:A,Table3[[#This Row],[إسم العميل]],'بيانات البيع'!B:B,Table3[[#This Row],[المنطقة]],'بيانات البيع'!C:C,Table3[[#This Row],[المحافظة]])","v":0}]
["عميل 225","أبو غالب","الجيزة",{"$f":"COUNTIFS('بيانات البيع'!A:A,Table3[[#This Row],[إسم العميل]],'بيانات البيع'!B:B,Table3[[#This Row],[المنطقة]],'بيانات البيع'!C:C,Table3[[#This Row],[المحافظة]])","v":0},{"$f":"SUMIFS('بيانات البيع'!E:E,'بيانات البيع'!A:A,Table3[[#This Row],[إسم العميل]],'بيانات البيع'!B:B,Table3[[#This Row],[المنطقة]],'بيانات البيع'!C:C,Table3[[#This Row],[المحافظة]])","v":0}]
["عميل 226","فيصل","الجيزة",{"$f":"COUNTIFS('بيانات البيع'!A:A,Table3[[#This Row],[إسم العميل]],'بيانات البيع'!B:B,Table3[[#This Row],[المنطقة]],'بيانات البيع'!C:C,Table3[[#This Row],[المحافظة]])","v":0},{"$f":"SUMIFS('بيانات البيع'!E:E,'بيانات البيع'!A:A,Table3[[#This Row],[إسم العميل]],'بيانات البيع'!B:B,Table3[[#This Row],[المنطقة]],'بيانات البيع'!C:C,Table3[[#This Row],[المحافظة]])","v":0}]
["عميل 227","جامعة القاهرة","القاهرة",{"$f":"COUNTIFS('بيانات البيع'!A:A,Table3[[#This Row],[إسم العميل]],'بيانات البيع'!B:B,Table3[[#This Row],[المنطقة]],'بيانات البيع'!C:C,Table3[[#This Row],[المحافظة]])","v":0},{"$f":"SUMIFS('بيانات البيع'!E:E,'بيانات البيع'!A:A,Table3[[#This Row],[إسم العميل]],'بيانات البيع'!B:B,Table3[[#This Row],[المنطقة]],'بيانات البيع'!C:C,Table3[[#This Row],[المحافظة]])","v":0}]
["عميل 228","الإسماعيلية","الإسماعيلية",{"$f":"COUNTIFS('بيانات البيع'!A:A,Table3[[#This Row],[إسم العميل]],'بيانات البيع'!B:B,Table3[[#This Row],[المنطقة]],'بيانات البيع'!C:C,Table3[[#This Row],[المحافظة]])","v":0},{"$f":"SUMIFS('بيانات البيع'!E:E,'بيانات البيع'!A:A,Table3[[#This Row],[إسم العميل]],'بيانات البيع'!B:B,Table3[[#This Row],[المنطقة]],'بيانات البيع'!C:C,Table3[[#This Row],[المحافظة]])","v":0}]
["عميل 229","القصر العينى","القاهرة",{"$f":"COUNTIFS('بيانات البيع'!A:A,Table3[[#This Row],[إسم العميل]],'بيانات البيع'!B:B,Table3[[#This Row],[المنطقة]],'بيانات البيع'!C:C,Table3[[#This Row],[المحافظة]])","v":0},{"$f":"SUMIFS('بيانات البيع'!E:E,'بيانات البيع'!A:A,Table3[[#This Row],[إسم العميل]],'بيانات البيع'!B:B,Table3[[#This Row],[المنطقة]],'بيانات البيع'!C:C,Table3[[#This Row],[المحافظة]])","v":0}]
["عميل 230","بولاق الدكرور","الجيزة",{"$f":"COUNTIFS('بيانات البيع'!A:A,Table3[[#This Row],[إسم العميل]],'بيانات البيع'!B:B,Table3[[#This Row],[المنطقة]],'بيانات البيع'!C:C,Table3[[#This Row],[المحافظة]])","v":0},{"$f":"SUMIFS('بيانات البيع'!E:E,'بيانات البيع'!A:A,Table3[[#This Row],[إسم العميل]],'بيانات البيع'!B:B,Table3[[#This Row],[المنطقة]],'بيانات البيع'!C:C,Table3[[#This Row],[المحافظة]])","v":0}]
["عميل 231","المعادى","القاهرة",{"$f":"COUNTIFS('بيانات البيع'!A:A,Table3[[#This Row],[إسم العميل]],'بيانات البيع'!B:B,Table3[[#This Row],[المنطقة]],'بيانات البيع'!C:C,Table3[[#This Row],[المحافظة]])","v":0},{"$f":"SUMIFS('بيانات البيع'!E:E,'بيانات البيع'!A:A,Table3[[#This Row],[إسم العميل]],'بيانات البيع'!B:B,Table3[[#This Row],[المنطقة]],'بيانات البيع'!C:C,Table3[[#This Row],[المحافظة]])","v":0}]
["عميل 232","القاهرة","القاهرة",{"$f":"COUNTIFS('بيانات البيع'!A:A,Table3[[#This Row],[إسم العميل]],'بيانات البيع'!B:B,Table3[[#This Row],[المنطقة]],'بيانات البيع'!C:C,Table3[[#This Row],[المحافظة]])","v":0},{"$f":"SUMIFS('بيانات البيع'!E:E,'بيانات البيع'!A:A,Table3[[#This Row],[إسم العميل]],'بيانات البيع'!B:B,Table3[[#This Row],[المنطقة]],'بيانات البيع'!C:C,Table3[[#This Row],[المحافظة]])","v":0}]
["عميل 233","السيدة زينب","القاهرة",{"$f":"COUNTIFS('بيانات البيع'!A:A,Table3[[#This Row],[إسم العميل]],'بيانات البيع'!B:B,Table3[[#This Row],[المنطقة]],'بيانات البيع'!C:C,Table3[[#This Row],[المحافظة]])","v":0},{"$f":"SUMIFS('بيانات البيع'!E:E,'بيانات البيع'!A:A,Table3[[#This Row],[إسم العميل]],'بيانات البيع'!B:B,Table3[[#This Row],[المنطقة]],'بيانات البيع'!C:C,Table3[[#This Row],[المحافظة]])","v":0}]
["عميل 234","القصر العينى","القاهرة",{"$f":"COUNTIFS('بيانات البيع'!A:A,Table3[[#This Row],[إسم العميل]],'بيانات البيع'!B:B,Table3[[#This Row],[المنطقة]],'بيانات البيع'!C:C,Table3[[#This Row],[المحافظة]])","v":1},{"$f":"SUMIFS('بيانات البيع'!E:E,'بيانات البيع'!A:A,Table3[[#This Row],[إسم العميل]],'بيانات البيع'!B:B,Table3[[#This Row],[المنطقة]],'بيانات البيع'!C:C,Table3[[#This Row],[المحافظة]])","v":350}]
["عميل 235","الجيزة","الجيزة",{"$f":"COUNTIFS('بيانات البيع'!A:A,Table3[[#This Row],[إسم العميل]],'بيانات البيع'!B:B,Table3[[#This Row],[المنطقة]],'بيانات البيع'!C:C,Table3[[#This Row],[المحافظة]])","v":0},{"$f":"SUMIFS('بيانات البيع'!E:E,'بيانات البيع'!A:A,Table3[[#This Row],[إسم العميل]],'بيانات البيع'!B:B,Table3[[#This Row],[المنطقة]],'بيانات البيع'!C:C,Table3[[#This Row],[المحافظة]])","v":0}]
["عميل 236","الهرم","الجيزة",{"$f":"COUNTIFS('بيانات البيع'!A:A,Table3[[#This Row],[إسم العميل]],'بيانات البيع'!B:B,Table3[[#This Row],[المنطقة]],'بيانات البيع'!C:C,Table3[[#This Row],[المحافظة]])","v":0},{"$f":"SUMIFS('بيانات البيع'!E:E,'بيانات البيع'!A:A,Table3[[#This Row],[إسم العميل]],'بيانات البيع'!B:B,Table3[[#This Row],[المنطقة]],'بيانات البيع'!C:C,Table3[[#This Row],[المحافظة]])","v":0}]
["عميل 237","شارع السودان","الجيزة",{"$f":"COUNTIFS('بيانات البيع'!A:A,Table3[[#This Row],[إسم العميل]],'بيانات البيع'!B:B,Table3[[#This Row],[المنطقة]],'بيانات البيع'!C:C,Table3[[#This Row],[المحافظة]])","v":0},{"$f":"SUMIFS('بيانات البيع'!E:E,'بيانات البيع'!A:A,Table3[[#This Row],[إسم العميل]],'بيانات البيع'!B:B,Table3[[#This Row],[المنطقة]],'بيانات البيع'!C:C,Table3[[#This Row],[المحافظة]])","v":0}]
["عميل 238","العياط","الجيزة",{"$f":"COUNTIFS('بيانات البيع'!A:A,Table3[[#This Row],[إسم العميل]],'بيانات البيع'!B:B,Table3[[#This Row],[المنطقة]],'بيانات البيع'!C:C,Table3[[#This Row],[المحافظة]])","v":0},{"$f":"SUMIFS('بيانات البيع'!E:E,'بيانات البيع'!A:A,Table3[[#This Row],[إسم العميل]],'بيانات البيع'!B:B,Table3[[#This Row],[المنطقة]],'بيانات البيع'!C:C,Table3[[#This Row],[المحافظة]])","v":0}]
["عميل 239","مدينة نصر","القاهرة",{"$f":"COUNTIFS('بيانات البيع'!A:A,Table3[[#This Row],[إسم العميل]],'بيانات البيع'!B:B,Table3[[#This Row],[المنطقة]],'بيانات البيع'!C:C,Table3[[#This Row],[المحافظة]])","v":0},{"$f":"SUMIFS('بيانات البيع'!E:E,'بيانات البيع'!A:A,Table3[[#This Row],[إسم العميل]],'بيانات البيع'!B:B,Table3[[#This Row],[المنطقة]],'بيانات البيع'!C:C,Table3[[#This Row],[المحافظة]])","v":0}]
["عميل 240","القصر العينى","القاهرة",{"$f":"COUNTIFS('بيانات البيع'!A:A,Table3[[#This Row],[إسم العميل]],'بيانات البيع'!B:B,Table3[[#This Row],[المنطقة]],'بيانات البيع'!C:C,Table3[[#This Row],[المحافظة]])","v":0},{"$f":"SUMIFS('بيانات البيع'!E:E,'بيانات البيع'!A:A,Table3[[#This Row],[إسم العميل]],'بيانات البيع'!B:B,Table3[[#This Row],[المنطقة]],'بيانات البيع'!C:C,Table3[[#This Row],[المحافظة]])","v":0}]
["عميل 241","القصر العينى","القاهرة",{"$f":"COUNTIFS('بيانات البيع'!A:A,Table3[[#This Row],[إسم العميل]],'بيانات البيع'!B:B,Table3[[#This Row],[المنطقة]],'بيانات البيع'!C:C,Table3[[#This Row],[المحافظة]])","v":0},{"$f":"SUMIFS('بيانات البيع'!E:E,'بيانات البيع'!A:A,Table3[[#This Row],[إسم العميل]],'بيانات البيع'!B:B,Table3[[#This Row],[المنطقة]],'بيانات البيع'!C:C,Table3[[#This Row],[المحافظة]])","v":0}]
["عميل 242","القاهرة","القاهرة",{"$f":"COUNTIFS('بيانات البيع'!A:A,Table3[[#This Row],[إسم العميل]],'بيانات البيع'!B:B,Table3[[#This Row],[المنطقة]],'بيانات البيع'!C:C,Table3[[#This Row],[المحافظة]])","v":0},{"$f":"SUMIFS('بيانات البيع'!E:E,'بيانات البيع'!A:A,Table3[[#This Row],[إسم العميل]],'بيانات البيع'!B:B,Table3[[#This Row],[المنطقة]],'بيانات البيع'!C:C,Table3[[#This Row],[المحافظة]])","v":0}]
["عميل 243","اسوان","اسوان",{"$f":"COUNTIFS('بيانات البيع'!A:A,Table3[[#This Row],[إسم العميل]],'بيانات البيع'!B:B,Table3[[#This Row],[المنطقة]],'بيانات البيع'!C:C,Table3[[#This Row],[المحافظة]])","v":0},{"$f":"SUMIFS('بيانات البيع'!E:E,'بيانات البيع'!A:A,Table3[[#This Row],[إسم العميل]],'بيانات البيع'!B:B,Table3[[#This Row],[المنطقة]],'بيانات البيع'!C:C,Table3[[#This Row],[المحافظة]])","v":0}]
["عميل 244","القصر العينى","القاهرة",{"$f":"COUNTIFS('بيانات البيع'!A:A,Table3[[#This Row],[إسم العميل]],'بيانات البيع'!B:B,Table3[[#This Row],[المنطقة]],'بيانات البيع'!C:C,Table3[[#This Row],[المحافظة]])","v":0},{"$f":"SUMIFS('بيانات البيع'!E:E,'بيانات البيع'!A:A,Table3[[#This Row],[إسم العميل]],'بيانات البيع'!B:B,Table3[[#This Row],[المنطقة]],'بيانات البيع'!C:C,Table3[[#This Row],[المحافظة]])","v":0}]
["عميل 245","المعادى","القاهرة",{"$f":"COUNTIFS('بيانات البيع'!A:A,Table3[[#This Row],[إسم العميل]],'بيانات البيع'!B:B,Table3[[#This Row],[المنطقة]],'بيانات البيع'!C:C,Table3[[#This Row],[المحافظة]])","v":0},{"$f":"SUMIFS('بيانات البيع'!E:E,'بيانات البيع'!A:A,Table3[[#This Row],[إسم العميل]],'بيانات البيع'!B:B,Table3[[#This Row],[المنطقة]],'بيانات البيع'!C:C,Table3[[#This Row],[المحافظة]])","v":0}]
["عميل 246","المطرية","الجيزة",{"$f":"COUNTIFS('بيانات البيع'!A:A,Table3[[#This Row],[إسم العميل]],'بيانات البيع'!B:B,Table3[[#This Row],[المنطقة]],'بيانات البيع'!C:C,Table3[[#This Row],[المحافظة]])","v":0},{"$f":"SUMIFS('بيانات البيع'!E:E,'بيانات البيع'!A:A,Table3[[#This Row],[إسم العميل]],'بيانات البيع'!B:B,Table3[[#This Row],[المنطقة]],'بيانات البيع'!C:C,Table3[[#This Row],[المحافظة]])","v":0}]
["عميل 247","الدقى","الجيزة",{"$f":"COUNTIFS('بيانات البيع'!A:A,Table3[[#This Row],[إسم العميل]],'بيانات البيع'!B:B,Table3[[#This Row],[المنطقة]],'بيانات البيع'!C:C,Table3[[#This Row],[المحافظة]])","v":0},{"$f":"SUMIFS('بيانات البيع'!E:E,'بيانات البيع'!A:A,Table3[[#This Row],[إسم العميل]],'بيانات البيع'!B:B,Table3[[#This Row],[المنطقة]],'بيانات البيع'!C:C,Table3[[#This Row],[المحافظة]])","v":0}]
["عميل 248","مول العرب","القاهرة",{"$f":"COUNTIFS('بيانات البيع'!A:A,Table3[[#This Row],[إسم العميل]],'بيانات البيع'!B:B,Table3[[#This Row],[المنطقة]],'بيانات البيع'!C:C,Table3[[#This Row],[المحافظة]])","v":0},{"$f":"SUMIFS('بيانات البيع'!E:E,'بيانات البيع'!A:A,Table3[[#This Row],[إسم العميل]],'بيانات البيع'!B:B,Table3[[#This Row],[المنطقة]],'بيانات البيع'!C:C,Table3[[#This Row],[المحافظة]])","v":0}]
["عميل 249","القصر العينى","القاهرة",{"$f":"COUNTIFS('بيانات البيع'!A:A,Table3[[#This Row],[إسم العميل]],'بيانات البيع'!B:B,Table3[[#This Row],[المنطقة]],'بيانات البيع'!C:C,Table3[[#This Row],[المحافظة]])","v":1},{"$f":"SUMIFS('بيانات البيع'!E:E,'بيانات البيع'!A:A,Table3[[#This Row],[إسم العميل]],'بيانات البيع'!B:B,Table3[[#This Row],[المنطقة]],'بيانات البيع'!C:C,Table3[[#This Row],[المحافظة]])","v":300}]
["عميل 250","الهرم","الجيزة",{"$f":"COUNTIFS('بيانات البيع'!A:A,Table3[[#This Row],[إسم العميل]],'بيانات البيع'!B:B,Table3[[#This Row],[المنطقة]],'بيانات البيع'!C:C,Table3[[#This Row],[المحافظة]])","v":0},{"$f":"SUMIFS('بيانات البيع'!E:E,'بيانات البيع'!A:A,Table3[[#This Row],[إسم العميل]],'بيانات البيع'!B:B,Table3[[#This Row],[المنطقة]],'بيانات البيع'!C:C,Table3[[#This Row],[المحافظة]])","v":0}]
["عميل 251","حدائق المعادى","القاهرة",{"$f":"COUNTIFS('بيانات البيع'!A:A,Table3[[#This Row],[إسم العميل]],'بيانات البيع'!B:B,Table3[[#This Row],[المنطقة]],'بيانات البيع'!C:C,Table3[[#This Row],[المحافظة]])","v":0},{"$f":"SUMIFS('بيانات البيع'!E:E,'بيانات البيع'!A:A,Table3[[#This Row],[إسم العميل]],'بيانات البيع'!B:B,Table3[[#This Row],[المنطقة]],'بيانات البيع'!C:C,Table3[[#This Row],[المحافظة]])","v":0}]
["عميل 252","دار السلام","القاهرة",{"$f":"COUNTIFS('بيانات البيع'!A:A,Table3[[#This Row],[إسم العميل]],'بيانات البيع'!B:B,Table3[[#This Row],[المنطقة]],'بيانات البيع'!C:C,Table3[[#This Row],[المحافظة]])","v":0},{"$f":"SUMIFS('بيانات البيع'!E:E,'بيانات البيع'!A:A,Table3[[#This Row],[إسم العميل]],'بيانات البيع'!B:B,Table3[[#This Row],[المنطقة]],'بيانات البيع'!C:C,Table3[[#This Row],[المحافظة]])","v":0}]
["عميل 253","أسيوط","أسيوط",{"$f":"COUNTIFS('بيانات البيع'!A:A,Table3[[#This Row],[إسم العميل]],'بيانات البيع'!B:B,Table3[[#This Row],[المنطقة]],'بيانات البيع'!C:C,Table3[[#This Row],[المحافظة]])","v":0},{"$f":"SUMIFS('بيانات البيع'!E:E,'بيانات البيع'!A:A,Table3[[#This Row],[إسم العميل]],'بيانات البيع'!B:B,Table3[[#This Row],[المنطقة]],'بيانات البيع'!C:C,Table3[[#This Row],[المحافظة]])","v":0}]
["عميل 254","الخصوص","القليوبية",{"$f":"COUNTIFS('بيانات البيع'!A:A,Table3[[#This Row],[إسم العميل]],'بيانات البيع'!B:B,Table3[[#This Row],[المنطقة]],'بيانات البيع'!C:C,Table3[[#This Row],[المحافظة]])","v":0},{"$f":"SUMIFS('بيانات البيع'!E:E,'بيانات البيع'!A:A,Table3[[#This Row],[إسم العميل]],'بيانات البيع'!B:B,Table3[[#This Row],[المنطقة]],'بيانات البيع'!C:C,Table3[[#This Row],[المحافظة]])","v":0}]
["عميل 255","الغردقة","البحر الأحمر",{"$f":"COUNTIFS('بيانات البيع'!A:A,Table3[[#This Row],[إسم العميل]],'بيانات البيع'!B:B,Table3[[#This Row],[المنطقة]],'بيانات البيع'!C:C,Table3[[#This Row],[المحافظة]])","v":0},{"$f":"SUMIFS('بيانات البيع'!E:E,'بيانات البيع'!A:A,Table3[[#This Row],[إسم العميل]],'بيانات البيع'!B:B,Table3[[#This Row],[المنطقة]],'بيانات البيع'!C:C,Table3[[#This Row],[المحافظة]])","v":0}]
["عميل 256","بنى سويف","بنى سويف",{"$f":"COUNTIFS('بيانات البيع'!A:A,Table3[[#This Row],[إسم العميل]],'بيانات البيع'!B:B,Table3[[#This Row],[المنطقة]],'بيانات البيع'!C:C,Table3[[#This Row],[المحافظة]])","v":0},{"$f":"SUMIFS('بيانات البيع'!E:E,'بيانات البيع'!A:A,Table3[[#This Row],[إسم العميل]],'بيانات البيع'!B:B,Table3[[#This Row],[المنطقة]],'بيانات البيع'!C:C,Table3[[#This Row],[المحافظة]])","v":0}]
["عميل 257","مصر الجديدة","القاهرة",{"$f":"COUNTIFS('بيانات البيع'!A:A,Table3[[#This Row],[إسم العميل]],'بيانات البيع'!B:B,Table3[[#This Row],[المنطقة]],'بيانات البيع'!C:C,Table3[[#This Row],[المحافظة]])","v":0},{"$f":"SUMIFS('بيانات البيع'!E:E,'بيانات البيع'!A:A,Table3[[#This Row],[إسم العميل]],'بيانات البيع'!B:B,Table3[[#This Row],[المنطقة]],'بيانات البيع'!C:C,Table3[[#This Row],[المحافظة]])","v":0}]
["عميل 258","مدينة نصر","القاهرة",{"$f":"COUNTIFS('بيانات البيع'!A:A,Table3[[#This Row],[إسم العميل]],'بيانات البيع'!B:B,Table3[[#This Row],[المنطقة]],'بيانات البيع'!C:C,Table3[[#This Row],[المحافظة]])","v":0},{"$f":"SUMIFS('بيانات البيع'!E:E,'بيانات البيع'!A:A,Table3[[#This Row],[إسم العميل]],'بيانات البيع'!B:B,Table3[[#This Row],[المنطقة]],'بيانات البيع'!C:C,Table3[[#This Row],[المحافظة]])","v":0}]
["عميل 259","الزقازيق","الشرقية",{"$f":"COUNTIFS('بيانات البيع'!A:A,Table3[[#This Row],[إسم العميل]],'بيانات البيع'!B:B,Table3[[#This Row],[المنطقة]],'بيانات البيع'!C:C,Table3[[#This Row],[المحافظة]])","v":0},{"$f":"SUMIFS('بيانات البيع'!E:E,'بيانات البيع'!A:A,Table3[[#This Row],[إسم العميل]],'بيانات البيع'!B:B,Table3[[#This Row],[المنطقة]],'بيانات البيع'!C:C,Table3[[#This Row],[المحافظة]])","v":0}]
["عميل 260","السيدة زينب","القاهرة",{"$f":"COUNTIFS('بيانات البيع'!A:A,Table3[[#This Row],[إسم العميل]],'بيانات البيع'!B:B,Table3[[#This Row],[المنطقة]],'بيانات البيع'!C:C,Table3[[#This Row],[المحافظة]])","v":0},{"$f":"SUMIFS('بيانات البيع'!E:E,'بيانات البيع'!A:A,Table3[[#This Row],[إسم العميل]],'بيانات البيع'!B:B,Table3[[#This Row],[المنطقة]],'بيانات البيع'!C:C,Table3[[#This Row],[المحافظة]])","v":0}]
["عميل 261","مايو","القاهرة",{"$f":"COUNTIFS('بيانات البيع'!A:A,Table3[[#This Row],[إسم العميل]],'بيانات البيع'!B:B,Table3[[#This Row],[المنطقة]],'بيانات البيع'!C:C,Table3[[#This Row],[المحافظة]])","v":0},{"$f":"SUMIFS('بيانات البيع'!E:E,'بيانات البيع'!A:A,Table3[[#This Row],[إسم العميل]],'بيانات البيع'!B:B,Table3[[#This Row],[المنطقة]],'بيانات البيع'!C:C,Table3[[#This Row],[المحافظة]])","v":0}]
["عميل 262","فيصل","الجيزة",{"$f":"COUNTIFS('بيانات البيع'!A:A,Table3[[#This Row],[إسم العميل]],'بيانات البيع'!B:B,Table3[[#This Row],[المنطقة]],'بيانات البيع'!C:C,Table3[[#This Row],[المحافظة]])","v":0},{"$f":"SUMIFS('بيانات البيع'!E:E,'بيانات البيع'!A:A,Table3[[#This Row],[إسم العميل]],'بيانات البيع'!B:B,Table3[[#This Row],[المنطقة]],'بيانات البيع'!C:C,Table3[[#This Row],[المحافظة]])","v":0}]
["عميل 263","القصر العينى","القاهرة",{"$f":"COUNTIFS('بيانات البيع'!A:A,Table3[[#This Row],[إسم العميل]],'بيانات البيع'!B:B,Table3[[#This Row],[المنطقة]],'بيانات البيع'!C:C,Table3[[#This Row],[المحافظة]])","v":1},{"$f":"SUMIFS('بيانات البيع'!E:E,'بيانات البيع'!A:A,Table3[[#This Row],[إسم العميل]],'بيانات البيع'!B:B,Table3[[#This Row],[المنطقة]],'بيانات البيع'!C:C,Table3[[#This Row],[المحافظة]])","v":195}]
["عميل 264","فيصل","الجيزة",{"$f":"COUNTIFS('بيانات البيع'!A:A,Table3[[#This Row],[إسم العميل]],'بيانات البيع'!B:B,Table3[[#This Row],[المنطقة]],'بيانات البيع'!C:C,Table3[[#This Row],[المحافظة]])","v":0},{"$f":"SUMIFS('بيانات البيع'!E:E,'بيانات البيع'!A:A,Table3[[#This Row],[إسم العميل]],'بيانات البيع'!B:B,Table3[[#This Row],[المنطقة]],'بيانات البيع'!C:C,Table3[[#This Row],[المحافظة]])","v":0}]
["عميل 265","القصر العينى","القاهرة",{"$f":"COUNTIFS('بيانات البيع'!A:A,Table3[[#This Row],[إسم العميل]],'بيانات البيع'!B:B,Table3[[#This Row],[المنطقة]],'بيانات البيع'!C:C,Table3[[#This Row],[المحافظة]])","v":1},{"$f":"SUMIFS('بيانات البيع'!E:E,'بيانات البيع'!A:A,Table3[[#This Row],[إسم العميل]],'بيانات البيع'!B:B,Table3[[#This Row],[المنطقة]],'بيانات البيع'!C:C,Table3[[#This Row],[المحافظة]])","v":280}]
["عميل 266","ارض اللواء","الجيزة",{"$f":"COUNTIFS('بيانات البيع'!A:A,Table3[[#This Row],[إسم العميل]],'بيانات البيع'!B:B,Table3[[#This Row],[المنطقة]],'بيانات البيع'!C:C,Table3[[#This Row],[المحافظة]])","v":0},{"$f":"SUMIFS('بيانات البيع'!E:E,'بيانات البيع'!A:A,Table3[[#This Row],[إسم العميل]],'بيانات البيع'!B:B,Table3[[#This Row],[المنطقة]],'بيانات البيع'!C:C,Table3[[#This Row],[المحافظة]])","v":0}]
["عميل 267","الهرم","الجيزة",{"$f":"COUNTIFS('بيانات البيع'!A:A,Table3[[#This Row],[إسم العميل]],'بيانات البيع'!B:B,Table3[[#This Row],[المنطقة]],'بيانات البيع'!C:C,Table3[[#This Row],[المحافظة]])","v":0},{"$f":"SUMIFS('بيانات البيع'!E:E,'بيانات البيع'!A:A,Table3[[#This Row],[إسم العميل]],'بيانات البيع'!B:B,Table3[[#This Row],[المنطقة]],'بيانات البيع'!C:C,Table3[[#This Row],[المحافظة]])","v":0}]
["عميل 268","القصر العينى","القاهرة",{"$f":"COUNTIFS('بيانات البيع'!A:A,Table3[[#This Row],[إسم العميل]],'بيانات البيع'!B:B,Table3[[#This Row],[المنطقة]],'بيانات البيع'!C:C,Table3[[#This Row],[المحافظة]])","v":0},{"$f":"SUMIFS('بيانات البيع'!E:E,'بيانات البيع'!A:A,Table3[[#This Row],[إسم العميل]],'بيانات البيع'!B:B,Table3[[#This Row],[المنطقة]],'بيانات البيع'!C:C,Table3[[#This Row],[المحافظة]])","v":0}]
["عميل 269","القصر العينى","القاهرة",{"$f":"COUNTIFS('بيانات البيع'!A:A,Table3[[#This Row],[إسم العميل]],'بيانات البيع'!B:B,Table3[[#This Row],[المنطقة]],'بيانات البيع'!C:C,Table3[[#This Row],[المحافظة]])","v":0},{"$f":"SUMIFS('بيانات البيع'!E:E,'بيانات البيع'!A:A,Table3[[#This Row],[إسم العميل]],'بيانات البيع'!B:B,Table3[[#This Row],[المنطقة]],'بيانات البيع'!C:C,Table3[[#This Row],[المحافظة]])","v":0}]
["عميل 270","أسيوط","أسيوط",{"$f":"COUNTIFS('بيانات البيع'!A:A,Table3[[#This Row],[إسم العميل]],'بيانات البيع'!B:B,Table3[[#This Row],[المنطقة]],'بيانات البيع'!C:C,Table3[[#This Row],[المحافظة]])","v":0},{"$f":"SUMIFS('بيانات البيع'!E:E,'بيانات البيع'!A:A,Table3[[#This Row],[إسم العميل]],'بيانات البيع'!B:B,Table3[[#This Row],[المنطقة]],'بيانات البيع'!C:C,Table3[[#This Row],[المحافظة]])","v":0}]
["عميل 271","الجمهورية","المنوفية",{"$f":"COUNTIFS('بيانات البيع'!A:A,Table3[[#This Row],[إسم العميل]],'بيانات البيع'!B:B,Table3[[#This Row],[المنطقة]],'بيانات البيع'!C:C,Table3[[#This Row],[المحافظة]])","v":0},{"$f":"SUMIFS('بيانات البيع'!E:E,'بيانات البيع'!A:A,Table3[[#This Row],[إسم العميل]],'بيانات البيع'!B:B,Table3[[#This Row],[المنطقة]],'بيانات البيع'!C:C,Table3[[#This Row],[المحافظة]])","v":0}]
["عميل 272","القصر العينى","القاهرة",{"$f":"COUNTIFS('بيانات البيع'!A:A,Table3[[#This Row],[إسم العميل]],'بيانات البيع'!B:B,Table3[[#This Row],[المنطقة]],'بيانات البيع'!C:C,Table3[[#This Row],[المحافظة]])","v":1},{"$f":"SUMIFS('بيانات البيع'!E:E,'بيانات البيع'!A:A,Table3[[#This Row],[إسم العميل]],'بيانات البيع'!B:B,Table3[[#This Row],[المنطقة]],'بيانات البيع'!C:C,Table3[[#This Row],[المحافظة]])","v":185}]
["عميل 273","المقطم","القاهرة",{"$f":"COUNTIFS('بيانات البيع'!A:A,Table3[[#This Row],[إسم العميل]],'بيانات البيع'!B:B,Table3[[#This Row],[المنطقة]],'بيانات البيع'!C:C,Table3[[#This Row],[المحافظة]])","v":0},{"$f":"SUMIFS('بيانات البيع'!E:E,'بيانات البيع'!A:A,Table3[[#This Row],[إسم العميل]],'بيانات البيع'!B:B,Table3[[#This Row],[المنطقة]],'بيانات البيع'!C:C,Table3[[#This Row],[المحافظة]])","v":0}]
["عميل 274","القصر العينى","القاهرة",{"$f":"COUNTIFS('بيانات البيع'!A:A,Table3[[#This Row],[إسم العميل]],'بيانات البيع'!B:B,Table3[[#This Row],[المنطقة]],'بيانات البيع'!C:C,Table3[[#This Row],[المحافظة]])","v":0},{"$f":"SUMIFS('بيانات البيع'!E:E,'بيانات البيع'!A:A,Table3[[#This Row],[إسم العميل]],'بيانات البيع'!B:B,Table3[[#This Row],[المنطقة]],'بيانات البيع'!C:C,Table3[[#This Row],[المحافظة]])","v":0}]
["عميل 275","المرج","القاهرة",{"$f":"COUNTIFS('بيانات البيع'!A:A,Table3[[#This Row],[إسم العميل]],'بيانات البيع'!B:B,Table3[[#This Row],[المنطقة]],'بيانات البيع'!C:C,Table3[[#This Row],[المحافظة]])","v":0},{"$f":"SUMIFS('بيانات البيع'!E:E,'بيانات البيع'!A:A,Table3[[#This Row],[إسم العميل]],'بيانات البيع'!B:B,Table3[[#This Row],[المنطقة]],'بيانات البيع'!C:C,Table3[[#This Row],[المحافظة]])","v":0}]
["عميل 276","القصر العينى","القاهرة",{"$f":"COUNTIFS('بيانات البيع'!A:A,Table3[[#This Row],[إسم العميل]],'بيانات البيع'!B:B,Table3[[#This Row],[المنطقة]],'بيانات البيع'!C:C,Table3[[#This Row],[المحافظة]])","v":0},{"$f":"SUMIFS('بيانات البيع'!E:E,'بيانات البيع'!A:A,Table3[[#This Row],[إسم العميل]],'بيانات البيع'!B:B,Table3[[#This Row],[المنطقة]],'بيانات البيع'!C:C,Table3[[#This Row],[المحافظة]])","v":0}]
["عميل 277","القصر العينى","القاهرة",{"$f":"COUNTIFS('بيانات البيع'!A:A,Table3[[#This Row],[إسم العميل]],'بيانات البيع'!B:B,Table3[[#This Row],[المنطقة]],'بيانات البيع'!C:C,Table3[[#This Row],[المحافظة]])","v":0},{"$f":"SUMIFS('بيانات البيع'!E:E,'بيانات البيع'!A:A,Table3[[#This Row],[إسم العميل]],'بيانات البيع'!B:B,Table3[[#This Row],[المنطقة]],'بيانات البيع'!C:C,Table3[[#This Row],[المحافظة]])","v":0}]
["عميل 278","القاهرة","القاهرة",{"$f":"COUNTIFS('بيانات البيع'!A:A,Table3[[#This Row],[إسم العميل]],'بيانات البيع'!B:B,Table3[[#This Row],[المنطقة]],'بيانات البيع'!C:C,Table3[[#This Row],[المحافظة]])","v":0},{"$f":"SUMIFS('بيانات البيع'!E:E,'بيانات البيع'!A:A,Table3[[#This Row],[إسم العميل]],'بيانات البيع'!B:B,Table3[[#This Row],[المنطقة]],'بيانات البيع'!C:C,Table3[[#This Row],[المحافظة]])","v":0}]
["عميل 279","القصر العينى","القاهرة",{"$f":"COUNTIFS('بيانات البيع'!A:A,Table3[[#This Row],[إسم العميل]],'بيانات البيع'!B:B,Table3[[#This Row],[المنطقة]],'بيانات البيع'!C:C,Table3[[#This Row],[المحافظة]])","v":0},{"$f":"SUMIFS('بيانات البيع'!E:E,'بيانات البيع'!A:A,Table3[[#This Row],[إسم العميل]],'بيانات البيع'!B:B,Table3[[#This Row],[المنطقة]],'بيانات البيع'!C:C,Table3[[#This Row],[المحافظة]])","v":0}]
["عميل 280","امبابة","الجيزة",{"$f":"COUNTIFS('بيانات البيع'!A:A,Table3[[#This Row],[إسم العميل]],'بيانات البيع'!B:B,Table3[[#This Row],[المنطقة]],'بيانات البيع'!C:C,Table3[[#This Row],[المحافظة]])","v":0},{"$f":"SUMIFS('بيانات البيع'!E:E,'بيانات البيع'!A:A,Table3[[#This Row],[إسم العميل]],'بيانات البيع'!B:B,Table3[[#This Row],[المنطقة]],'بيانات البيع'!C:C,Table3[[#This Row],[المحافظة]])","v":0}]
["عميل 281","الخصوص","القليوبية",{"$f":"COUNTIFS('بيانات البيع'!A:A,Table3[[#This Row],[إسم العميل]],'بيانات البيع'!B:B,Table3[[#This Row],[المنطقة]],'بيانات البيع'!C:C,Table3[[#This Row],[المحافظة]])","v":0},{"$f":"SUMIFS('بيانات البيع'!E:E,'بيانات البيع'!A:A,Table3[[#This Row],[إسم العميل]],'بيانات البيع'!B:B,Table3[[#This Row],[المنطقة]],'بيانات البيع'!C:C,Table3[[#This Row],[المحافظة]])","v":0}]
["عميل 282","القصر العينى","القاهرة",{"$f":"COUNTIFS('بيانات البيع'!A:A,Table3[[#This Row],[إسم العميل]],'بيانات البيع'!B:B,Table3[[#This Row],[المنطقة]],'بيانات البيع'!C:C,Table3[[#This Row],[المحافظة]])","v":0},{"$f":"SUMIFS('بيانات البيع'!E:E,'بيانات البيع'!A:A,Table3[[#This Row],[إسم العميل]],'بيانات البيع'!B:B,Table3[[#This Row],[المنطقة]],'بيانات البيع'!C:C,Table3[[#This Row],[المحافظة]])","v":0}]
["عميل 283","البساتين","القاهرة",{"$f":"COUNTIFS('بيانات البيع'!A:A,Table3[[#This Row],[إسم العميل]],'بيانات البيع'!B:B,Table3[[#This Row],[المنطقة]],'بيانات البيع'!C:C,Table3[[#This Row],[المحافظة]])","v":0},{"$f":"SUMIFS('بيانات البيع'!E:E,'بيانات البيع'!A:A,Table3[[#This Row],[إسم العميل]],'بيانات البيع'!B:B,Table3[[#This Row],[المنطقة]],'بيانات البيع'!C:C,Table3[[#This Row],[المحافظة]])","v":0}]
["عميل 284","شبرا الخمية","القليوبية",{"$f":"COUNTIFS('بيانات البيع'!A:A,Table3[[#This Row],[إسم العميل]],'بيانات البيع'!B:B,Table3[[#This Row],[المنطقة]],'بيانات البيع'!C:C,Table3[[#This Row],[المحافظة]])","v":0},{"$f":"SUMIFS('بيانات البيع'!E:E,'بيانات البيع'!A:A,Table3[[#This Row],[إسم العميل]],'بيانات البيع'!B:B,Table3[[#This Row],[المنطقة]],'بيانات البيع'!C:C,Table3[[#This Row],[المحافظة]])","v":0}]
["عميل 285","أسيوط","أسيوط",{"$f":"COUNTIFS('بيانات البيع'!A:A,Table3[[#This Row],[إسم العميل]],'بيانات البيع'!B:B,Table3[[#This Row],[المنطقة]],'بيانات البيع'!C:C,Table3[[#This Row],[المحافظة]])","v":0},{"$f":"SUMIFS('بيانات البيع'!E:E,'بيانات البيع'!A:A,Table3[[#This Row],[إسم العميل]],'بيانات البيع'!B:B,Table3[[#This Row],[المنطقة]],'بيانات البيع'!C:C,Table3[[#This Row],[المحافظة]])","v":0}]
["عميل 286","القاهرة","القاهرة",{"$f":"COUNTIFS('بيانات البيع'!A:A,Table3[[#This Row],[إسم العميل]],'بيانات البيع'!B:B,Table3[[#This Row],[المنطقة]],'بيانات البيع'!C:C,Table3[[#This Row],[المحافظة]])","v":1},{"$f":"SUMIFS('بيانات البيع'!E:E,'بيانات البيع'!A:A,Table3[[#This Row],[إسم العميل]],'بيانات البيع'!B:B,Table3[[#This Row],[المنطقة]],'بيانات البيع'!C:C,Table3[[#This Row],[المحافظة]])","v":40}]
["عميل 287","القصر العينى","القاهرة",{"$f":"COUNTIFS('بيانات البيع'!A:A,Table3[[#This Row],[إسم العميل]],'بيانات البيع'!B:B,Table3[[#This Row],[المنطقة]],'بيانات البيع'!C:C,Table3[[#This Row],[المحافظة]])","v":0},{"$f":"SUMIFS('بيانات البيع'!E:E,'بيانات البيع'!A:A,Table3[[#This Row],[إسم العميل]],'بيانات البيع'!B:B,Table3[[#This Row],[المنطقة]],'بيانات البيع'!C:C,Table3[[#This Row],[المحافظة]])","v":0}]
["عميل 288","المقطم","القاهرة",{"$f":"COUNTIFS('بيانات البيع'!A:A,Table3[[#This Row],[إسم العميل]],'بيانات البيع'!B:B,Table3[[#This Row],[المنطقة]],'بيانات البيع'!C:C,Table3[[#This Row],[المحافظة]])","v":0},{"$f":"SUMIFS('بيانات البيع'!E:E,'بيانات البيع'!A:A,Table3[[#This Row],[إسم العميل]],'بيانات البيع'!B:B,Table3[[#This Row],[المنطقة]],'بيانات البيع'!C:C,Table3[[#This Row],[المحافظة]])","v":0}]
["عميل 289","جسر السويس","القاهرة",{"$f":"COUNTIFS('بيانات البيع'!A:A,Table3[[#This Row],[إسم العميل]],'بيانات البيع'!B:B,Table3[[#This Row],[المنطقة]],'بيانات البيع'!C:C,Table3[[#This Row],[المحافظة]])","v":0},{"$f":"SUMIFS('بيانات البيع'!E:E,'بيانات البيع'!A:A,Table3[[#This Row],[إسم العميل]],'بيانات البيع'!B:B,Table3[[#This Row],[المنطقة]],'بيانات البيع'!C:C,Table3[[#This Row],[المحافظة]])","v":0}]
["عميل 290","مدينة نصر","القاهرة",{"$f":"COUNTIFS('بيانات البيع'!A:A,Table3[[#This Row],[إسم العميل]],'بيانات البيع'!B:B,Table3[[#This Row],[المنطقة]],'بيانات البيع'!C:C,Table3[[#This Row],[المحافظة]])","v":0},{"$f":"SUMIFS('بيانات البيع'!E:E,'بيانات البيع'!A:A,Table3[[#This Row],[إسم العميل]],'بيانات البيع'!B:B,Table3[[#This Row],[المنطقة]],'بيانات البيع'!C:C,Table3[[#This Row],[المحافظة]])","v":0}]
["عميل 291","القاهرة","القاهرة",{"$f":"COUNTIFS('بيانات البيع'!A:A,Table3[[#This Row],[إسم العميل]],'بيانات البيع'!B:B,Table3[[#This Row],[المنطقة]],'بيانات البيع'!C:C,Table3[[#This Row],[المحافظة]])","v":0},{"$f":"SUMIFS('بيانات البيع'!E:E,'بيانات البيع'!A:A,Table3[[#This Row],[إسم العميل]],'بيانات البيع'!B:B,Table3[[#This Row],[المنطقة]],'بيانات البيع'!C:C,Table3[[#This Row],[المحافظة]])","v":0}]
["عميل 292","حلوان","القاهرة",{"$f":"COUNTIFS('بيانات البيع'!A:A,Table3[[#This Row],[إسم العميل]],'بيانات البيع'!B:B,Table3[[#This Row],[المنطقة]],'بيانات البيع'!C:C,Table3[[#This Row],[المحافظة]])","v":0},{"$f":"SUMIFS('بيانات البيع'!E:E,'بيانات البيع'!A:A,Table3[[#This Row],[إسم العميل]],'بيانات البيع'!B:B,Table3[[#This Row],[المنطقة]],'بيانات البيع'!C:C,Table3[[#This Row],[المحافظة]])","v":0}]
["عميل 293","القاهرة","القاهرة",{"$f":"COUNTIFS('بيانات البيع'!A:A,Table3[[#This Row],[إسم العميل]],'بيانات البيع'!B:B,Table3[[#This Row],[المنطقة]],'بيانات البيع'!C:C,Table3[[#This Row],[المحافظة]])","v":0},{"$f":"SUMIFS('بيانات البيع'!E:E,'بيانات البيع'!A:A,Table3[[#This Row],[إسم العميل]],'بيانات البيع'!B:B,Table3[[#This Row],[المنطقة]],'بيانات البيع'!C:C,Table3[[#This Row],[المحافظة]])","v":0}]
["عميل 294","الجيزة","الجيزة",{"$f":"COUNTIFS('بيانات البيع'!A:A,Table3[[#This Row],[إسم العميل]],'بيانات البيع'!B:B,Table3[[#This Row],[المنطقة]],'بيانات البيع'!C:C,Table3[[#This Row],[المحافظة]])","v":0},{"$f":"SUMIFS('بيانات البيع'!E:E,'بيانات البيع'!A:A,Table3[[#This Row],[إسم العميل]],'بيانات البيع'!B:B,Table3[[#This Row],[المنطقة]],'بيانات البيع'!C:C,Table3[[#This Row],[المحافظة]])","v":0}]
["عميل 295","القصر العينى","القاهرة",{"$f":"COUNTIFS('بيانات البيع'!A:A,Table3[[#This Row],[إسم العميل]],'بيانات البيع'!B:B,Table3[[#This Row],[المنطقة]],'بيانات البيع'!C:C,Table3[[#This Row],[المحافظة]])","v":0},{"$f":"SUMIFS('بيانات البيع'!E:E,'بيانات البيع'!A:A,Table3[[#This Row],[إسم العميل]],'بيانات البيع'!B:B,Table3[[#This Row],[المنطقة]],'بيانات البيع'!C:C,Table3[[#This Row],[المحافظة]])","v":0}]
["Total",null,null,{"$f":"SUBTOTAL(109,Table3[عدد البيعات])","v":42},{"$f":"SUBTOTAL(109,Table3[المبلغ])","v":44167}]